date,department/service,beneficiary,amount,summary of purpose,category,transaction number,SAP vendor number
01.10.2019,MODERNISATION HGF,NPOWER LTD,867.69,CURLEW HOUSE,ELECTRICITY,5902380575,1000078994
02.10.2019,ADULT SOCIAL CARE,HM COURTS & TRIBUNALS SERVICE,365,DIR OF ASC,LEGAL FEES & COURT COSTS,2103012187,1000075260
02.10.2019,ADULT SOCIAL CARE,FOOTSTEPS CARE LTD,"17,826.96",DISABILITIES LAC,RESIDENTIAL CARE,2103011454,1000045464
02.10.2019,ADULT SOCIAL CARE,REDACTED PERSONAL DATA,312,FAMILY LINK,PAYMENTS TO CARERS,REDACTED,REDACTED
02.10.2019,ADULT SOCIAL CARE,REDACTED PERSONAL DATA,434,FAMILY LINK,PAYMENTS TO CARERS,REDACTED,REDACTED
02.10.2019,ADULT SOCIAL CARE,SWK DISABLEMENT ASSN,"20,000.00",LOCAL COMMUNITY OFFER,EXTERNAL AGENCIES AND BODIES,5902380641,1000011698
02.10.2019,ADULT SOCIAL CARE,TIME & TALENTS ASSOCIATION,"23,104.25",LOCAL COMMUNITY OFFER,EXTERNAL AGENCIES AND BODIES,5902380630,1757632
02.10.2019,ADULT SOCIAL CARE,LINK AGE SOUTHWARK,"30,812.50",LOCAL COMMUNITY OFFER,EXTERNAL AGENCIES AND BODIES,5902380644,1000034150
02.10.2019,ADULT SOCIAL CARE,SERVESOUL LTD,408.91,PHY LTS 18-64,HOMECARE - SPOT,2103011409,1000081503
02.10.2019,ADULT SOCIAL CARE,SERVESOUL LTD,262.87,PHY LTS 65+,HOMECARE - SPOT,2103011450,1000081503
02.10.2019,ADULT SOCIAL CARE,SERVESOUL LTD,292.08,PHY LTS 65+,HOMECARE - SPOT,2103011429,1000081503
02.10.2019,ADULT SOCIAL CARE,SERVESOUL LTD,308.77,PHY LTS 65+,HOMECARE - SPOT,2103011451,1000081503
02.10.2019,ADULT SOCIAL CARE,SERVESOUL LTD,346.32,PHY LTS 65+,HOMECARE - SPOT,2103011430,1000081503
02.10.2019,ADULT SOCIAL CARE,SERVESOUL LTD,408.91,PHY LTS 65+,HOMECARE - SPOT,2103011415,1000081503
02.10.2019,ADULT SOCIAL CARE,SERVESOUL LTD,421.42,PHY LTS 65+,HOMECARE - SPOT,2103011420,1000081503
02.10.2019,ADULT SOCIAL CARE,SERVESOUL LTD,433.94,PHY LTS 65+,HOMECARE - SPOT,2103011435,1000081503
02.10.2019,ADULT SOCIAL CARE,SERVESOUL LTD,525.74,PHY LTS 65+,HOMECARE - SPOT,2103011414,1000081503
02.10.2019,ADULT SOCIAL CARE,SERVESOUL LTD,525.74,PHY LTS 65+,HOMECARE - SPOT,2103011448,1000081503
02.10.2019,ADULT SOCIAL CARE,SERVESOUL LTD,534.08,PHY LTS 65+,HOMECARE - SPOT,2103011445,1000081503
02.10.2019,ADULT SOCIAL CARE,SERVESOUL LTD,559.12,PHY LTS 65+,HOMECARE - SPOT,2103011418,1000081503
02.10.2019,ADULT SOCIAL CARE,SERVESOUL LTD,579.98,PHY LTS 65+,HOMECARE - SPOT,2103011419,1000081503
02.10.2019,ADULT SOCIAL CARE,SERVESOUL LTD,584.15,PHY LTS 65+,HOMECARE - SPOT,2103011412,1000081503
02.10.2019,ADULT SOCIAL CARE,SERVESOUL LTD,642.57,PHY LTS 65+,HOMECARE - SPOT,2103011441,1000081503
02.10.2019,ADULT SOCIAL CARE,PECULIAR CARE HOMES LTD,359,SPECIALIST CARE,SECTION 17 PAYMENTS TO AGENCIES/CARERS,2103011473,1000076991
02.10.2019,ADULT SOCIAL CARE,SHARED CARE SERVICES LTD,360,SPECIALIST CARE,SECTION 17 PAYMENTS TO AGENCIES/CARERS,2103011474,1000080308
02.10.2019,ADULT SOCIAL CARE,PECULIAR CARE HOMES LTD,"3,338.70",SPECIALIST CARE,SECTION 17 PAYMENTS TO AGENCIES/CARERS,2103011479,1000076991
02.10.2019,ADULT SOCIAL CARE,SERVESOUL LTD,375.53,SUB LTS 18-64,HOMECARE - SPOT,2103011434,1000081503
02.10.2019,ADULT SOCIAL CARE,PECULIAR CARE HOMES LTD,287.2,TRANSITIONS 14-18YRS,SECTION 17 PAYMENTS TO AGENCIES/CARERS,2103011472,1000076991
02.10.2019,ADULT SOCIAL CARE,CARE O LINE,474.38,TRANSITIONS 14-18YRS,SECTION 17 PAYMENTS TO AGENCIES/CARERS,2103011476,11241743
02.10.2019,ADULT SOCIAL CARE,RESOURCES FOR AUTISM,520,TRANSITIONS 14-18YRS,SECTION 17 PAYMENTS TO AGENCIES/CARERS,2103011471,1000062540
02.10.2019,ADULT SOCIAL CARE,CARE O LINE,618.76,TRANSITIONS 14-18YRS,SECTION 17 PAYMENTS TO AGENCIES/CARERS,2103011477,11241743
02.10.2019,ADULT SOCIAL CARE,PECULIAR CARE HOMES LTD,"1,292.40",TRANSITIONS 14-18YRS,SECTION 17 PAYMENTS TO AGENCIES/CARERS,2103011475,1000076991
02.10.2019,ASSET MANAGEMENT,FRANKHAM CONSULTANCY GROUP LTD,300,ADAPTATIONS,BUILDING R&M,5902380881,1000043952
02.10.2019,ASSET MANAGEMENT,FRANKHAM CONSULTANCY GROUP LTD,300,ADAPTATIONS,BUILDING R&M,5902380887,1000043952
02.10.2019,ASSET MANAGEMENT,FRANKHAM CONSULTANCY GROUP LTD,300,ADAPTATIONS,BUILDING R&M,5902380897,1000043952
02.10.2019,ASSET MANAGEMENT,FRANKHAM CONSULTANCY GROUP LTD,300,ADAPTATIONS,BUILDING R&M,5902380901,1000043952
02.10.2019,ASSET MANAGEMENT,CHESHIRE ESTATE AND LEGAL LTD,"1,150.00",DISREPAIR,PAYMENTS FOR LEGAL SERVICES,2103011595,1000081908
02.10.2019,ASSET MANAGEMENT,CHESHIRE ESTATE AND LEGAL LTD,"1,380.16",DISREPAIR,PAYMENTS FOR LEGAL SERVICES,2103011545,1000081908
02.10.2019,ASSET MANAGEMENT,CHESHIRE ESTATE AND LEGAL LTD,"1,500.00",DISREPAIR,PAYMENTS FOR LEGAL SERVICES,2103011548,1000081908
02.10.2019,ASSET MANAGEMENT,AWH LEGAL LTD,"1,819.28",DISREPAIR,PAYMENTS FOR LEGAL SERVICES,2103011542,1000082134
02.10.2019,ASSET MANAGEMENT,MATRIX SOLICITORS,500,DISREPAIR,PAYMENTS FOR LEGAL SERVICES,2103011547,1000082248
02.10.2019,ASSET MANAGEMENT,ANTONY HODARI  SOLICITORS,863.67,DISREPAIR,PAYMENTS FOR LEGAL SERVICES,2103011598,1000031040
02.10.2019,ASSET MANAGEMENT,ANTONY HODARI  SOLICITORS,"1,500.00",DISREPAIR,PAYMENTS FOR LEGAL SERVICES,2103011596,1000031040
02.10.2019,ASSET MANAGEMENT,DILLEX SOLICITORS,"1,850.00",DISREPAIR,PAYMENTS FOR LEGAL SERVICES,2103011541,1000081373
02.10.2019,ASSET MANAGEMENT,ANTONY HODARI  SOLICITORS,"2,000.00",DISREPAIR,PAYMENTS FOR LEGAL SERVICES,2103011544,1000031040
02.10.2019,ASSET MANAGEMENT,ANTONY HODARI  SOLICITORS,"2,000.00",DISREPAIR,PAYMENTS FOR LEGAL SERVICES,2103011546,1000031040
02.10.2019,ASSET MANAGEMENT,ANTONY HODARI  SOLICITORS,"2,200.00",DISREPAIR,PAYMENTS FOR LEGAL SERVICES,2103011543,1000031040
02.10.2019,ASSET MANAGEMENT,ANTONY HODARI  SOLICITORS,"4,000.00",DISREPAIR,PAYMENTS FOR LEGAL SERVICES,2103011540,1000031040
02.10.2019,ASSET MANAGEMENT,HANSEN PALOMARES SOLICITORS,"13,000.00",DISREPAIR,PAYMENTS FOR LEGAL SERVICES,2103011539,11053592
02.10.2019,ASSET MANAGEMENT,HOCKFIELD & CO SOLICITORS,"20,119.72",DISREPAIR,PAYMENTS FOR LEGAL SERVICES,2103011538,11295667
02.10.2019,ASSET MANAGEMENT,SCCI ALPHATRACK LTD,687.97,ENG CONTRACTS (NORTH),TV AERIALS R&M,5902380600,1000071955
02.10.2019,ASSET MANAGEMENT,SHARPE PRITCHARD LLP,"2,074.00",REPAIRS OPERATIONS,PAYMENTS FOR LEGAL SERVICES,5902380602,1790085
02.10.2019,CENTRAL FUNCTIONS,HM COURTS & TRIBUNALS SERVICE,308,COMMERCIAL PROPERTIES,LEGAL FEES & COURT COSTS,2103012180,1000075260
02.10.2019,CENTRAL FUNCTIONS,HM COURTS & TRIBUNALS SERVICE,308,COMMERCIAL PROPERTIES,LEGAL FEES & COURT COSTS,2103012181,1000075260
02.10.2019,CENTRAL FUNCTIONS,HM COURTS & TRIBUNALS SERVICE,308,COMMERCIAL PROPERTIES,LEGAL FEES & COURT COSTS,2103012185,1000075260
02.10.2019,CHIEF EXECUTIVE,BRAC CONTRACTS,"13,015.27",CAPITAL PS (REGEN),CONSTRUCTION FEES - ARCHITECT,2103010849,3000002025
02.10.2019,CHILDREN AND ADULT,DAVID MILES & PARTNERS LTD,"1,100.00",CAPITAL PS (SOC SERV),CONSTRUCTION MAIN CONTRACT,5902380760,1000001119
02.10.2019,CHILDREN'S SERVICES,REDACTED PERSONAL DATA,480,ADOPTION PLACEMENTS & INTER AGENCY,PAYMENTS TO CARERS,REDACTED,REDACTED
02.10.2019,CHILDREN'S SERVICES,PDC CONSTRUCTION SERVICES LTD,"72,485.06",CAPITAL PS (EDUCATION),CONSTRUCTION,2103010748,3000001841
02.10.2019,CHILDREN'S SERVICES,REDACTED PERSONAL DATA,400,CARE LEAVERS SERVICES 16+,OTHER PAYMENTS FOR CLIENTS,REDACTED,REDACTED
02.10.2019,CHILDREN'S SERVICES,REDACTED PERSONAL DATA,-300,DISABILITY & HIV,ADDITIONAL PAYMENTS TO AGENCIES/CARERS,REDACTED,REDACTED
02.10.2019,CHILDREN'S SERVICES,REDACTED PERSONAL DATA,300,DISABILITY & HIV,ADDITIONAL PAYMENTS TO AGENCIES/CARERS,REDACTED,REDACTED
02.10.2019,CHILDREN'S SERVICES,REDACTED PERSONAL DATA,300,DISABILITY & HIV,ADDITIONAL PAYMENTS TO AGENCIES/CARERS,REDACTED,REDACTED
02.10.2019,CHILDREN'S SERVICES,REDACTED PERSONAL DATA,400,DISABILITY & HIV,ADDITIONAL PAYMENTS TO AGENCIES/CARERS,REDACTED,REDACTED
02.10.2019,CHILDREN'S SERVICES,REDACTED PERSONAL DATA,480,DISABILITY & HIV,PAYMENTS TO CARERS,REDACTED,REDACTED
02.10.2019,CHILDREN'S SERVICES,PAULETTE TAJAH-BELL,"1,046.62",FAMILY GROUP CONFERENCES,PROFESSIONAL FEES,5902380592,1000081337
02.10.2019,CHILDREN'S SERVICES,REDACTED PERSONAL DATA,400,FRIENDS & FAMILY FOSTERING,COMPUTER CONSUMABLES,REDACTED,REDACTED
02.10.2019,CHILDREN'S SERVICES,SELECT FOSTERCARE SERVICES LTD,"3,180.00",FRIENDS & FAMILY FOSTERING,EXTERNAL AGENCIES AND BODIES,2103011467,1000079277
02.10.2019,CHILDREN'S SERVICES,SELECT FOSTERCARE SERVICES LTD,"3,535.50",FRIENDS & FAMILY FOSTERING,EXTERNAL AGENCIES AND BODIES,2103011470,1000079277
02.10.2019,CHILDREN'S SERVICES,SELECT FOSTERCARE SERVICES LTD,"3,535.80",FRIENDS & FAMILY FOSTERING,EXTERNAL AGENCIES AND BODIES,2103011469,1000079277
02.10.2019,CHILDREN'S SERVICES,REDACTED PERSONAL DATA,"1,000.00",LEAVING CARE GRANT,OTHER PAYMENTS FOR CLIENTS,REDACTED,REDACTED
02.10.2019,CHILDREN'S SERVICES,HM COURTS & TRIBUNALS SERVICE,"2,055.00",LEGAL,LEGAL FEES & COURT COSTS,2103012174,1000075260
02.10.2019,CHILDREN'S SERVICES,HM COURTS & TRIBUNALS SERVICE,"2,055.00",LEGAL,LEGAL FEES & COURT COSTS,2103012175,1000075260
02.10.2019,CHILDREN'S SERVICES,HM COURTS & TRIBUNALS SERVICE,"2,055.00",LEGAL,LEGAL FEES & COURT COSTS,2103012176,1000075260
02.10.2019,CHILDREN'S SERVICES,HM COURTS & TRIBUNALS SERVICE,"2,055.00",LEGAL,LEGAL FEES & COURT COSTS,2103012179,1000075260
02.10.2019,CHILDREN'S SERVICES,HM COURTS & TRIBUNALS SERVICE,"2,055.00",LEGAL,LEGAL FEES & COURT COSTS,2103012192,1000075260
02.10.2019,CHILDREN'S SERVICES,HM COURTS & TRIBUNALS SERVICE,"2,055.00",LEGAL,LEGAL FEES & COURT COSTS,2103012195,1000075260
02.10.2019,CHILDREN'S SERVICES,CORAM FAMILY,"3,300.00",REGIONAL ADOPTION AGENCY,EXTERNAL AGENCIES AND BODIES,5902380597,1000023579
02.10.2019,CHILDREN'S SERVICES,REDACTED PERSONAL DATA,269.08,RESIDENCE ORDERS,PAYMENTS TO CARERS,REDACTED,REDACTED
02.10.2019,CHILDREN'S SERVICES,KEYS CHILDCARE LTD,857.14,RESIDENTIAL,OTHER PAYMENTS FOR CLIENTS,2103011466,1000081582
02.10.2019,CHILDREN'S SERVICES,THE BEECHES UK LTD,"10,041.43",RESIDENTIAL,RESIDENTIAL CARE,2103011464,1000083173
02.10.2019,CHILDREN'S SERVICES,HORIZON CARE & EDUCATION GROUP LTD,"14,357.10",RESIDENTIAL,RESIDENTIAL CARE,2103011468,1000075467
02.10.2019,CHILDREN'S SERVICES,ST CHRISTOPHER FELLOWSHIP,"14,571.30",RESIDENTIAL,RESIDENTIAL CARE,2103011456,1000045269
02.10.2019,CHILDREN'S SERVICES,ACORN HOMES (UK) LTD,"16,071.30",RESIDENTIAL,RESIDENTIAL CARE,2103011461,1000080423
02.10.2019,CHILDREN'S SERVICES,KEYS CHILDCARE LTD,"16,071.43",RESIDENTIAL,RESIDENTIAL CARE,2103011465,1000081582
02.10.2019,CHILDREN'S SERVICES,CASTLE HOMES LIMITED,"16,344.69",RESIDENTIAL,RESIDENTIAL CARE,2103011463,1000019388
02.10.2019,CHILDREN'S SERVICES,REAMCARE LTD,"17,571.42",RESIDENTIAL,RESIDENTIAL CARE,2103011460,1000078284
02.10.2019,CHILDREN'S SERVICES,EXCEPTIONAL CARE LTD,"18,000.00",RESIDENTIAL,RESIDENTIAL CARE,2103011455,1000080896
02.10.2019,CHILDREN'S SERVICES,THE AMICUS COMMUNITY (ARUNDEL) LTD,"19,907.10",RESIDENTIAL,RESIDENTIAL CARE,2103011457,1000079012
02.10.2019,CHILDREN'S SERVICES,KEYS SPECIALIST RESIDENTIAL CHILDREN'S SERVICES,"21,214.29",RESIDENTIAL,RESIDENTIAL CARE,2103011462,1000081606
02.10.2019,CHILDREN'S SERVICES,CHILDHOOD FIRST,"21,484.29",RESIDENTIAL,RESIDENTIAL CARE,2103011458,1000076330
02.10.2019,CHILDREN'S SERVICES,OUTBOUND CARE LTD,"25,714.29",RESIDENTIAL,RESIDENTIAL CARE,2103011459,1000083072
02.10.2019,CHILDREN'S SERVICES,PURPLE PEBBLES(CHILD CARE) SERVICES,"1,821.43",RESOURCE PANEL,OTHER PAYMENTS FOR CLIENTS,2103011342,1000070705
02.10.2019,CHILDREN'S SERVICES,UNIVERSITY OF SHEFFIELD,"9,000.00",SCHOLARSHIP SCHEME,EXTERNAL AGENCIES AND BODIES,5902380605,1000053535
02.10.2019,CHILDREN'S SERVICES,UNIVERSITY OF SHEFFIELD,"9,250.00",SCHOLARSHIP SCHEME,EXTERNAL AGENCIES AND BODIES,5902380606,1000053535
02.10.2019,CHILDREN'S SERVICES,UNIVERSITY OF BRIGHTON,"9,250.00",SCHOLARSHIP SCHEME,EXTERNAL AGENCIES AND BODIES,5902380611,1000082164
02.10.2019,CHILDREN'S SERVICES,YOUNG FUTURES,-874.2,SEMI INDEPENDENT CARE LEAVERS,EXTERNAL AGENCIES AND BODIES,2103011494,1000059563
02.10.2019,CHILDREN'S SERVICES,YOUNG FUTURES,-435.9,SEMI INDEPENDENT CARE LEAVERS,EXTERNAL AGENCIES AND BODIES,2103011484,1000059563
02.10.2019,CHILDREN'S SERVICES,LOOK AHEAD CARE AND SUPPORT LTD,508.05,SEMI INDEPENDENT CARE LEAVERS,EXTERNAL AGENCIES AND BODIES,2103011492,1000047299
02.10.2019,CHILDREN'S SERVICES,LOOK AHEAD CARE AND SUPPORT LTD,688.32,SEMI INDEPENDENT CARE LEAVERS,EXTERNAL AGENCIES AND BODIES,2103011495,1000047299
02.10.2019,CHILDREN'S SERVICES,LOOK AHEAD CARE AND SUPPORT LTD,744.09,SEMI INDEPENDENT CARE LEAVERS,EXTERNAL AGENCIES AND BODIES,2103011503,1000047299
02.10.2019,CHILDREN'S SERVICES,LOOK AHEAD CARE AND SUPPORT LTD,"1,008.12",SEMI INDEPENDENT CARE LEAVERS,EXTERNAL AGENCIES AND BODIES,2103011493,1000047299
02.10.2019,CHILDREN'S SERVICES,YOUNG FUTURES,"2,142.90",SEMI INDEPENDENT CARE LEAVERS,EXTERNAL AGENCIES AND BODIES,2103011498,1000059563
02.10.2019,CHILDREN'S SERVICES,YOUNG FUTURES,"2,142.90",SEMI INDEPENDENT CARE LEAVERS,EXTERNAL AGENCIES AND BODIES,2103011501,1000059563
02.10.2019,CHILDREN'S SERVICES,YOUNG FUTURES,"2,700.00",SEMI INDEPENDENT CARE LEAVERS,EXTERNAL AGENCIES AND BODIES,2103011491,1000059563
02.10.2019,CHILDREN'S SERVICES,YOUNG FUTURES,"3,807.51",SEMI INDEPENDENT CARE LEAVERS,EXTERNAL AGENCIES AND BODIES,2103011499,1000059563
02.10.2019,CHILDREN'S SERVICES,YOUNG FUTURES,"2,700.00",SEMI INDEPENDENT LAC,EXTERNAL AGENCIES AND BODIES,2103011490,1000059563
02.10.2019,CHILDREN'S SERVICES,HOLIBROOK HOUSE LTD,"7,650.00",SEMI INDEPENDENT LAC,EXTERNAL AGENCIES AND BODIES,2103011482,1000067873
02.10.2019,CHILDREN'S SERVICES,YOUNG FUTURES,"7,928.40",SEMI INDEPENDENT LAC,EXTERNAL AGENCIES AND BODIES,2103011480,1000059563
02.10.2019,CHILDREN'S SERVICES,REDACTED PERSONAL DATA,269.08,SPECIAL GUARDIANSHIP,PAYMENTS TO CARERS,REDACTED,REDACTED
02.10.2019,CHILDREN'S SERVICES,REDACTED PERSONAL DATA,342.45,SPECIAL GUARDIANSHIP,PAYMENTS TO CARERS,REDACTED,REDACTED
02.10.2019,CHILDREN'S SERVICES,REDACTED PERSONAL DATA,343.05,SPECIAL GUARDIANSHIP,PAYMENTS TO CARERS,REDACTED,REDACTED
02.10.2019,CHILDREN'S SERVICES,REDACTED PERSONAL DATA,356.15,SPECIAL GUARDIANSHIP,PAYMENTS TO CARERS,REDACTED,REDACTED
02.10.2019,CHILDREN'S SERVICES,REDACTED PERSONAL DATA,388.04,SPECIAL GUARDIANSHIP,PAYMENTS TO CARERS,REDACTED,REDACTED
02.10.2019,CHILDREN'S SERVICES,REDACTED PERSONAL DATA,389.34,SPECIAL GUARDIANSHIP,PAYMENTS TO CARERS,REDACTED,REDACTED
02.10.2019,CHILDREN'S SERVICES,REDACTED PERSONAL DATA,395,SPECIAL GUARDIANSHIP,PAYMENTS TO CARERS,REDACTED,REDACTED
02.10.2019,CHILDREN'S SERVICES,REDACTED PERSONAL DATA,403.04,SPECIAL GUARDIANSHIP,PAYMENTS TO CARERS,REDACTED,REDACTED
02.10.2019,CHILDREN'S SERVICES,REDACTED PERSONAL DATA,525,SPECIAL GUARDIANSHIP,PAYMENTS TO CARERS,REDACTED,REDACTED
02.10.2019,CHILDREN'S SERVICES,REDACTED PERSONAL DATA,525,SPECIAL GUARDIANSHIP,PAYMENTS TO CARERS,REDACTED,REDACTED
02.10.2019,CHILDREN'S SERVICES,REDACTED PERSONAL DATA,525,SPECIAL GUARDIANSHIP,PAYMENTS TO CARERS,REDACTED,REDACTED
02.10.2019,CHILDREN'S SERVICES,YOUNG FUTURES,-874.2,UASC CARE LEAVERS,EXTERNAL AGENCIES AND BODIES,2103011489,1000059563
02.10.2019,CHILDREN'S SERVICES,LOOK AHEAD CARE AND SUPPORT LTD,-573.75,UASC CARE LEAVERS,EXTERNAL AGENCIES AND BODIES,2103011497,1000047299
02.10.2019,CHILDREN'S SERVICES,LOOK AHEAD CARE AND SUPPORT LTD,-341.25,UASC CARE LEAVERS,EXTERNAL AGENCIES AND BODIES,2103011502,1000047299
02.10.2019,CHILDREN'S SERVICES,LOOK AHEAD CARE AND SUPPORT LTD,772.8,UASC CARE LEAVERS,EXTERNAL AGENCIES AND BODIES,2103011485,1000047299
02.10.2019,CHILDREN'S SERVICES,LOOK AHEAD CARE AND SUPPORT LTD,772.8,UASC CARE LEAVERS,EXTERNAL AGENCIES AND BODIES,2103011496,1000047299
02.10.2019,CHILDREN'S SERVICES,LOOK AHEAD CARE AND SUPPORT LTD,798.56,UASC CARE LEAVERS,EXTERNAL AGENCIES AND BODIES,2103011483,1000047299
02.10.2019,CHILDREN'S SERVICES,LOOK AHEAD CARE AND SUPPORT LTD,798.56,UASC CARE LEAVERS,EXTERNAL AGENCIES AND BODIES,2103011486,1000047299
02.10.2019,CHILDREN'S SERVICES,YOUNG FUTURES,"2,142.90",UASC CARE LEAVERS,EXTERNAL AGENCIES AND BODIES,2103011487,1000059563
02.10.2019,CHILDREN'S SERVICES,YOUNG FUTURES,"3,171.30",UASC CARE LEAVERS,EXTERNAL AGENCIES AND BODIES,2103011488,1000059563
02.10.2019,CHILDREN'S SERVICES,REDACTED PERSONAL DATA,300,UASC FURTHER EDUCATION SUPPORT,CLIENT TRANSPORT,REDACTED,REDACTED
02.10.2019,COMMUNITIES,K3 PROPERTY MANAGEMENT LTD,"5,549.00",NO RECOURSE TO PUBLIC FUNDS,ACCOMMODATION CHARGES,5902380590,1000068219
02.10.2019,CUSTOMER EXPERIENCE HGF,APEX HOUSING SOLUTIONS LTD,"45,182.93",NIGHTLY TA (NSC),EXTERNAL AGENCIES AND BODIES,5902380817,1000079786
02.10.2019,DEPT DORMANT AND DEAD CODES,P D CONSTRUCTION LTD,"2,904.00",PLAY NORTH,OTHER R&M,2103011612,4001883
02.10.2019,ENVIRONMENT & LEISURE,GALLERY SYSTEMS INC,"5,280.00",CUMMING MUSEUM,SOFTWARE,6101906197,INTERNATIONAL PAYMENT
02.10.2019,ENVIRONMENT AND LEISURE,WESTMINSTER HOUSE YOUTH CLUB,"19,594.00",CAPITAL PS (LEISURE),CAPITAL GRANTS,5902380601,11088645
02.10.2019,ENVIRONMENT AND LEISURE,STITCHES MARQUEE HIRE,790,CAPITAL PS (LEISURE),CONSTRUCTION FEES  - EXTERNAL,5902380719,1026432
02.10.2019,ENVIRONMENT AND LEISURE,RSA GEOTECHNICS LTD,"1,250.00",CAPITAL PS (LEISURE),CONSTRUCTION FEES  - EXTERNAL,5902380804,1000049259
02.10.2019,ENVIRONMENT AND LEISURE,APPLEYARD & TREW,"3,000.00",CAPITAL PS (LEISURE),CONSTRUCTION FEES  - EXTERNAL,5902380616,1000029065
02.10.2019,ENVIRONMENT AND LEISURE,APPLEYARD & TREW,"10,000.00",CAPITAL PS (LEISURE),CONSTRUCTION FEES  - EXTERNAL,5902380616,1000029065
02.10.2019,ENVIRONMENT DIRECTORATE,LEX AUTOLEASE,"-1,095.80",CAR LEASING CTRL A/C,VEHICLE LEASING CHARGES,5902378919,1000069462
02.10.2019,ENVIRONMENT DIRECTORATE,LEX AUTOLEASE,-894.36,CAR LEASING CTRL A/C,VEHICLE LEASING CHARGES,5902378910,1000069462
02.10.2019,ENVIRONMENT DIRECTORATE,LEX AUTOLEASE,-682.16,CAR LEASING CTRL A/C,VEHICLE LEASING CHARGES,5902378920,1000069462
02.10.2019,ENVIRONMENT DIRECTORATE,LEX AUTOLEASE,-419.51,CAR LEASING CTRL A/C,VEHICLE LEASING CHARGES,5902380825,1000069462
02.10.2019,ENVIRONMENT DIRECTORATE,LEX AUTOLEASE,-403.85,CAR LEASING CTRL A/C,VEHICLE LEASING CHARGES,5902377947,1000069462
02.10.2019,ENVIRONMENT DIRECTORATE,LEX AUTOLEASE,-360.21,CAR LEASING CTRL A/C,VEHICLE LEASING CHARGES,5902380818,1000069462
02.10.2019,ENVIRONMENT DIRECTORATE,LEX AUTOLEASE,-295.25,CAR LEASING CTRL A/C,VEHICLE LEASING CHARGES,5902380856,1000069462
02.10.2019,ENVIRONMENT DIRECTORATE,LEX AUTOLEASE,-287.4,CAR LEASING CTRL A/C,VEHICLE LEASING CHARGES,5902380777,1000069462
02.10.2019,ENVIRONMENT DIRECTORATE,LEX AUTOLEASE,251.91,CAR LEASING CTRL A/C,VEHICLE LEASING CHARGES,5902380809,1000069462
02.10.2019,ENVIRONMENT DIRECTORATE,LEX AUTOLEASE,413.55,CAR LEASING CTRL A/C,VEHICLE LEASING CHARGES,5902380814,1000069462
02.10.2019,ENVIRONMENT DIRECTORATE,LEX AUTOLEASE,669.52,CAR LEASING CTRL A/C,VEHICLE LEASING CHARGES,5902380846,1000069462
02.10.2019,ENVIRONMENT DIRECTORATE,ARVAL UK LTD,786.22,CAR LEASING CTRL A/C,VEHICLE LEASING CHARGES,5902380867,1000079802
02.10.2019,ENVIRONMENT DIRECTORATE,LEX AUTOLEASE,"11,593.16",CAR LEASING CTRL A/C,VEHICLE LEASING CHARGES,5902380842,1000069462
02.10.2019,ENVIRONMENT DIRECTORATE,LEX AUTOLEASE,"11,791.05",CAR LEASING CTRL A/C,VEHICLE LEASING CHARGES,5902380842,1000069462
02.10.2019,ENVIRONMENT DIRECTORATE,DAWSONGROUP VANS LTD,258.85,COMMERCIAL VEH CTRL A/C,HIRED VEHICLES,5902380917,1000082230
02.10.2019,ENVIRONMENT DIRECTORATE,DAWSONGROUP VANS LTD,283.03,COMMERCIAL VEH CTRL A/C,HIRED VEHICLES,5902380933,1000082230
02.10.2019,ENVIRONMENT DIRECTORATE,TIPPERHIRE LTD,300,COMMERCIAL VEH CTRL A/C,HIRED VEHICLES,5902380892,1000055357
02.10.2019,ENVIRONMENT DIRECTORATE,DAWSONGROUP VANS LTD,300.08,COMMERCIAL VEH CTRL A/C,HIRED VEHICLES,5902380931,1000082230
02.10.2019,ENVIRONMENT DIRECTORATE,SHB HIRE LTD,327.25,COMMERCIAL VEH CTRL A/C,HIRED VEHICLES,5902380911,11319628
02.10.2019,ENVIRONMENT DIRECTORATE,SHB HIRE LTD,365.75,COMMERCIAL VEH CTRL A/C,HIRED VEHICLES,5902380905,11319628
02.10.2019,ENVIRONMENT DIRECTORATE,LEX AUTOLEASE,"18,796.75",COMMERCIAL VEH CTRL A/C,HIRED VEHICLES,5902380747,1000069462
02.10.2019,ENVIRONMENT DIRECTORATE,RAINBOW CAR WASH,533,COMMERCIAL VEH CTRL A/C,VEHICLE REPAIRS & MAINTENANCE,5902380852,1000079913
02.10.2019,ENVIRONMENT DIRECTORATE,LEX AUTOLEASE,278.2,FLEET INSURANCE WORKS,TRANSPORT INSURANCE COSTS,5902380066,1000069462
02.10.2019,ENVIRONMENT DIRECTORATE,LEX AUTOLEASE,972.64,FLEET INSURANCE WORKS,TRANSPORT INSURANCE COSTS,5902380065,1000069462
02.10.2019,ENVIRONMENT DIRECTORATE,SPALDINGS (UK) LTD,252,GROUNDS MAINTENANCE - GENERAL,MATERIALS,5902380858,1907384
02.10.2019,ENVIRONMENT DIRECTORATE,SPALDINGS (UK) LTD,333.96,GROUNDS MAINTENANCE - GENERAL,MATERIALS,5902380684,1907384
02.10.2019,ENVIRONMENT DIRECTORATE,SPALDINGS (UK) LTD,575,GROUNDS MAINTENANCE - GENERAL,MATERIALS,5902380693,1907384
02.10.2019,ENVIRONMENT DIRECTORATE,LONDON HIRE T/A R J MOTORS,"2,110.71",NON HOUSING GROUNDS,OTHER R&M,5902380729,1000047106
02.10.2019,ENVIRONMENT DIRECTORATE,TRAVIS PERKINS TRADING COMPANY LTD,516,PUBLIC LIGHTING,MATERIALS,5902380613,1514319
02.10.2019,ENVIRONMENT DIRECTORATE,HM COURTS & TRIBUNALS SERVICE,255,SASBU,LEGAL FEES & COURT COSTS,2103012154,1000075260
02.10.2019,ENVIRONMENT DIRECTORATE,HM COURTS & TRIBUNALS SERVICE,308,SASBU,LEGAL FEES & COURT COSTS,2103012172,1000075260
02.10.2019,ENVIRONMENT DIRECTORATE,HM COURTS & TRIBUNALS SERVICE,355,SASBU,LEGAL FEES & COURT COSTS,2103012164,1000075260
02.10.2019,ENVIRONMENT DIRECTORATE,VEOLIA ES SOUTHWARK LTD,"6,168.00",WASTE PFI,PFI/PPP PAYMENTS,5902380707,1000056979
02.10.2019,ENVIRONMENT DIRECTORATE,VEOLIA ES SOUTHWARK LTD,"6,168.00",WASTE PFI,PFI/PPP PAYMENTS,5902380717,1000056979
02.10.2019,ENVIRONMENT DIRECTORATE,VEOLIA ES SOUTHWARK LTD,"6,726.55",WASTE PFI,PFI/PPP PAYMENTS,5902380709,1000056979
02.10.2019,ENVIRONMENT DIRECTORATE,VEOLIA ES SOUTHWARK LTD,"6,939.00",WASTE PFI,PFI/PPP PAYMENTS,5902380699,1000056979
02.10.2019,ENVIRONMENT DIRECTORATE,VEOLIA ES SOUTHWARK LTD,"6,939.00",WASTE PFI,PFI/PPP PAYMENTS,5902380711,1000056979
02.10.2019,ENVIRONMENT DIRECTORATE,VEOLIA ES SOUTHWARK LTD,"6,939.00",WASTE PFI,PFI/PPP PAYMENTS,5902380715,1000056979
02.10.2019,ENVIRONMENT DIRECTORATE,VEOLIA ES SOUTHWARK LTD,"6,939.00",WASTE PFI,PFI/PPP PAYMENTS,5902380721,1000056979
02.10.2019,ENVIRONMENT DIRECTORATE,VEOLIA ES SOUTHWARK LTD,"6,939.00",WASTE PFI,PFI/PPP PAYMENTS,5902380724,1000056979
02.10.2019,HOUSING & MODERNISATION,LITTLE VILLAGE SOUTHWARK,"1,250.00",VCS GRANTS,GRANTS,5902380662,1000082344
02.10.2019,HOUSING & MODERNISATION,MENTAL FIGHT CLUB,"2,250.00",VCS GRANTS,GRANTS,5902380649,1000051170
02.10.2019,HOUSING & MODERNISATION,CRYSTAL PALACE COMM DEV TRUST,"3,000.00",VCS GRANTS,GRANTS,5902380650,1000054200
02.10.2019,HOUSING & MODERNISATION,BERMONDSEY COMMUNITY KITCHEN,"3,750.00",VCS GRANTS,GRANTS,5902380658,1000075477
02.10.2019,HOUSING & MODERNISATION,THE BIKE PROJECT,"3,750.00",VCS GRANTS,GRANTS,5902380659,1000077217
02.10.2019,HOUSING & MODERNISATION,PAXTON GREEN TIME BANK,"3,937.50",VCS GRANTS,GRANTS,5902380655,1000070648
02.10.2019,HOUSING & MODERNISATION,FUTURE MEN,"4,000.00",VCS GRANTS,GRANTS,5902380647,1000046010
02.10.2019,HOUSING & MODERNISATION,BANKSIDE OPEN SPACES TRUST,"4,208.00",VCS GRANTS,GRANTS,5902380642,1000018290
02.10.2019,HOUSING & MODERNISATION,AGE UK LEWISHAM & SOUTHWARK,"4,500.00",VCS GRANTS,GRANTS,5902380628,1507154
02.10.2019,HOUSING & MODERNISATION,TIME & TALENTS ASSOCIATION,"4,500.00",VCS GRANTS,GRANTS,5902380629,1757632
02.10.2019,HOUSING & MODERNISATION,BEDE HSE,"4,500.00",VCS GRANTS,GRANTS,5902380635,11248731
02.10.2019,HOUSING & MODERNISATION,CAMBRIDGE HOUSE & TALBOT,"4,500.00",VCS GRANTS,GRANTS,5902380636,11248874
02.10.2019,HOUSING & MODERNISATION,LATIN AMERICAN DISABLED PEOPLE PROJECT,"4,500.00",VCS GRANTS,GRANTS,5902380651,1000058588
02.10.2019,HOUSING & MODERNISATION,LATIN AMERICAN WOMEN'S RIGHTS SERVICES,"4,500.00",VCS GRANTS,GRANTS,5902380652,1000068356
02.10.2019,HOUSING & MODERNISATION,BLACKFRIARS SETTLEMENT,"4,500.00",VCS GRANTS,GRANTS,5902380656,1000071456
02.10.2019,HOUSING & MODERNISATION,PEMBROKE COLLEGE SETTLEMENT,"4,500.00",VCS GRANTS,GRANTS,5902380657,1000073444
02.10.2019,HOUSING & MODERNISATION,ST FAITHS COMMUNITY CENTRE,"5,000.00",VCS GRANTS,GRANTS,5902380627,1039446
02.10.2019,HOUSING & MODERNISATION,SOUTHWARK EVERY WOMAN'S CENTRE,"5,250.00",VCS GRANTS,GRANTS,5902380646,1000042216
02.10.2019,HOUSING & MODERNISATION,SOUTHWARK CITIZENS ADVICE,"5,600.00",VCS GRANTS,GRANTS,5902380632,1874379
02.10.2019,HOUSING & MODERNISATION,SOUTHWARK TRAVELLERS' ACTION,"5,750.00",VCS GRANTS,GRANTS,5902380660,1000077795
02.10.2019,HOUSING & MODERNISATION,PECAN LTD,"6,500.00",VCS GRANTS,GRANTS,5902380638,11263114
02.10.2019,HOUSING & MODERNISATION,PECAN LTD,"7,250.00",VCS GRANTS,GRANTS,5902380637,11263114
02.10.2019,HOUSING & MODERNISATION,LONDON WILDLIFE TRUST,"7,500.00",VCS GRANTS,GRANTS,5902380631,1832374
02.10.2019,HOUSING & MODERNISATION,AAINA WOMEN GROUP,"8,018.25",VCS GRANTS,GRANTS,5902380640,1000002442
02.10.2019,HOUSING & MODERNISATION,SURREY DOCKS FARM PROVIDENT SOCIETY,"10,000.00",VCS GRANTS,GRANTS,5902380639,1000000958
02.10.2019,HOUSING & MODERNISATION,SWK DAY CTR FOR ASYLUM SEEKERS,"11,330.25",VCS GRANTS,GRANTS,5902380645,1000040491
02.10.2019,HOUSING & MODERNISATION,BEORMUND COMMUNITY CENTRE,"12,437.25",VCS GRANTS,GRANTS,5902380634,11048982
02.10.2019,HOUSING & MODERNISATION,THE MANNA CENTRE,"13,750.00",VCS GRANTS,GRANTS,5902380648,1000048508
02.10.2019,HOUSING & MODERNISATION,SOMALI INTEGRATION & DEVELOPMENT ASSOCIATION,"14,000.00",VCS GRANTS,GRANTS,5902380633,11048946
02.10.2019,HOUSING & MODERNISATION,SOUTHWARK PENSIONERS CENTRE,"25,855.25",VCS GRANTS,GRANTS,5902380643,1000027831
02.10.2019,HOUSING GENERAL FUND,FRANKHAM CONSULTANCY GROUP LTD,"1,990.40",CAPITAL PS (HOUSING GF),CAPITAL GRANTS,5902380736,1000043952
02.10.2019,HOUSING HRA,SALTASH ENTERPRISES LTD,435,CAPITAL PS (HRA),CONSTRUCTION FEES,2103011610,4013605
02.10.2019,HOUSING HRA,POTTER RAPER LTD,"1,207.83",CAPITAL PS (HRA),CONSTRUCTION FEES  - EXTERNAL,5902380700,1009369
02.10.2019,HOUSING HRA,CRL SURVEYS LTD,"2,645.00",CAPITAL PS (HRA),CONSTRUCTION FEES  - EXTERNAL,5902380841,1000082820
02.10.2019,HOUSING HRA,A & E ELKINS LTD,"4,502.69",CAPITAL PS (HRA),CONSTRUCTION MAIN CONTRACT -CERTIFICATED,2103011611,4012501
02.10.2019,HOUSING HRA,STANDAGE & CO LTD,"95,128.81",CAPITAL PS (HRA),CONSTRUCTION MAIN CONTRACT -CERTIFICATED,2103010845,4002817
02.10.2019,LEISURE DIRECTORATE,WARWICK LANDSCAPING LTD,"20,600.00",ACCOMODATION,OTHER R&M,2103010842,3000001705
02.10.2019,LEISURE DIRECTORATE,FRIENDS OF PASLEY PARK,800,SOUTHWARK FESTIVAL FUND,OP LEASE/HIRE CHARGES:PLANT/EQUIP/FURNIT,5902380005,1000074848
02.10.2019,MODERNISATION HGF,DART VALLEY SYSTEMS LTD,642.11,160 TOOLEY ST.,BUILDING R&M,2103010846,3000002091
02.10.2019,MODERNISATION HGF,MAYA INFORMATION SYSTEMS LTD,"4,000.00",APPLICATIONS,CONSULTANTS SERVICES,5902380918,1000082118
02.10.2019,MODERNISATION HGF,DAISY COMMUNICATIONS LTD,"12,319.78",IT MANAGEMENT,DATA COMMUNICATIONS,5902380740,1000075666
02.10.2019,MODERNISATION HGF,TELEFONICA O2 UK LTD,552.89,IT MANAGEMENT,TELEPHONES (MOBILES),5902380730,11269631
02.10.2019,MODERNISATION HGF,TELEFONICA O2 UK LTD,"54,632.17",IT MANAGEMENT,TELEPHONES (MOBILES),5902380730,11269631
02.10.2019,NEW SOUTHWARK BUILDING SERVICES,TRAVIS PERKINS TRADING COMPANY LTD,389.49,BERMONDSEY DD,MATERIALS,5902380608,1514319
02.10.2019,NEW SOUTHWARK BUILDING SERVICES,TRAVIS PERKINS TRADING COMPANY LTD,417,BOROUGH & BANKSIDE DD,MATERIALS,5902380869,1514319
02.10.2019,NEW SOUTHWARK BUILDING SERVICES,TRAVIS PERKINS TRADING COMPANY LTD,"1,406.03",BOROUGH & BANKSIDE DD,MATERIALS,5902380613,1514319
02.10.2019,NEW SOUTHWARK BUILDING SERVICES,MULTI INSTALLATIONS LTD,"1,268.00",BUSINESS SUPPORT,TRAINING,5902380835,1000051777
02.10.2019,NEW SOUTHWARK BUILDING SERVICES,TRAVIS PERKINS TRADING COMPANY LTD,289.07,CAMBERWELL DD,MATERIALS,5902380758,1514319
02.10.2019,NEW SOUTHWARK BUILDING SERVICES,TRAVIS PERKINS TRADING COMPANY LTD,289.07,CAMBERWELL DD,MATERIALS,5902380869,1514319
02.10.2019,NEW SOUTHWARK BUILDING SERVICES,TRAVIS PERKINS TRADING COMPANY LTD,294.49,CAMBERWELL DD,MATERIALS,5902380608,1514319
02.10.2019,NEW SOUTHWARK BUILDING SERVICES,TRAVIS PERKINS TRADING COMPANY LTD,300,ELECTRICIANS - DAY TO DAY,MATERIALS,5902380929,1514319
02.10.2019,NEW SOUTHWARK BUILDING SERVICES,TRAVIS PERKINS TRADING COMPANY LTD,510,ELECTRICIANS - DAY TO DAY,MATERIALS,5902380613,1514319
02.10.2019,NEW SOUTHWARK BUILDING SERVICES,TRAVIS PERKINS TRADING COMPANY LTD,405,ELECTRICIANS - SUPPORTED HOUSING,MATERIALS,5902380666,1514319
02.10.2019,NEW SOUTHWARK BUILDING SERVICES,TRAVIS PERKINS TRADING COMPANY LTD,289.07,NUNHEAD DD,MATERIALS,5902380926,1514319
02.10.2019,NEW SOUTHWARK BUILDING SERVICES,TRAVIS PERKINS TRADING COMPANY LTD,316.57,NUNHEAD DD,MATERIALS,5902380608,1514319
02.10.2019,NEW SOUTHWARK BUILDING SERVICES,TRAVIS PERKINS TRADING COMPANY LTD,322.73,NUNHEAD DD,MATERIALS,5902380613,1514319
02.10.2019,NEW SOUTHWARK BUILDING SERVICES,TRAVIS PERKINS TRADING COMPANY LTD,340.83,NUNHEAD DD,MATERIALS,5902380608,1514319
02.10.2019,NEW SOUTHWARK BUILDING SERVICES,TRAVIS PERKINS TRADING COMPANY LTD,424,NUNHEAD DD,MATERIALS,5902380927,1514319
02.10.2019,NEW SOUTHWARK BUILDING SERVICES,TRAVIS PERKINS TRADING COMPANY LTD,559.1,PECKHAM DD,MATERIALS,5902380612,1514319
02.10.2019,NEW SOUTHWARK BUILDING SERVICES,TRAVIS PERKINS TRADING COMPANY LTD,263.5,R & M OVERHEADS,MATERIALS,5902380666,1514319
02.10.2019,NEW SOUTHWARK BUILDING SERVICES,TRAVIS PERKINS TRADING COMPANY LTD,287.33,R & M OVERHEADS,MATERIALS,5902380666,1514319
02.10.2019,NEW SOUTHWARK BUILDING SERVICES,TRAVIS PERKINS TRADING COMPANY LTD,489.2,R & M OVERHEADS,MATERIALS,5902380613,1514319
02.10.2019,NEW SOUTHWARK BUILDING SERVICES,TRAVIS PERKINS TRADING COMPANY LTD,"1,418.00",R & M OVERHEADS,MATERIALS,5902380698,1514319
02.10.2019,NEW SOUTHWARK BUILDING SERVICES,TRAVIS PERKINS TRADING COMPANY LTD,"1,900.00",R & M OVERHEADS,MATERIALS,5902380698,1514319
02.10.2019,NEW SOUTHWARK BUILDING SERVICES,TRAVIS PERKINS TRADING COMPANY LTD,267.77,ROTHERHITHE DD,MATERIALS,5902380666,1514319
02.10.2019,NEW SOUTHWARK BUILDING SERVICES,MULTI-INSTALLATIONS LTD,959.14,SBS - HOLDING ACCOUNT,OTHER CONTRACTORS,2103010843,3000000595
02.10.2019,NEW SOUTHWARK BUILDING SERVICES,MASHER BROTHERS LTD,"4,413.36",SBS - HOLDING ACCOUNT,OTHER CONTRACTORS,2103010847,3000001100
02.10.2019,NEW SOUTHWARK BUILDING SERVICES,ALLIED REMEDIAL TREATMENTS LTD,"4,922.47",SBS - HOLDING ACCOUNT,OTHER CONTRACTORS,2103010844,4000538
02.10.2019,NEW SOUTHWARK BUILDING SERVICES,MASHER BROTHERS LTD,"17,613.55",SBS - HOLDING ACCOUNT,OTHER CONTRACTORS,2103010848,3000001100
02.10.2019,NEW SOUTHWARK BUILDING SERVICES,TMG TRADING LTD,"21,458.19",SBS - HOLDING ACCOUNT,OTHER CONTRACTORS,2103010841,3000002073
02.10.2019,NEW SOUTHWARK BUILDING SERVICES,TRAVIS PERKINS TRADING COMPANY LTD,267.05,SBS AIDS AND ADAPTATIONS,MATERIALS,5902380608,1514319
02.10.2019,NEW SOUTHWARK BUILDING SERVICES,TRAVIS PERKINS TRADING COMPANY LTD,291.74,SBS AIDS AND ADAPTATIONS,MATERIALS,5902380666,1514319
02.10.2019,NEW SOUTHWARK BUILDING SERVICES,TRAVIS PERKINS TRADING COMPANY LTD,368,SBS AIDS AND ADAPTATIONS,MATERIALS,5902380666,1514319
02.10.2019,NEW SOUTHWARK BUILDING SERVICES,TRAVIS PERKINS TRADING COMPANY LTD,"1,167.71",SBS AIDS AND ADAPTATIONS,MATERIALS,5902380921,1514319
02.10.2019,NEW SOUTHWARK BUILDING SERVICES,TRAVIS PERKINS TRADING COMPANY LTD,299.86,SBS COMMUNAL REPAIRS,MATERIALS,5902380607,1514319
02.10.2019,NEW SOUTHWARK BUILDING SERVICES,PEARSON GLAZING LIMITED,390,SBS COMMUNAL REPAIRS,MATERIALS,5902380746,1891977
02.10.2019,NEW SOUTHWARK BUILDING SERVICES,TRAVIS PERKINS TRADING COMPANY LTD,289.95,SBS IN-HOUR EMERGENCIES,MATERIALS,5902380869,1514319
02.10.2019,NEW SOUTHWARK BUILDING SERVICES,TRAVIS PERKINS TRADING COMPANY LTD,650,SUPPORTED HOUSING - REPAIRS,MATERIALS,5902380923,1514319
02.10.2019,NEW SOUTHWARK BUILDING SERVICES,TRAVIS PERKINS TRADING COMPANY LTD,287.33,WALWORTH DD,MATERIALS,5902380758,1514319
02.10.2019,PUBLIC HEALTH,CHELSEA AND WESTMINSTER HOSPITAL,259.32,SEXUAL HEALTH - STI,EXTERNAL AGENCIES AND BODIES,5902380594,1000072053
02.10.2019,PUBLIC HEALTH,WALSALL HEALTHCARE NHS TRUST,274,SEXUAL HEALTH - STI,EXTERNAL AGENCIES AND BODIES,5902380615,1000079986
02.10.2019,PUBLIC HEALTH,CHELSEA AND WESTMINSTER HOSPITAL,305.25,SEXUAL HEALTH - STI,EXTERNAL AGENCIES AND BODIES,5902380598,1000072053
02.10.2019,PUBLIC HEALTH,CHELSEA AND WESTMINSTER HOSPITAL,376.83,SEXUAL HEALTH - STI,EXTERNAL AGENCIES AND BODIES,5902380595,1000072053
02.10.2019,REGENERATION,CBS MAINTENANCE SERVICES LTD,287.5,CPHA  MANAGED PROPERTIES,BUILDING R&M,5902380830,1000072375
02.10.2019,REGENERATION,KENT COUNTY COUNCIL - LASER,469.89,CPHA SURPLUS,GAS,5902380784,1000012926
02.10.2019,REGENERATION,KENT COUNTY COUNCIL - LASER,496.29,CPHA SURPLUS,GAS,5902380701,1000012926
02.10.2019,REGENERATION,KENT COUNTY COUNCIL - LASER,"2,129.91",CPHA SURPLUS,GAS,5902380682,1000012926
02.10.2019,REGENERATION,KENT COUNTY COUNCIL - LASER,988.39,TOWER WORKSHOPS,ELECTRICITY,5902380893,1000012926
02.10.2019,RESIDENT SERVICES,HM COURTS & TRIBUNALS SERVICE,355,OPERATIONS/OFFICES ACCOMMODATION,LEGAL FEES & COURT COSTS,2103012177,1000075260
02.10.2019,RESIDENT SERVICES,HM COURTS & TRIBUNALS SERVICE,355,OPERATIONS/OFFICES ACCOMMODATION,LEGAL FEES & COURT COSTS,2103012178,1000075260
02.10.2019,RESIDENT SERVICES,HM COURTS & TRIBUNALS SERVICE,355,OPERATIONS/OFFICES ACCOMMODATION,LEGAL FEES & COURT COSTS,2103012182,1000075260
02.10.2019,RESIDENT SERVICES,HM COURTS & TRIBUNALS SERVICE,355,SPECIAL INVESTIGATIONS,LEGAL FEES & COURT COSTS,2103012186,1000075260
02.10.2019,RESIDENT SERVICES,HM COURTS & TRIBUNALS SERVICE,355,TA ESTATE VOIDS,LEGAL FEES & COURT COSTS,2103012184,1000075260
02.10.2019,RESIDENT SERVICES,SITTARA LTD,821,TA PLACEMENTS,EXTERNAL AGENCIES AND BODIES,5902380703,1000080857
02.10.2019,SOUTHWARK BUILDING SERVICES,TRAVIS PERKINS TRADING COMPANY LTD,275.97,R & M OVERHEADS,MATERIALS,5902380671,1514319
02.10.2019,SOUTHWARK BUILDING SERVICES,TRAVIS PERKINS TRADING COMPANY LTD,289.07,R & M OVERHEADS,MATERIALS,5902380829,1514319
02.10.2019,SOUTHWARK BUILDING SERVICES,TRAVIS PERKINS TRADING COMPANY LTD,385,R & M OVERHEADS,MATERIALS,5902380691,1514319
02.10.2019,SOUTHWARK BUILDING SERVICES,TRAVIS PERKINS TRADING COMPANY LTD,395.86,R & M OVERHEADS,MATERIALS,5902380710,1514319
02.10.2019,SOUTHWARK BUILDING SERVICES,TRAVIS PERKINS TRADING COMPANY LTD,524.8,R & M OVERHEADS,MATERIALS,5902380744,1514319
02.10.2019,SOUTHWARK BUILDING SERVICES,TRAVIS PERKINS TRADING COMPANY LTD,612,R & M OVERHEADS,MATERIALS,5902380899,1514319
02.10.2019,SOUTHWARK BUILDING SERVICES,TRAVIS PERKINS TRADING COMPANY LTD,380,STORES/LOGISTICS,CREDITORS -GR/IR CLEARING ACCOUNT,5902380915,1514319
02.10.2019,SOUTHWARK BUILDING SERVICES,TRAVIS PERKINS TRADING COMPANY LTD,800,STORES/LOGISTICS,CREDITORS -GR/IR CLEARING ACCOUNT,5902380608,1514319
03.10.2019,ADULT SOCIAL CARE,TFL TELESALES / OYSTER FULFILMENT,450, LD MGMT & SUPPORT,PUBLIC TRANSPORT,5902381136,1000059727
03.10.2019,ADULT SOCIAL CARE,REDACTED PERSONAL DATA,342.4,APPOINTEESHIPS,OTHER PAYMENTS FOR CLIENTS,REDACTED,REDACTED
03.10.2019,ADULT SOCIAL CARE,REDACTED PERSONAL DATA,400,APPOINTEESHIPS,OTHER PAYMENTS FOR CLIENTS,REDACTED,REDACTED
03.10.2019,ADULT SOCIAL CARE,ALLPAY LTD,282.01,CLIENT FINANCE TEAM,BANK CHARGES,5902381090,1000043001
03.10.2019,ADULT SOCIAL CARE,GET ASSIGNED LTD,"31,900.00",DISABILITIES LAC,RESIDENTIAL CARE,5902381081,1000081697
03.10.2019,ADULT SOCIAL CARE,GET ASSIGNED LTD,"32,860.00",DISABILITIES LAC,RESIDENTIAL CARE,5902381080,1000081697
03.10.2019,ADULT SOCIAL CARE,THE NEW SHOOTS,300,LD LTS 18-64,DAYCARE,2103012113,1000073970
03.10.2019,ADULT SOCIAL CARE,NATIONAL AUTISTIC SOCIETY CARE PACK,"1,272.72",LD LTS 18-64,DAYCARE,2103012114,1000020538
03.10.2019,ADULT SOCIAL CARE,KENT HARRIER PROPERTY MANAGEMENT,"1,446.00",LD LTS 18-64,EXTERNAL AGENCIES AND BODIES,2103012121,1000078130
03.10.2019,ADULT SOCIAL CARE,KENT HARRIER PROPERTY MANAGEMENT,"1,500.00",LD LTS 18-64,EXTERNAL AGENCIES AND BODIES,2103012112,1000078130
03.10.2019,ADULT SOCIAL CARE,SAGECARE LTD,387.2,LD LTS 18-64,HOMECARE - C&V,2103012000,1000080924
03.10.2019,ADULT SOCIAL CARE,SAGECARE LTD,890.78,LD LTS 18-64,HOMECARE - C&V,2103011880,1000080924
03.10.2019,ADULT SOCIAL CARE,SAGECARE LTD,944.89,LD LTS 18-64,HOMECARE - C&V,2103011937,1000080924
03.10.2019,ADULT SOCIAL CARE,SWK DISABLEMENT ASSN,"2,122.56",LD LTS 18-64,HOMECARE - C&V,2103011695,1000011698
03.10.2019,ADULT SOCIAL CARE,HEALTH PERSONNEL LTD,"3,676.00",LD LTS 18-64,RESIDENTIAL CARE,2103012125,1000076377
03.10.2019,ADULT SOCIAL CARE,SWK DISABLEMENT ASSN,271.8,LD LTS 18-64,SUPPORTED LIVING,2103011687,1000011698
03.10.2019,ADULT SOCIAL CARE,INSPIRE SUPPORT WORKERS LTD,324,LD LTS 18-64,SUPPORTED LIVING,2103012122,1000080725
03.10.2019,ADULT SOCIAL CARE,SWK DISABLEMENT ASSN,434.88,LD LTS 18-64,SUPPORTED LIVING,2103011697,1000011698
03.10.2019,ADULT SOCIAL CARE,CONTACT PROFESSIONALS,465,LD LTS 18-64,SUPPORTED LIVING,2103012124,1000057263
03.10.2019,ADULT SOCIAL CARE,SWK DISABLEMENT ASSN,724.8,LD LTS 18-64,SUPPORTED LIVING,2103011689,1000011698
03.10.2019,ADULT SOCIAL CARE,SWK DISABLEMENT ASSN,761.04,LD LTS 18-64,SUPPORTED LIVING,2103011729,1000011698
03.10.2019,ADULT SOCIAL CARE,RESOURCES FOR AUTISM,"1,054.50",LD LTS 18-64,SUPPORTED LIVING,2103012115,1000062540
03.10.2019,ADULT SOCIAL CARE,SWK DISABLEMENT ASSN,"1,123.44",LD LTS 18-64,SUPPORTED LIVING,2103011709,1000011698
03.10.2019,ADULT SOCIAL CARE,CONTACT PROFESSIONALS,"1,489.00",LD LTS 18-64,SUPPORTED LIVING,2103012116,1000057263
03.10.2019,ADULT SOCIAL CARE,CARE O LINE,"2,200.00",LD LTS 18-64,SUPPORTED LIVING,2103012127,11241743
03.10.2019,ADULT SOCIAL CARE,INSPIRE SUPPORT WORKERS LTD,"3,850.00",LD LTS 18-64,SUPPORTED LIVING,2103012110,1000080725
03.10.2019,ADULT SOCIAL CARE,REDACTED PERSONAL DATA,"3,682.28",LD LTS 18-64,SUPPORTED LIVING,REDACTED,REDACTED
03.10.2019,ADULT SOCIAL CARE,SWK DISABLEMENT ASSN,"1,522.08",LD LTS 65+,SUPPORTED LIVING,2103011669,1000011698
03.10.2019,ADULT SOCIAL CARE,SAGECARE LTD,628.68,MEM LTS 18-64,HOMECARE - C&V,2103011804,1000080924
03.10.2019,ADULT SOCIAL CARE,SAGECARE LTD,495.6,MEM LTS 65+,HOMECARE - C&V,2103011997,1000080924
03.10.2019,ADULT SOCIAL CARE,SAGECARE LTD,578.89,MEM LTS 65+,HOMECARE - C&V,2103011944,1000080924
03.10.2019,ADULT SOCIAL CARE,SAGECARE LTD,641.28,MEM LTS 65+,HOMECARE - C&V,2103011962,1000080924
03.10.2019,ADULT SOCIAL CARE,SAGECARE LTD,886.95,MEM LTS 65+,HOMECARE - C&V,2103011918,1000080924
03.10.2019,ADULT SOCIAL CARE,SAGECARE LTD,"1,090.74",MEM LTS 65+,HOMECARE - C&V,2103011950,1000080924
03.10.2019,ADULT SOCIAL CARE,SAGECARE LTD,"1,657.28",MEM LTS 65+,HOMECARE - C&V,2103011810,1000080924
03.10.2019,ADULT SOCIAL CARE,SAGECARE LTD,337.31,MH LTS 18-64,HOMECARE - C&V,2103011852,1000080924
03.10.2019,ADULT SOCIAL CARE,SAGECARE LTD,482.88,MH LTS 18-64,HOMECARE - C&V,2103012023,1000080924
03.10.2019,ADULT SOCIAL CARE,SAGECARE LTD,537.05,MH LTS 18-64,HOMECARE - C&V,2103011935,1000080924
03.10.2019,ADULT SOCIAL CARE,SWK DISABLEMENT ASSN,978.48,MH LTS 18-64,HOMECARE - C&V,2103011677,1000011698
03.10.2019,ADULT SOCIAL CARE,SAGECARE LTD,"1,357.76",MH LTS 18-64,HOMECARE - C&V,2103011919,1000080924
03.10.2019,ADULT SOCIAL CARE,SWK DISABLEMENT ASSN,362.4,MH LTS 18-64,HOMECARE - SPOT,2103011661,1000011698
03.10.2019,ADULT SOCIAL CARE,SWK DISABLEMENT ASSN,289.92,MH LTS 18-64,SUPPORTED LIVING,2103011663,1000011698
03.10.2019,ADULT SOCIAL CARE,SWK DISABLEMENT ASSN,289.92,MH LTS 18-64,SUPPORTED LIVING,2103011685,1000011698
03.10.2019,ADULT SOCIAL CARE,SWK DISABLEMENT ASSN,289.92,MH LTS 18-64,SUPPORTED LIVING,2103011691,1000011698
03.10.2019,ADULT SOCIAL CARE,SWK DISABLEMENT ASSN,289.92,MH LTS 18-64,SUPPORTED LIVING,2103011703,1000011698
03.10.2019,ADULT SOCIAL CARE,SWK DISABLEMENT ASSN,289.92,MH LTS 18-64,SUPPORTED LIVING,2103011705,1000011698
03.10.2019,ADULT SOCIAL CARE,SWK DISABLEMENT ASSN,289.92,MH LTS 18-64,SUPPORTED LIVING,2103011711,1000011698
03.10.2019,ADULT SOCIAL CARE,SWK DISABLEMENT ASSN,289.92,MH LTS 18-64,SUPPORTED LIVING,2103011731,1000011698
03.10.2019,ADULT SOCIAL CARE,SWK DISABLEMENT ASSN,326.16,MH LTS 18-64,SUPPORTED LIVING,2103011713,1000011698
03.10.2019,ADULT SOCIAL CARE,SWK DISABLEMENT ASSN,362.4,MH LTS 18-64,SUPPORTED LIVING,2103011657,1000011698
03.10.2019,ADULT SOCIAL CARE,SWK DISABLEMENT ASSN,362.4,MH LTS 18-64,SUPPORTED LIVING,2103011659,1000011698
03.10.2019,ADULT SOCIAL CARE,YOUNG FUTURES,385.8,MH LTS 18-64,SUPPORTED LIVING,2103012126,1000059563
03.10.2019,ADULT SOCIAL CARE,SWK DISABLEMENT ASSN,471.12,MH LTS 18-64,SUPPORTED LIVING,2103011727,1000011698
03.10.2019,ADULT SOCIAL CARE,RESOURCES FOR AUTISM,480,MH LTS 18-64,SUPPORTED LIVING,2103012118,1000062540
03.10.2019,ADULT SOCIAL CARE,SWK DISABLEMENT ASSN,489.24,MH LTS 18-64,SUPPORTED LIVING,2103011655,1000011698
03.10.2019,ADULT SOCIAL CARE,SWK DISABLEMENT ASSN,652.32,MH LTS 18-64,SUPPORTED LIVING,2103011673,1000011698
03.10.2019,ADULT SOCIAL CARE,SWK DISABLEMENT ASSN,"1,707.81",MH LTS 18-64,SUPPORTED LIVING,2103011717,1000011698
03.10.2019,ADULT SOCIAL CARE,SUPREME CARE SERVICES LTD,271.97,MH LTS 65+,HOMECARE - C&V,2103012059,1000059416
03.10.2019,ADULT SOCIAL CARE,SAGECARE LTD,487.26,MH LTS 65+,HOMECARE - C&V,2103011822,1000080924
03.10.2019,ADULT SOCIAL CARE,SAGECARE LTD,616.31,MH LTS 65+,HOMECARE - C&V,2103012022,1000080924
03.10.2019,ADULT SOCIAL CARE,SAGECARE LTD,782.69,MH LTS 65+,HOMECARE - C&V,2103011830,1000080924
03.10.2019,ADULT SOCIAL CARE,SAGECARE LTD,"1,569.38",MH LTS 65+,HOMECARE - C&V,2103011903,1000080924
03.10.2019,ADULT SOCIAL CARE,PHOENIX HEALTHCARE & RECRUITMENT,391.09,PHY LTS 18-64,DAYCARE,2103012120,1000065636
03.10.2019,ADULT SOCIAL CARE,SAGECARE LTD,253.96,PHY LTS 18-64,HOMECARE - C&V,2103011812,1000080924
03.10.2019,ADULT SOCIAL CARE,SAGECARE LTD,274.8,PHY LTS 18-64,HOMECARE - C&V,2103011860,1000080924
03.10.2019,ADULT SOCIAL CARE,SAGECARE LTD,291.39,PHY LTS 18-64,HOMECARE - C&V,2103012033,1000080924
03.10.2019,ADULT SOCIAL CARE,SAGECARE LTD,316.36,PHY LTS 18-64,HOMECARE - C&V,2103012007,1000080924
03.10.2019,ADULT SOCIAL CARE,SUPREME CARE SERVICES LTD,327.13,PHY LTS 18-64,HOMECARE - C&V,2103011790,1000059416
03.10.2019,ADULT SOCIAL CARE,SAGECARE LTD,337.23,PHY LTS 18-64,HOMECARE - C&V,2103011891,1000080924
03.10.2019,ADULT SOCIAL CARE,SAGECARE LTD,341.39,PHY LTS 18-64,HOMECARE - C&V,2103011953,1000080924
03.10.2019,ADULT SOCIAL CARE,SAGECARE LTD,345.63,PHY LTS 18-64,HOMECARE - C&V,2103011889,1000080924
03.10.2019,ADULT SOCIAL CARE,SAGECARE LTD,362.44,PHY LTS 18-64,HOMECARE - C&V,2103011910,1000080924
03.10.2019,ADULT SOCIAL CARE,SAGECARE LTD,378.88,PHY LTS 18-64,HOMECARE - C&V,2103011894,1000080924
03.10.2019,ADULT SOCIAL CARE,SAGECARE LTD,383,PHY LTS 18-64,HOMECARE - C&V,2103012054,1000080924
03.10.2019,ADULT SOCIAL CARE,SUPREME CARE SERVICES LTD,388.39,PHY LTS 18-64,HOMECARE - C&V,2103011761,1000059416
03.10.2019,ADULT SOCIAL CARE,SAGECARE LTD,399.6,PHY LTS 18-64,HOMECARE - C&V,2103011838,1000080924
03.10.2019,ADULT SOCIAL CARE,SAGECARE LTD,482.89,PHY LTS 18-64,HOMECARE - C&V,2103011835,1000080924
03.10.2019,ADULT SOCIAL CARE,SAGECARE LTD,495.6,PHY LTS 18-64,HOMECARE - C&V,2103011899,1000080924
03.10.2019,ADULT SOCIAL CARE,SAGECARE LTD,503.67,PHY LTS 18-64,HOMECARE - C&V,2103012028,1000080924
03.10.2019,ADULT SOCIAL CARE,SAGECARE LTD,524.54,PHY LTS 18-64,HOMECARE - C&V,2103011980,1000080924
03.10.2019,ADULT SOCIAL CARE,SAGECARE LTD,545.49,PHY LTS 18-64,HOMECARE - C&V,2103011961,1000080924
03.10.2019,ADULT SOCIAL CARE,SAGECARE LTD,574.59,PHY LTS 18-64,HOMECARE - C&V,2103011859,1000080924
03.10.2019,ADULT SOCIAL CARE,SAGECARE LTD,583,PHY LTS 18-64,HOMECARE - C&V,2103011845,1000080924
03.10.2019,ADULT SOCIAL CARE,SUPREME CARE SERVICES LTD,588.27,PHY LTS 18-64,HOMECARE - C&V,2103011756,1000059416
03.10.2019,ADULT SOCIAL CARE,SAGECARE LTD,591.34,PHY LTS 18-64,HOMECARE - C&V,2103011833,1000080924
03.10.2019,ADULT SOCIAL CARE,SUPREME CARE SERVICES LTD,634.76,PHY LTS 18-64,HOMECARE - C&V,2103011778,1000059416
03.10.2019,ADULT SOCIAL CARE,SAGECARE LTD,703.59,PHY LTS 18-64,HOMECARE - C&V,2103011853,1000080924
03.10.2019,ADULT SOCIAL CARE,SAGECARE LTD,713.22,PHY LTS 18-64,HOMECARE - C&V,2103011811,1000080924
03.10.2019,ADULT SOCIAL CARE,SAGECARE LTD,741.2,PHY LTS 18-64,HOMECARE - C&V,2103011989,1000080924
03.10.2019,ADULT SOCIAL CARE,SAGECARE LTD,770.16,PHY LTS 18-64,HOMECARE - C&V,2103011879,1000080924
03.10.2019,ADULT SOCIAL CARE,SAGECARE LTD,882.78,PHY LTS 18-64,HOMECARE - C&V,2103011834,1000080924
03.10.2019,ADULT SOCIAL CARE,SUPREME CARE SERVICES LTD,901.8,PHY LTS 18-64,HOMECARE - C&V,2103012060,1000059416
03.10.2019,ADULT SOCIAL CARE,SAGECARE LTD,936.9,PHY LTS 18-64,HOMECARE - C&V,2103011967,1000080924
03.10.2019,ADULT SOCIAL CARE,SAGECARE LTD,949.57,PHY LTS 18-64,HOMECARE - C&V,2103011857,1000080924
03.10.2019,ADULT SOCIAL CARE,SAGECARE LTD,978.24,PHY LTS 18-64,HOMECARE - C&V,2103011970,1000080924
03.10.2019,ADULT SOCIAL CARE,SAGECARE LTD,"1,048.28",PHY LTS 18-64,HOMECARE - C&V,2103011976,1000080924
03.10.2019,ADULT SOCIAL CARE,SAGECARE LTD,"1,073.92",PHY LTS 18-64,HOMECARE - C&V,2103011883,1000080924
03.10.2019,ADULT SOCIAL CARE,SAGECARE LTD,"1,136.64",PHY LTS 18-64,HOMECARE - C&V,2103012045,1000080924
03.10.2019,ADULT SOCIAL CARE,SAGECARE LTD,"1,174.23",PHY LTS 18-64,HOMECARE - C&V,2103012008,1000080924
03.10.2019,ADULT SOCIAL CARE,SAGECARE LTD,"1,398.72",PHY LTS 18-64,HOMECARE - C&V,2103012128,1000080924
03.10.2019,ADULT SOCIAL CARE,SAGECARE LTD,"1,398.72",PHY LTS 18-64,HOMECARE - C&V,2103012129,1000080924
03.10.2019,ADULT SOCIAL CARE,SAGECARE LTD,"1,436.16",PHY LTS 18-64,HOMECARE - C&V,2103011832,1000080924
03.10.2019,ADULT SOCIAL CARE,SUPREME CARE SERVICES LTD,"1,544.85",PHY LTS 18-64,HOMECARE - C&V,2103011757,1000059416
03.10.2019,ADULT SOCIAL CARE,SAGECARE LTD,"1,644.42",PHY LTS 18-64,HOMECARE - C&V,2103011983,1000080924
03.10.2019,ADULT SOCIAL CARE,SAGECARE LTD,"1,894.40",PHY LTS 18-64,HOMECARE - C&V,2103011987,1000080924
03.10.2019,ADULT SOCIAL CARE,SAGECARE LTD,"2,681.33",PHY LTS 18-64,HOMECARE - C&V,2103011866,1000080924
03.10.2019,ADULT SOCIAL CARE,SAGECARE LTD,266.45,PHY LTS 18-64,HOMECARE - SPOT,2103011861,1000080924
03.10.2019,ADULT SOCIAL CARE,SWK DISABLEMENT ASSN,342,PHY LTS 18-64,HOMECARE - SPOT,2103011653,1000011698
03.10.2019,ADULT SOCIAL CARE,SERVESOUL LTD,408.91,PHY LTS 18-64,HOMECARE - SPOT,2103012067,1000081503
03.10.2019,ADULT SOCIAL CARE,SWK DISABLEMENT ASSN,"1,147.60",PHY LTS 18-64,HOMECARE - SPOT,2103011679,1000011698
03.10.2019,ADULT SOCIAL CARE,SAGECARE LTD,262.36,PHY LTS 65+,HOMECARE - C&V,2103011926,1000080924
03.10.2019,ADULT SOCIAL CARE,SAGECARE LTD,270.68,PHY LTS 65+,HOMECARE - C&V,2103011960,1000080924
03.10.2019,ADULT SOCIAL CARE,SUPREME CARE SERVICES LTD,271.48,PHY LTS 65+,HOMECARE - C&V,2103011773,1000059416
03.10.2019,ADULT SOCIAL CARE,SAGECARE LTD,274.84,PHY LTS 65+,HOMECARE - C&V,2103011945,1000080924
03.10.2019,ADULT SOCIAL CARE,SAGECARE LTD,303.91,PHY LTS 65+,HOMECARE - C&V,2103011850,1000080924
03.10.2019,ADULT SOCIAL CARE,SAGECARE LTD,329.02,PHY LTS 65+,HOMECARE - C&V,2103011932,1000080924
03.10.2019,ADULT SOCIAL CARE,SAGECARE LTD,331.42,PHY LTS 65+,HOMECARE - C&V,2103011941,1000080924
03.10.2019,ADULT SOCIAL CARE,SAGECARE LTD,333.06,PHY LTS 65+,HOMECARE - C&V,2103012048,1000080924
03.10.2019,ADULT SOCIAL CARE,SAGECARE LTD,341.39,PHY LTS 65+,HOMECARE - C&V,2103011800,1000080924
03.10.2019,ADULT SOCIAL CARE,SAGECARE LTD,345.56,PHY LTS 65+,HOMECARE - C&V,2103011931,1000080924
03.10.2019,ADULT SOCIAL CARE,SAGECARE LTD,349.72,PHY LTS 65+,HOMECARE - C&V,2103011995,1000080924
03.10.2019,ADULT SOCIAL CARE,SAGECARE LTD,349.72,PHY LTS 65+,HOMECARE - C&V,2103012029,1000080924
03.10.2019,ADULT SOCIAL CARE,SAGECARE LTD,349.72,PHY LTS 65+,HOMECARE - C&V,2103012036,1000080924
03.10.2019,ADULT SOCIAL CARE,SUPREME CARE SERVICES LTD,350.72,PHY LTS 65+,HOMECARE - C&V,2103011772,1000059416
03.10.2019,ADULT SOCIAL CARE,SAGECARE LTD,353.88,PHY LTS 65+,HOMECARE - C&V,2103011870,1000080924
03.10.2019,ADULT SOCIAL CARE,SAGECARE LTD,353.88,PHY LTS 65+,HOMECARE - C&V,2103011998,1000080924
03.10.2019,ADULT SOCIAL CARE,SAGECARE LTD,353.88,PHY LTS 65+,HOMECARE - C&V,2103012049,1000080924
03.10.2019,ADULT SOCIAL CARE,SAGECARE LTD,370.56,PHY LTS 65+,HOMECARE - C&V,2103011981,1000080924
03.10.2019,ADULT SOCIAL CARE,SAGECARE LTD,383.06,PHY LTS 65+,HOMECARE - C&V,2103011871,1000080924
03.10.2019,ADULT SOCIAL CARE,SAGECARE LTD,383.08,PHY LTS 65+,HOMECARE - C&V,2103011949,1000080924
03.10.2019,ADULT SOCIAL CARE,SAGECARE LTD,395.52,PHY LTS 65+,HOMECARE - C&V,2103011984,1000080924
03.10.2019,ADULT SOCIAL CARE,SAGECARE LTD,416.32,PHY LTS 65+,HOMECARE - C&V,2103011887,1000080924
03.10.2019,ADULT SOCIAL CARE,SUPREME CARE SERVICES LTD,417.57,PHY LTS 65+,HOMECARE - C&V,2103011777,1000059416
03.10.2019,ADULT SOCIAL CARE,SAGECARE LTD,420.55,PHY LTS 65+,HOMECARE - C&V,2103011817,1000080924
03.10.2019,ADULT SOCIAL CARE,SAGECARE LTD,428.79,PHY LTS 65+,HOMECARE - C&V,2103011808,1000080924
03.10.2019,ADULT SOCIAL CARE,SAGECARE LTD,445.64,PHY LTS 65+,HOMECARE - C&V,2103011963,1000080924
03.10.2019,ADULT SOCIAL CARE,SAGECARE LTD,458.05,PHY LTS 65+,HOMECARE - C&V,2103012020,1000080924
03.10.2019,ADULT SOCIAL CARE,SUPREME CARE SERVICES LTD,463.47,PHY LTS 65+,HOMECARE - C&V,2103011752,1000059416
03.10.2019,ADULT SOCIAL CARE,SAGECARE LTD,466.36,PHY LTS 65+,HOMECARE - C&V,2103011907,1000080924
03.10.2019,ADULT SOCIAL CARE,SUPREME CARE SERVICES LTD,467.6,PHY LTS 65+,HOMECARE - C&V,2103011788,1000059416
03.10.2019,ADULT SOCIAL CARE,SAGECARE LTD,470.5,PHY LTS 65+,HOMECARE - C&V,2103012015,1000080924
03.10.2019,ADULT SOCIAL CARE,SAGECARE LTD,474.66,PHY LTS 65+,HOMECARE - C&V,2103011991,1000080924
03.10.2019,ADULT SOCIAL CARE,SAGECARE LTD,482.85,PHY LTS 65+,HOMECARE - C&V,2103011900,1000080924
03.10.2019,ADULT SOCIAL CARE,SAGECARE LTD,482.92,PHY LTS 65+,HOMECARE - C&V,2103011909,1000080924
03.10.2019,ADULT SOCIAL CARE,SAGECARE LTD,483.12,PHY LTS 65+,HOMECARE - C&V,2103011906,1000080924
03.10.2019,ADULT SOCIAL CARE,SAGECARE LTD,487.28,PHY LTS 65+,HOMECARE - C&V,2103011807,1000080924
03.10.2019,ADULT SOCIAL CARE,SAGECARE LTD,490.19,PHY LTS 65+,HOMECARE - C&V,2103011947,1000080924
03.10.2019,ADULT SOCIAL CARE,SAGECARE LTD,495.32,PHY LTS 65+,HOMECARE - C&V,2103011867,1000080924
03.10.2019,ADULT SOCIAL CARE,SAGECARE LTD,499.63,PHY LTS 65+,HOMECARE - C&V,2103011924,1000080924
03.10.2019,ADULT SOCIAL CARE,SAGECARE LTD,512.14,PHY LTS 65+,HOMECARE - C&V,2103011892,1000080924
03.10.2019,ADULT SOCIAL CARE,SAGECARE LTD,524.5,PHY LTS 65+,HOMECARE - C&V,2103012047,1000080924
03.10.2019,ADULT SOCIAL CARE,SUPREME CARE SERVICES LTD,526.17,PHY LTS 65+,HOMECARE - C&V,2103011783,1000059416
03.10.2019,ADULT SOCIAL CARE,SAGECARE LTD,528.64,PHY LTS 65+,HOMECARE - C&V,2103012026,1000080924
03.10.2019,ADULT SOCIAL CARE,SAGECARE LTD,537.12,PHY LTS 65+,HOMECARE - C&V,2103012039,1000080924
03.10.2019,ADULT SOCIAL CARE,SAGECARE LTD,548.73,PHY LTS 65+,HOMECARE - C&V,2103012017,1000080924
03.10.2019,ADULT SOCIAL CARE,SAGECARE LTD,553.79,PHY LTS 65+,HOMECARE - C&V,2103011862,1000080924
03.10.2019,ADULT SOCIAL CARE,SAGECARE LTD,553.92,PHY LTS 65+,HOMECARE - C&V,2103011968,1000080924
03.10.2019,ADULT SOCIAL CARE,SUPREME CARE SERVICES LTD,557.67,PHY LTS 65+,HOMECARE - C&V,2103012062,1000059416
03.10.2019,ADULT SOCIAL CARE,SAGECARE LTD,566.3,PHY LTS 65+,HOMECARE - C&V,2103011873,1000080924
03.10.2019,ADULT SOCIAL CARE,SAGECARE LTD,578.81,PHY LTS 65+,HOMECARE - C&V,2103012050,1000080924
03.10.2019,ADULT SOCIAL CARE,SAGECARE LTD,591.31,PHY LTS 65+,HOMECARE - C&V,2103011813,1000080924
03.10.2019,ADULT SOCIAL CARE,SUPREME CARE SERVICES LTD,597.03,PHY LTS 65+,HOMECARE - C&V,2103012058,1000059416
03.10.2019,ADULT SOCIAL CARE,SAGECARE LTD,600.93,PHY LTS 65+,HOMECARE - C&V,2103011839,1000080924
03.10.2019,ADULT SOCIAL CARE,SUPREME CARE SERVICES LTD,603.71,PHY LTS 65+,HOMECARE - C&V,2103011764,1000059416
03.10.2019,ADULT SOCIAL CARE,SAGECARE LTD,612.07,PHY LTS 65+,HOMECARE - C&V,2103011840,1000080924
03.10.2019,ADULT SOCIAL CARE,SAGECARE LTD,612.09,PHY LTS 65+,HOMECARE - C&V,2103011982,1000080924
03.10.2019,ADULT SOCIAL CARE,SUPREME CARE SERVICES LTD,613.82,PHY LTS 65+,HOMECARE - C&V,2103011792,1000059416
03.10.2019,ADULT SOCIAL CARE,SAGECARE LTD,636.98,PHY LTS 65+,HOMECARE - C&V,2103011814,1000080924
03.10.2019,ADULT SOCIAL CARE,SAGECARE LTD,637.07,PHY LTS 65+,HOMECARE - C&V,2103011973,1000080924
03.10.2019,ADULT SOCIAL CARE,SAGECARE LTD,638.78,PHY LTS 65+,HOMECARE - C&V,2103011974,1000080924
03.10.2019,ADULT SOCIAL CARE,SUPREME CARE SERVICES LTD,651.32,PHY LTS 65+,HOMECARE - C&V,2103011787,1000059416
03.10.2019,ADULT SOCIAL CARE,SAGECARE LTD,653.7,PHY LTS 65+,HOMECARE - C&V,2103011849,1000080924
03.10.2019,ADULT SOCIAL CARE,SAGECARE LTD,662.04,PHY LTS 65+,HOMECARE - C&V,2103011958,1000080924
03.10.2019,ADULT SOCIAL CARE,SAGECARE LTD,662.04,PHY LTS 65+,HOMECARE - C&V,2103011994,1000080924
03.10.2019,ADULT SOCIAL CARE,SAGECARE LTD,674.52,PHY LTS 65+,HOMECARE - C&V,2103011802,1000080924
03.10.2019,ADULT SOCIAL CARE,SAGECARE LTD,674.56,PHY LTS 65+,HOMECARE - C&V,2103011977,1000080924
03.10.2019,ADULT SOCIAL CARE,SAGECARE LTD,678.88,PHY LTS 65+,HOMECARE - C&V,2103011846,1000080924
03.10.2019,ADULT SOCIAL CARE,SAGECARE LTD,686.99,PHY LTS 65+,HOMECARE - C&V,2103012003,1000080924
03.10.2019,ADULT SOCIAL CARE,SAGECARE LTD,695.35,PHY LTS 65+,HOMECARE - C&V,2103011972,1000080924
03.10.2019,ADULT SOCIAL CARE,SAGECARE LTD,695.54,PHY LTS 65+,HOMECARE - C&V,2103012051,1000080924
03.10.2019,ADULT SOCIAL CARE,SAGECARE LTD,711.92,PHY LTS 65+,HOMECARE - C&V,2103011824,1000080924
03.10.2019,ADULT SOCIAL CARE,SUPREME CARE SERVICES LTD,714.07,PHY LTS 65+,HOMECARE - C&V,2103011774,1000059416
03.10.2019,ADULT SOCIAL CARE,SAGECARE LTD,716.34,PHY LTS 65+,HOMECARE - C&V,2103011816,1000080924
03.10.2019,ADULT SOCIAL CARE,SAGECARE LTD,720.43,PHY LTS 65+,HOMECARE - C&V,2103011828,1000080924
03.10.2019,ADULT SOCIAL CARE,SAGECARE LTD,720.52,PHY LTS 65+,HOMECARE - C&V,2103012040,1000080924
03.10.2019,ADULT SOCIAL CARE,SAGECARE LTD,724.42,PHY LTS 65+,HOMECARE - C&V,2103011890,1000080924
03.10.2019,ADULT SOCIAL CARE,SAGECARE LTD,724.49,PHY LTS 65+,HOMECARE - C&V,2103011934,1000080924
03.10.2019,ADULT SOCIAL CARE,SAGECARE LTD,728.66,PHY LTS 65+,HOMECARE - C&V,2103011922,1000080924
03.10.2019,ADULT SOCIAL CARE,SAGECARE LTD,733,PHY LTS 65+,HOMECARE - C&V,2103011825,1000080924
03.10.2019,ADULT SOCIAL CARE,SAGECARE LTD,737.16,PHY LTS 65+,HOMECARE - C&V,2103011928,1000080924
03.10.2019,ADULT SOCIAL CARE,SAGECARE LTD,741.15,PHY LTS 65+,HOMECARE - C&V,2103011841,1000080924
03.10.2019,ADULT SOCIAL CARE,SAGECARE LTD,741.22,PHY LTS 65+,HOMECARE - C&V,2103011956,1000080924
03.10.2019,ADULT SOCIAL CARE,SAGECARE LTD,753.76,PHY LTS 65+,HOMECARE - C&V,2103012030,1000080924
03.10.2019,ADULT SOCIAL CARE,SAGECARE LTD,757.88,PHY LTS 65+,HOMECARE - C&V,2103011990,1000080924
03.10.2019,ADULT SOCIAL CARE,SAGECARE LTD,770.32,PHY LTS 65+,HOMECARE - C&V,2103011964,1000080924
03.10.2019,ADULT SOCIAL CARE,SAGECARE LTD,770.39,PHY LTS 65+,HOMECARE - C&V,2103011939,1000080924
03.10.2019,ADULT SOCIAL CARE,SAGECARE LTD,778.56,PHY LTS 65+,HOMECARE - C&V,2103011886,1000080924
03.10.2019,ADULT SOCIAL CARE,SAGECARE LTD,786.92,PHY LTS 65+,HOMECARE - C&V,2103011831,1000080924
03.10.2019,ADULT SOCIAL CARE,SAGECARE LTD,787.05,PHY LTS 65+,HOMECARE - C&V,2103011895,1000080924
03.10.2019,ADULT SOCIAL CARE,SAGECARE LTD,795.28,PHY LTS 65+,HOMECARE - C&V,2103011966,1000080924
03.10.2019,ADULT SOCIAL CARE,SAGECARE LTD,799.51,PHY LTS 65+,HOMECARE - C&V,2103011875,1000080924
03.10.2019,ADULT SOCIAL CARE,SAGECARE LTD,816.2,PHY LTS 65+,HOMECARE - C&V,2103011993,1000080924
03.10.2019,ADULT SOCIAL CARE,SAGECARE LTD,816.26,PHY LTS 65+,HOMECARE - C&V,2103011905,1000080924
03.10.2019,ADULT SOCIAL CARE,SAGECARE LTD,820.35,PHY LTS 65+,HOMECARE - C&V,2103012027,1000080924
03.10.2019,ADULT SOCIAL CARE,SAGECARE LTD,832.66,PHY LTS 65+,HOMECARE - C&V,2103011943,1000080924
03.10.2019,ADULT SOCIAL CARE,SUPREME CARE SERVICES LTD,839.38,PHY LTS 65+,HOMECARE - C&V,2103011789,1000059416
03.10.2019,ADULT SOCIAL CARE,SAGECARE LTD,849.32,PHY LTS 65+,HOMECARE - C&V,2103012044,1000080924
03.10.2019,ADULT SOCIAL CARE,SAGECARE LTD,874.42,PHY LTS 65+,HOMECARE - C&V,2103011975,1000080924
03.10.2019,ADULT SOCIAL CARE,SAGECARE LTD,878.63,PHY LTS 65+,HOMECARE - C&V,2103011868,1000080924
03.10.2019,ADULT SOCIAL CARE,SAGECARE LTD,895.28,PHY LTS 65+,HOMECARE - C&V,2103011893,1000080924
03.10.2019,ADULT SOCIAL CARE,SAGECARE LTD,903.59,PHY LTS 65+,HOMECARE - C&V,2103011820,1000080924
03.10.2019,ADULT SOCIAL CARE,SUPREME CARE SERVICES LTD,904.72,PHY LTS 65+,HOMECARE - C&V,2103011751,1000059416
03.10.2019,ADULT SOCIAL CARE,SAGECARE LTD,907.5,PHY LTS 65+,HOMECARE - C&V,2103011844,1000080924
03.10.2019,ADULT SOCIAL CARE,SAGECARE LTD,920.26,PHY LTS 65+,HOMECARE - C&V,2103011917,1000080924
03.10.2019,ADULT SOCIAL CARE,SAGECARE LTD,923.59,PHY LTS 65+,HOMECARE - C&V,2103011842,1000080924
03.10.2019,ADULT SOCIAL CARE,SAGECARE LTD,941.08,PHY LTS 65+,HOMECARE - C&V,2103012038,1000080924
03.10.2019,ADULT SOCIAL CARE,SAGECARE LTD,945.24,PHY LTS 65+,HOMECARE - C&V,2103012024,1000080924
03.10.2019,ADULT SOCIAL CARE,SAGECARE LTD,949.27,PHY LTS 65+,HOMECARE - C&V,2103011920,1000080924
03.10.2019,ADULT SOCIAL CARE,SAGECARE LTD,953.55,PHY LTS 65+,HOMECARE - C&V,2103011818,1000080924
03.10.2019,ADULT SOCIAL CARE,SUPREME CARE SERVICES LTD,958.25,PHY LTS 65+,HOMECARE - C&V,2103011782,1000059416
03.10.2019,ADULT SOCIAL CARE,SAGECARE LTD,965.07,PHY LTS 65+,HOMECARE - C&V,2103011951,1000080924
03.10.2019,ADULT SOCIAL CARE,SAGECARE LTD,965.93,PHY LTS 65+,HOMECARE - C&V,2103011986,1000080924
03.10.2019,ADULT SOCIAL CARE,SAGECARE LTD,966.04,PHY LTS 65+,HOMECARE - C&V,2103011901,1000080924
03.10.2019,ADULT SOCIAL CARE,SAGECARE LTD,970.18,PHY LTS 65+,HOMECARE - C&V,2103011799,1000080924
03.10.2019,ADULT SOCIAL CARE,SAGECARE LTD,974.25,PHY LTS 65+,HOMECARE - C&V,2103012005,1000080924
03.10.2019,ADULT SOCIAL CARE,SAGECARE LTD,986.88,PHY LTS 65+,HOMECARE - C&V,2103012035,1000080924
03.10.2019,ADULT SOCIAL CARE,SAGECARE LTD,990.98,PHY LTS 65+,HOMECARE - C&V,2103012031,1000080924
03.10.2019,ADULT SOCIAL CARE,SAGECARE LTD,"1,011.78",PHY LTS 65+,HOMECARE - C&V,2103011992,1000080924
03.10.2019,ADULT SOCIAL CARE,SAGECARE LTD,"1,028.38",PHY LTS 65+,HOMECARE - C&V,2103011826,1000080924
03.10.2019,ADULT SOCIAL CARE,SAGECARE LTD,"1,028.44",PHY LTS 65+,HOMECARE - C&V,2103012011,1000080924
03.10.2019,ADULT SOCIAL CARE,SAGECARE LTD,"1,040.83",PHY LTS 65+,HOMECARE - C&V,2103011823,1000080924
03.10.2019,ADULT SOCIAL CARE,SAGECARE LTD,"1,044.98",PHY LTS 65+,HOMECARE - C&V,2103012043,1000080924
03.10.2019,ADULT SOCIAL CARE,SUPREME CARE SERVICES LTD,"1,094.18",PHY LTS 65+,HOMECARE - C&V,2103011769,1000059416
03.10.2019,ADULT SOCIAL CARE,SAGECARE LTD,"1,099.08",PHY LTS 65+,HOMECARE - C&V,2103011819,1000080924
03.10.2019,ADULT SOCIAL CARE,SAGECARE LTD,"1,103.52",PHY LTS 65+,HOMECARE - C&V,2103011897,1000080924
03.10.2019,ADULT SOCIAL CARE,SAGECARE LTD,"1,111.69",PHY LTS 65+,HOMECARE - C&V,2103011858,1000080924
03.10.2019,ADULT SOCIAL CARE,SAGECARE LTD,"1,120.17",PHY LTS 65+,HOMECARE - C&V,2103011978,1000080924
03.10.2019,ADULT SOCIAL CARE,SAGECARE LTD,"1,128.26",PHY LTS 65+,HOMECARE - C&V,2103012052,1000080924
03.10.2019,ADULT SOCIAL CARE,SAGECARE LTD,"1,132.68",PHY LTS 65+,HOMECARE - C&V,2103011827,1000080924
03.10.2019,ADULT SOCIAL CARE,SAGECARE LTD,"1,136.74",PHY LTS 65+,HOMECARE - C&V,2103012006,1000080924
03.10.2019,ADULT SOCIAL CARE,SAGECARE LTD,"1,149.21",PHY LTS 65+,HOMECARE - C&V,2103011908,1000080924
03.10.2019,ADULT SOCIAL CARE,SAGECARE LTD,"1,190.84",PHY LTS 65+,HOMECARE - C&V,2103011809,1000080924
03.10.2019,ADULT SOCIAL CARE,SAGECARE LTD,"1,190.89",PHY LTS 65+,HOMECARE - C&V,2103012013,1000080924
03.10.2019,ADULT SOCIAL CARE,SAGECARE LTD,"1,215.67",PHY LTS 65+,HOMECARE - C&V,2103011913,1000080924
03.10.2019,ADULT SOCIAL CARE,SAGECARE LTD,"1,215.85",PHY LTS 65+,HOMECARE - C&V,2103011896,1000080924
03.10.2019,ADULT SOCIAL CARE,SAGECARE LTD,"1,219.83",PHY LTS 65+,HOMECARE - C&V,2103011882,1000080924
03.10.2019,ADULT SOCIAL CARE,SAGECARE LTD,"1,236.64",PHY LTS 65+,HOMECARE - C&V,2103012004,1000080924
03.10.2019,ADULT SOCIAL CARE,SAGECARE LTD,"1,261.67",PHY LTS 65+,HOMECARE - C&V,2103011843,1000080924
03.10.2019,ADULT SOCIAL CARE,SAGECARE LTD,"1,269.91",PHY LTS 65+,HOMECARE - C&V,2103012053,1000080924
03.10.2019,ADULT SOCIAL CARE,SAGECARE LTD,"1,344.82",PHY LTS 65+,HOMECARE - C&V,2103011969,1000080924
03.10.2019,ADULT SOCIAL CARE,SAGECARE LTD,"1,357.22",PHY LTS 65+,HOMECARE - C&V,2103012001,1000080924
03.10.2019,ADULT SOCIAL CARE,SUPREME CARE SERVICES LTD,"1,519.72",PHY LTS 65+,HOMECARE - C&V,2103011770,1000059416
03.10.2019,ADULT SOCIAL CARE,SAGECARE LTD,"1,544.75",PHY LTS 65+,HOMECARE - C&V,2103011877,1000080924
03.10.2019,ADULT SOCIAL CARE,SAGECARE LTD,"1,557.26",PHY LTS 65+,HOMECARE - C&V,2103011971,1000080924
03.10.2019,ADULT SOCIAL CARE,SUPREME CARE SERVICES LTD,"1,635.83",PHY LTS 65+,HOMECARE - C&V,2103011766,1000059416
03.10.2019,ADULT SOCIAL CARE,SUPREME CARE SERVICES LTD,"1,653.32",PHY LTS 65+,HOMECARE - C&V,2103011794,1000059416
03.10.2019,ADULT SOCIAL CARE,SAGECARE LTD,"1,655.77",PHY LTS 65+,HOMECARE - C&V,2103011927,1000080924
03.10.2019,ADULT SOCIAL CARE,SAGECARE LTD,"2,086.34",PHY LTS 65+,HOMECARE - C&V,2103011930,1000080924
03.10.2019,ADULT SOCIAL CARE,SAGECARE LTD,"2,102.98",PHY LTS 65+,HOMECARE - C&V,2103012055,1000080924
03.10.2019,ADULT SOCIAL CARE,SAGECARE LTD,"2,103.03",PHY LTS 65+,HOMECARE - C&V,2103011948,1000080924
03.10.2019,ADULT SOCIAL CARE,SAGECARE LTD,"2,173.74",PHY LTS 65+,HOMECARE - C&V,2103011798,1000080924
03.10.2019,ADULT SOCIAL CARE,SAGECARE LTD,"2,190.44",PHY LTS 65+,HOMECARE - C&V,2103012037,1000080924
03.10.2019,ADULT SOCIAL CARE,SAGECARE LTD,"2,196.33",PHY LTS 65+,HOMECARE - C&V,2103011885,1000080924
03.10.2019,ADULT SOCIAL CARE,SAGECARE LTD,"2,215.38",PHY LTS 65+,HOMECARE - C&V,2103011884,1000080924
03.10.2019,ADULT SOCIAL CARE,SAGECARE LTD,"2,244.11",PHY LTS 65+,HOMECARE - C&V,2103011959,1000080924
03.10.2019,ADULT SOCIAL CARE,SAGECARE LTD,"2,286.41",PHY LTS 65+,HOMECARE - C&V,2103011881,1000080924
03.10.2019,ADULT SOCIAL CARE,SAGECARE LTD,"2,323.47",PHY LTS 65+,HOMECARE - C&V,2103011821,1000080924
03.10.2019,ADULT SOCIAL CARE,SAGECARE LTD,"2,352.74",PHY LTS 65+,HOMECARE - C&V,2103011864,1000080924
03.10.2019,ADULT SOCIAL CARE,SAGECARE LTD,"2,365.11",PHY LTS 65+,HOMECARE - C&V,2103011872,1000080924
03.10.2019,ADULT SOCIAL CARE,SAGECARE LTD,"2,402.63",PHY LTS 65+,HOMECARE - C&V,2103012014,1000080924
03.10.2019,ADULT SOCIAL CARE,SAGECARE LTD,"2,423.33",PHY LTS 65+,HOMECARE - C&V,2103011878,1000080924
03.10.2019,ADULT SOCIAL CARE,SAGECARE LTD,"2,444.18",PHY LTS 65+,HOMECARE - C&V,2103012056,1000080924
03.10.2019,ADULT SOCIAL CARE,SAGECARE LTD,"2,465.06",PHY LTS 65+,HOMECARE - C&V,2103011863,1000080924
03.10.2019,ADULT SOCIAL CARE,SAGECARE LTD,"2,473.02",PHY LTS 65+,HOMECARE - C&V,2103012042,1000080924
03.10.2019,ADULT SOCIAL CARE,SAGECARE LTD,"2,993.35",PHY LTS 65+,HOMECARE - C&V,2103011803,1000080924
03.10.2019,ADULT SOCIAL CARE,SAGECARE LTD,"3,076.54",PHY LTS 65+,HOMECARE - C&V,2103011898,1000080924
03.10.2019,ADULT SOCIAL CARE,SERVESOUL LTD,262.87,PHY LTS 65+,HOMECARE - SPOT,2103012080,1000081503
03.10.2019,ADULT SOCIAL CARE,SERVESOUL LTD,292.08,PHY LTS 65+,HOMECARE - SPOT,2103012096,1000081503
03.10.2019,ADULT SOCIAL CARE,SWK DISABLEMENT ASSN,293.04,PHY LTS 65+,HOMECARE - SPOT,2103011707,1000011698
03.10.2019,ADULT SOCIAL CARE,SERVESOUL LTD,308.77,PHY LTS 65+,HOMECARE - SPOT,2103012103,1000081503
03.10.2019,ADULT SOCIAL CARE,SERVESOUL LTD,346.32,PHY LTS 65+,HOMECARE - SPOT,2103012066,1000081503
03.10.2019,ADULT SOCIAL CARE,SERVESOUL LTD,408.91,PHY LTS 65+,HOMECARE - SPOT,2103012071,1000081503
03.10.2019,ADULT SOCIAL CARE,SERVESOUL LTD,421.42,PHY LTS 65+,HOMECARE - SPOT,2103012094,1000081503
03.10.2019,ADULT SOCIAL CARE,SERVESOUL LTD,433.94,PHY LTS 65+,HOMECARE - SPOT,2103012099,1000081503
03.10.2019,ADULT SOCIAL CARE,SERVESOUL LTD,525.74,PHY LTS 65+,HOMECARE - SPOT,2103012077,1000081503
03.10.2019,ADULT SOCIAL CARE,SERVESOUL LTD,525.74,PHY LTS 65+,HOMECARE - SPOT,2103012084,1000081503
03.10.2019,ADULT SOCIAL CARE,SERVESOUL LTD,534.08,PHY LTS 65+,HOMECARE - SPOT,2103012085,1000081503
03.10.2019,ADULT SOCIAL CARE,SERVESOUL LTD,559.12,PHY LTS 65+,HOMECARE - SPOT,2103012074,1000081503
03.10.2019,ADULT SOCIAL CARE,SERVESOUL LTD,579.98,PHY LTS 65+,HOMECARE - SPOT,2103012079,1000081503
03.10.2019,ADULT SOCIAL CARE,SERVESOUL LTD,584.15,PHY LTS 65+,HOMECARE - SPOT,2103012090,1000081503
03.10.2019,ADULT SOCIAL CARE,SERVESOUL LTD,642.57,PHY LTS 65+,HOMECARE - SPOT,2103012076,1000081503
03.10.2019,ADULT SOCIAL CARE,SWK DISABLEMENT ASSN,792,PHY LTS 65+,HOMECARE - SPOT,2103011651,1000011698
03.10.2019,ADULT SOCIAL CARE,SAGECARE LTD,932.77,PHY LTS 65+,HOMECARE - SPOT,2103011912,1000080924
03.10.2019,ADULT SOCIAL CARE,SWK DISABLEMENT ASSN,943,PHY LTS 65+,HOMECARE - SPOT,2103011721,1000011698
03.10.2019,ADULT SOCIAL CARE,SWK DISABLEMENT ASSN,"1,136.20",PHY LTS 65+,HOMECARE - SPOT,2103011723,1000011698
03.10.2019,ADULT SOCIAL CARE,SUPREME CARE SERVICES LTD,313.13,PHY STS 18-64,HOMECARE - IC,2103011791,1000059416
03.10.2019,ADULT SOCIAL CARE,SUPREME CARE SERVICES LTD,885.1,PHY STS 18-64,HOMECARE - IC,2103011771,1000059416
03.10.2019,ADULT SOCIAL CARE,SUPREME CARE SERVICES LTD,375.75,PHY STS 65+,HOMECARE - IC,2103011779,1000059416
03.10.2019,ADULT SOCIAL CARE,SUPREME CARE SERVICES LTD,375.8,PHY STS 65+,HOMECARE - IC,2103011750,1000059416
03.10.2019,ADULT SOCIAL CARE,SUPREME CARE SERVICES LTD,384.1,PHY STS 65+,HOMECARE - IC,2103011784,1000059416
03.10.2019,ADULT SOCIAL CARE,SUPREME CARE SERVICES LTD,626.25,PHY STS 65+,HOMECARE - IC,2103011767,1000059416
03.10.2019,ADULT SOCIAL CARE,SUPREME CARE SERVICES LTD,693.05,PHY STS 65+,HOMECARE - IC,2103011754,1000059416
03.10.2019,ADULT SOCIAL CARE,SUPREME CARE SERVICES LTD,"1,169.00",PHY STS 65+,HOMECARE - IC,2103011781,1000059416
03.10.2019,ADULT SOCIAL CARE,SUPREME CARE SERVICES LTD,"1,670.00",PHY STS 65+,HOMECARE - IC,2103011745,1000059416
03.10.2019,ADULT SOCIAL CARE,SUPREME CARE SERVICES LTD,"2,404.80",SEN LTS 65+,HOMECARE - C&V,2103011748,1000059416
03.10.2019,ADULT SOCIAL CARE,SAGECARE LTD,262.24,SOCIAL ISOLATION,HOMECARE - C&V,2103011938,1000080924
03.10.2019,ADULT SOCIAL CARE,SAGECARE LTD,341.36,SOCIAL ISOLATION,HOMECARE - C&V,2103011806,1000080924
03.10.2019,ADULT SOCIAL CARE,SAGECARE LTD,353.81,SOCIAL ISOLATION,HOMECARE - C&V,2103012010,1000080924
03.10.2019,ADULT SOCIAL CARE,SAGECARE LTD,470.62,SOCIAL ISOLATION,HOMECARE - C&V,2103011957,1000080924
03.10.2019,ADULT SOCIAL CARE,SAGECARE LTD,791.09,SOCIAL ISOLATION,HOMECARE - C&V,2103011902,1000080924
03.10.2019,ADULT SOCIAL CARE,SAGECARE LTD,"2,398.25",SOCIAL ISOLATION,HOMECARE - C&V,2103011988,1000080924
03.10.2019,ADULT SOCIAL CARE,SAGECARE LTD,"2,910.15",SOCIAL ISOLATION,HOMECARE - C&V,2103011985,1000080924
03.10.2019,ADULT SOCIAL CARE,SUPREME CARE SERVICES LTD,415.57,SOCIAL ISOLATION,HOMECARE - IC,2103011747,1000059416
03.10.2019,ADULT SOCIAL CARE,SERVESOUL LTD,375.53,SUB LTS 18-64,HOMECARE - SPOT,2103012073,1000081503
03.10.2019,ADULT SOCIAL CARE,LONDON CARE LTD,"8,068.20",TRANSFORMING COM E,HOMECARE - C&V,5902381100,1000003398
03.10.2019,ADULT SOCIAL CARE,LONDON CARE LTD,"9,017.40",TRANSFORMING COM E,HOMECARE - C&V,5902381098,1000003398
03.10.2019,ASSET MANAGEMENT,FRANKHAM CONSULTANCY GROUP LTD,510,DISREPAIR,PAYMENTS FOR LEGAL SERVICES,5902380258,1000043952
03.10.2019,ASSET MANAGEMENT,FRANKHAM CONSULTANCY GROUP LTD,570,DISREPAIR,PAYMENTS FOR LEGAL SERVICES,5902380259,1000043952
03.10.2019,ASSET MANAGEMENT,FRANKHAM CONSULTANCY GROUP LTD,780,DISREPAIR,PAYMENTS FOR LEGAL SERVICES,5902380255,1000043952
03.10.2019,ASSET MANAGEMENT,FRANKHAM CONSULTANCY GROUP LTD,930,DISREPAIR,PAYMENTS FOR LEGAL SERVICES,5902380261,1000043952
03.10.2019,CENTRAL FUNCTIONS,TELSOLUTIONS LTD,350,HOME OWNERSHIP,TELEPHONES (MOBILES),5902381011,1000074033
03.10.2019,CENTRAL FUNCTIONS,KIER FACILITIES SERVICES LTD,"47,952.00",LEDBURY ESTATE,MISCELLANEOUS EXPENSES,5902380203,1000040603
03.10.2019,CENTRAL FUNCTIONS,ALLPAY LTD,991.5,SERVICE LEVEL AGREEMENTS,BANK CHARGES,5902381099,1000043001
03.10.2019,CENTRAL FUNCTIONS,ALLPAY LTD,"10,045.34",SERVICE LEVEL AGREEMENTS,BANK CHARGES,5902381101,1000043001
03.10.2019,CHIEF EXECUTIVE,SURREY DOCKS FARM PROVIDENT SOCIETY,"19,403.57",CAPITAL PS (REGEN),CONSTRUCTION MAIN CONTRACT,5902381051,1000000958
03.10.2019,CHILDREN AND ADULT,RSM RISK ASSURANCE SERVICES LLP,"13,500.00",CAPITAL PS (EDUCATION),CONSTRUCTION FEES  - EXTERNAL,5902380115,1000050690
03.10.2019,CHILDREN'S SERVICES,ISABELLE GRAVENSTEIN T/A REVIVAL,696,CENTRAL SUPPORT,OTHER PAYMENTS FOR CLIENTS,5902381180,1000027424
03.10.2019,CHILDREN'S SERVICES,OFFICE DEPOT UK LTD,311.74,DIRECT DELIVERY,STATIONERY,5902381143,1109426
03.10.2019,CHILDREN'S SERVICES,THE SOUTHBANK CENTRE,991.75,LEA MUSIC SERVICE(310) - 5018566,CONSULTANTS SERVICES,5902381124,1000057938
03.10.2019,CHILDREN'S SERVICES,MY LIFE SEMI-INDEPENDENT PROJECT LTD,276,LEAVING CARE GRANT,OTHER PAYMENTS FOR CLIENTS,5902381083,1000075301
03.10.2019,CHILDREN'S SERVICES,ZENITH CARS LTD,370,S & FAM SUPP - PRAC GRP B SET 17-19,OTHER PAYMENTS FOR CLIENTS,5902381130,1000070570
03.10.2019,CHILDREN'S SERVICES,ZENITH CARS LTD,300,S & FAM SUPP - PRAC GRP E SET 26-28,OTHER PAYMENTS FOR CLIENTS,5902381130,1000070570
03.10.2019,CHILDREN'S SERVICES,REDACTED PERSONAL DATA,420,S & FAM SUPP - PRAC GRP E SET 26-28,OTHER PAYMENTS FOR CLIENTS,REDACTED,REDACTED
03.10.2019,CHILDREN'S SERVICES,ZENITH CARS LTD,467,S & FAM SUPP - PRAC GRP F SET 29-31,OTHER PAYMENTS FOR CLIENTS,5902381130,1000070570
03.10.2019,CHILDREN'S SERVICES,CARE O LINE,275,SCH TRANS - CONTRACT COST,AGENCY STAFF,5902381186,11241743
03.10.2019,CHILDREN'S SERVICES,CARE O LINE,275,SCH TRANS - CONTRACT COST,AGENCY STAFF,5902381187,11241743
03.10.2019,CHILDREN'S SERVICES,METROPOLITAN HOUSING TRUST,"1,673.16",SEMI INDEPENDENT LAC,EXTERNAL AGENCIES AND BODIES,5902380979,1000069880
03.10.2019,CHILDREN'S SERVICES,LONDON BUBBLE THEATRE COMPANY,400,TACKLING TROUBLED FAMILIES,EXTERNAL AGENCIES AND BODIES,5902381131,11022517
03.10.2019,CHILDREN'S SERVICES,LONDON BUBBLE THEATRE COMPANY,"20,000.00",TACKLING TROUBLED FAMILIES,EXTERNAL AGENCIES AND BODIES,5902381133,11022517
03.10.2019,CHILDREN'S SERVICES,REDACTED PERSONAL DATA,300,UNIVERSITY SUPPORT,CLIENT TRANSPORT,REDACTED,REDACTED
03.10.2019,CHILDREN'S SERVICES,REDACTED PERSONAL DATA,"1,200.00",UNIVERSITY SUPPORT,OTHER PAYMENTS FOR CLIENTS,REDACTED,REDACTED
03.10.2019,CHILDREN'S SERVICES,COMMUNITY CYCLEWORKS,"3,410.00",YOS SUPPORT,EXTERNAL AGENCIES AND BODIES,5902381111,1000073000
03.10.2019,CHILDREN'S SERVICES,ISABELLE GRAVENSTEIN T/A REVIVAL,348,YOS SUPPORT,MEDICAL / HEALTH & SAFETY SERVICES,5902381122,1000027424
03.10.2019,COMMUNITIES,RENT CONNECT HOUSING LTD,"1,364.00",NO RECOURSE TO PUBLIC FUNDS,ACCOMMODATION CHARGES,5902381087,1000074815
03.10.2019,COMMUNITIES,SUPREME CARE SERVICES LTD,434.2,NO RECOURSE TO PUBLIC FUNDS,HOMECARE - C&V,2103011795,1000059416
03.10.2019,COMMUNITIES,SAGECARE LTD,703.58,NO RECOURSE TO PUBLIC FUNDS,HOMECARE - C&V,2103011854,1000080924
03.10.2019,COMMUNITIES,SUPREME CARE SERVICES LTD,"1,052.10",NO RECOURSE TO PUBLIC FUNDS,HOMECARE - C&V,2103011768,1000059416
03.10.2019,COMMUNITIES,SUPREME CARE SERVICES LTD,"3,047.75",NO RECOURSE TO PUBLIC FUNDS,HOMECARE - C&V,2103011786,1000059416
03.10.2019,COMMUNITIES,SOUTHWARK GROUP OF TENANTS ORGANISATION,"57,115.94",TENANTS FUND,EXTERNAL AGENCIES AND BODIES,5902380985,1479419
03.10.2019,COMMUNITIES,CAROLINE GARDENS RESIDENTS ASSOCIATION,"1,300.00",TENANTS FUND,GRANTS,5902380947,1000052192
03.10.2019,COMMUNITIES,LSBOROUGH & SCOVELL T&RA,"2,420.00",TENANTS FUND,GRANTS,5902381039,1000066888
03.10.2019,CUSTOMER EXPERIENCE HGF,CHUBB FIRE & SECURITY LTD,"1,453.94",CORONER'S,OP LEASE/HIRE CHARGES:PLANT/EQUIP/FURNIT,5902380992,11166155
03.10.2019,CUSTOMER EXPERIENCE HGF,GUYS & ST THOMAS NHS FOUNDATION TRUST,"2,764.00",CORONER'S,OTHER CONTRACTORS,5902381092,1765536
03.10.2019,CUSTOMER EXPERIENCE HGF,GUYS & ST THOMAS NHS FOUNDATION TRUST,"2,867.00",CORONER'S,OTHER CONTRACTORS,5902381097,1765536
03.10.2019,CUSTOMER EXPERIENCE HGF,GUYS & ST THOMAS NHS FOUNDATION TRUST,"2,950.00",CORONER'S,OTHER CONTRACTORS,5902381089,1765536
03.10.2019,CUSTOMER EXPERIENCE HGF,VENTURE HOUSING (LONDON) LTD,-637,NIGHTLY TA (NSC),EXTERNAL AGENCIES AND BODIES,5902380100,1000056686
03.10.2019,CUSTOMER EXPERIENCE HGF,VENTURE HOUSING (LONDON) LTD,"1,008.00",NIGHTLY TA (NSC),EXTERNAL AGENCIES AND BODIES,5902381013,1000056686
03.10.2019,CUSTOMER EXPERIENCE HGF,VENTURE HOUSING (LONDON) LTD,"1,147.00",NIGHTLY TA (NSC),EXTERNAL AGENCIES AND BODIES,5902381010,1000056686
03.10.2019,CUSTOMER EXPERIENCE HGF,VENTURE HOUSING (LONDON) LTD,"2,046.00",NIGHTLY TA (NSC),EXTERNAL AGENCIES AND BODIES,5902381018,1000056686
03.10.2019,CUSTOMER EXPERIENCE HGF,VENTURE HOUSING (LONDON) LTD,"2,065.00",NIGHTLY TA (NSC),EXTERNAL AGENCIES AND BODIES,5902381008,1000056686
03.10.2019,CUSTOMER EXPERIENCE HGF,SOUTH OF THE RIVER INVESTMENTS LTD,"2,469.40",NIGHTLY TA (NSC),EXTERNAL AGENCIES AND BODIES,5902381005,1000073638
03.10.2019,CUSTOMER EXPERIENCE HGF,VENTURE HOUSING (LONDON) LTD,"5,439.00",NIGHTLY TA (NSC),EXTERNAL AGENCIES AND BODIES,5902380999,1000056686
03.10.2019,CUSTOMER EXPERIENCE HGF,VENTURE HOUSING (LONDON) LTD,"5,920.00",NIGHTLY TA (NSC),EXTERNAL AGENCIES AND BODIES,5902381004,1000056686
03.10.2019,CUSTOMER EXPERIENCE HGF,VENTURE HOUSING (LONDON) LTD,"6,279.00",NIGHTLY TA (NSC),EXTERNAL AGENCIES AND BODIES,5902381015,1000056686
03.10.2019,CUSTOMER EXPERIENCE HGF,VENTURE HOUSING (LONDON) LTD,"6,961.50",NIGHTLY TA (NSC),EXTERNAL AGENCIES AND BODIES,5902381021,1000056686
03.10.2019,CUSTOMER EXPERIENCE HGF,VENTURE HOUSING (LONDON) LTD,"9,462.00",NIGHTLY TA (NSC),EXTERNAL AGENCIES AND BODIES,5902381016,1000056686
03.10.2019,CUSTOMER EXPERIENCE HGF,SOLACE WOMEN'S AID,"11,506.50",NIGHTLY TA (NSC),EXTERNAL AGENCIES AND BODIES,5902381114,1000057231
03.10.2019,CUSTOMER EXPERIENCE HGF,VENTURE HOUSING (LONDON) LTD,"15,047.00",NIGHTLY TA (NSC),EXTERNAL AGENCIES AND BODIES,5902381001,1000056686
03.10.2019,DEPT DORMANT AND DEAD CODES,BISHOP SPORTS AND LEISURE LTD,734.7,PLAY SOUTH,MATERIALS,5902381094,11177103
03.10.2019,ENVIRONMENT AND LEISURE,SOUTHSIDE YOUNG LEADERS ACADEMY,"2,022.11",CAPITAL PS (LEISURE),CAPITAL GRANTS,5902381067,1000061432
03.10.2019,ENVIRONMENT AND LEISURE,DULWICH HAMLET JUNIOR SCHOOL,"1,780.00",CAPITAL PS (LEISURE),CAPITAL GRANTS,5902381105,1000061775
03.10.2019,ENVIRONMENT AND LEISURE,CONWAY AECOM LTD,516.57,CAPITAL PS (LEISURE),CONSTR'N SUB CONTRACT - NON CERTIFICATED,5902381091,1000071205
03.10.2019,ENVIRONMENT DIRECTORATE,DAWSONGROUP VANS LTD,300.08,COMMERCIAL VEH CTRL A/C,HIRED VEHICLES,5902380955,1000082230
03.10.2019,ENVIRONMENT DIRECTORATE,DAWSONGROUP VANS LTD,300.08,COMMERCIAL VEH CTRL A/C,HIRED VEHICLES,5902380957,1000082230
03.10.2019,ENVIRONMENT DIRECTORATE,DAWSONGROUP VANS LTD,300.08,COMMERCIAL VEH CTRL A/C,HIRED VEHICLES,5902380970,1000082230
03.10.2019,ENVIRONMENT DIRECTORATE,DAWSONGROUP VANS LTD,300.08,COMMERCIAL VEH CTRL A/C,HIRED VEHICLES,5902381117,1000082230
03.10.2019,ENVIRONMENT DIRECTORATE,DAWSONGROUP VANS LTD,300.08,COMMERCIAL VEH CTRL A/C,HIRED VEHICLES,5902381118,1000082230
03.10.2019,ENVIRONMENT DIRECTORATE,DAWSONGROUP VANS LTD,300.08,COMMERCIAL VEH CTRL A/C,HIRED VEHICLES,5902381119,1000082230
03.10.2019,ENVIRONMENT DIRECTORATE,DAWSONGROUP VANS LTD,300.08,COMMERCIAL VEH CTRL A/C,HIRED VEHICLES,5902381121,1000082230
03.10.2019,ENVIRONMENT DIRECTORATE,AUTOMOTIVE LEASING,320,COMMERCIAL VEH CTRL A/C,HIRED VEHICLES,5902380951,11014756
03.10.2019,ENVIRONMENT DIRECTORATE,E. H. ROBERTS - PENET GROUP LTD,363,COMMERCIAL VEH CTRL A/C,HIRED VEHICLES,5902381068,1000082787
03.10.2019,ENVIRONMENT DIRECTORATE,SCOT GROUP LIMITED,364,COMMERCIAL VEH CTRL A/C,HIRED VEHICLES,5902381017,1709512
03.10.2019,ENVIRONMENT DIRECTORATE,SCOT GROUP LIMITED,364,COMMERCIAL VEH CTRL A/C,HIRED VEHICLES,5902381042,1709512
03.10.2019,ENVIRONMENT DIRECTORATE,PACE ACCIDENT REPAIRS CENTRE LTD,380,COMMERCIAL VEH CTRL A/C,HIRED VEHICLES,5902381054,1000069899
03.10.2019,ENVIRONMENT DIRECTORATE,SCOT GROUP LIMITED,385.56,COMMERCIAL VEH CTRL A/C,HIRED VEHICLES,5902381019,1709512
03.10.2019,ENVIRONMENT DIRECTORATE,SCOT GROUP LIMITED,385.56,COMMERCIAL VEH CTRL A/C,HIRED VEHICLES,5902381022,1709512
03.10.2019,ENVIRONMENT DIRECTORATE,SCOT GROUP LIMITED,385.56,COMMERCIAL VEH CTRL A/C,HIRED VEHICLES,5902381027,1709512
03.10.2019,ENVIRONMENT DIRECTORATE,DAWSONGROUP VANS LTD,440.42,COMMERCIAL VEH CTRL A/C,HIRED VEHICLES,5902380958,1000082230
03.10.2019,ENVIRONMENT DIRECTORATE,AUTOMOTIVE LEASING,"1,074.40",COMMERCIAL VEH CTRL A/C,HIRED VEHICLES,5902380946,11014756
03.10.2019,ENVIRONMENT DIRECTORATE,AUTOMOTIVE LEASING,"1,074.40",COMMERCIAL VEH CTRL A/C,HIRED VEHICLES,5902380961,11014756
03.10.2019,ENVIRONMENT DIRECTORATE,AUTOMOTIVE LEASING,"1,712.13",COMMERCIAL VEH CTRL A/C,HIRED VEHICLES,5902380967,11014756
03.10.2019,ENVIRONMENT DIRECTORATE,AUTOMOTIVE LEASING,"3,933.13",COMMERCIAL VEH CTRL A/C,HIRED VEHICLES,5902380945,11014756
03.10.2019,ENVIRONMENT DIRECTORATE,AUTOMOTIVE LEASING,"4,823.15",COMMERCIAL VEH CTRL A/C,HIRED VEHICLES,5902380969,11014756
03.10.2019,ENVIRONMENT DIRECTORATE,AUTOMOTIVE LEASING,"36,000.00",COMMERCIAL VEH CTRL A/C,HIRED VEHICLES,5902380945,11014756
03.10.2019,ENVIRONMENT DIRECTORATE,PACE ACCIDENT REPAIRS CENTRE LTD,380,COMMERCIAL VEH CTRL A/C,VEHICLE REPAIRS & MAINTENANCE,5902381058,1000069899
03.10.2019,ENVIRONMENT DIRECTORATE,PACE ACCIDENT REPAIRS CENTRE LTD,380,COMMERCIAL VEH CTRL A/C,VEHICLE REPAIRS & MAINTENANCE,5902381060,1000069899
03.10.2019,ENVIRONMENT DIRECTORATE,BOC LTD,270.1,ENGINEERING CRAFTS,MATERIALS,5902380960,1001589
03.10.2019,ENVIRONMENT DIRECTORATE,BELL BRUSH COMPANY,782.7,MANAGEMENT TEAM,MATERIALS,5902381020,1259776
03.10.2019,ENVIRONMENT DIRECTORATE,MHC TRAFFIC LTD,280,PROJECT SUPPORT,MISCELLANEOUS EXPENSES,5902379990,1000081233
03.10.2019,ENVIRONMENT DIRECTORATE,MHC TRAFFIC LTD,560,PROJECT SUPPORT,MISCELLANEOUS EXPENSES,5902379989,1000081233
03.10.2019,ENVIRONMENT DIRECTORATE,J C DECAUX UK LTD,"27,656.80",PUBLIC CONVENIENCES,OTHER CONTRACTORS,5902381079,1000056107
03.10.2019,ENVIRONMENT DIRECTORATE,ROOM 9 MEDIA,536.16,"ROAD SAFETY EDUCATION,TRAINING&PUBLICITY",PROFESSIONAL FEES,5902381132,1000079686
03.10.2019,ENVIRONMENT DIRECTORATE,AUTO SISTANCE LTD,325,STREET WORKS OVERHEADS,BOOKS & PUBLICATIONS,5902381139,1000070536
03.10.2019,ENVIRONMENT DIRECTORATE,AUTO SISTANCE LTD,370,STREET WORKS OVERHEADS,BOOKS & PUBLICATIONS,5902381159,1000070536
03.10.2019,ENVIRONMENT DIRECTORATE,SOUTHWARK NEWSPAPER LTD,312,STREET WORKS OVERHEADS,MARKETING & PUBLICITY SERVICES,5902381006,1556957
03.10.2019,ENVIRONMENT DIRECTORATE,SOUTHWARK NEWSPAPER LTD,324,STREET WORKS OVERHEADS,MARKETING & PUBLICITY SERVICES,5902380997,1556957
03.10.2019,ENVIRONMENT DIRECTORATE,SOUTHWARK NEWSPAPER LTD,324,STREET WORKS OVERHEADS,MARKETING & PUBLICITY SERVICES,5902381000,1556957
03.10.2019,ENVIRONMENT DIRECTORATE,SOUTHWARK NEWSPAPER LTD,336,STREET WORKS OVERHEADS,MARKETING & PUBLICITY SERVICES,5902381007,1556957
03.10.2019,ENVIRONMENT DIRECTORATE,SOUTHWARK NEWSPAPER LTD,348,STREET WORKS OVERHEADS,MARKETING & PUBLICITY SERVICES,5902380998,1556957
03.10.2019,ENVIRONMENT DIRECTORATE,SOUTHWARK NEWSPAPER LTD,360,STREET WORKS OVERHEADS,MARKETING & PUBLICITY SERVICES,5902381002,1556957
03.10.2019,ENVIRONMENT DIRECTORATE,SOUTHWARK NEWSPAPER LTD,360,STREET WORKS OVERHEADS,MARKETING & PUBLICITY SERVICES,5902381003,1556957
03.10.2019,ENVIRONMENT DIRECTORATE,NATIONAL CRIME AGENCY,284,TRADING STANDARDS,SUBSCRIPTIONS,5902381009,1000057139
03.10.2019,EXCHEQUER SERVICES,BETTER BANKSIDE,"83,544.11",BETTER BANKSIDE,EXTERNAL AGENCIES AND BODIES,5902381088,1000036227
03.10.2019,EXCHEQUER SERVICES,ALLPAY LTD,791.91,CASHIERS SLA,BANK CHARGES,5902381095,1000043001
03.10.2019,EXCHEQUER SERVICES,ALLPAY LTD,"4,232.38",CASHIERS SLA,BANK CHARGES,5902381096,1000043001
03.10.2019,EXCHEQUER SERVICES,VALUEADDING.COM LTD,687.5,PROJECTS,OTHER CONTRACTORS,5902381170,1000066730
03.10.2019,EXCHEQUER SERVICES,SOUTH BANK BID LTD,"33,142.67",SOUTH BANK,EXTERNAL AGENCIES AND BODIES,5902381059,1000075023
03.10.2019,HOUSING,LIFTEC LIFTS LTD,"68,817.00",PAYMENTS CONTROL ACCOUNT - LIFTEC,I-WORLD CONTRACTORS HOLDING ACCOUNT,5902380033,1000057278
03.10.2019,HOUSING,SPOKEMEAD MAINTENANCE LTD,"84,878.46",PAYMENTS CONTROL ACCOUNT - SPOKEMEAD,I-WORLD CONTRACTORS HOLDING ACCOUNT,5902381142,1000059211
03.10.2019,HOUSING,SPOKEMEAD MAINTENANCE LTD,"105,611.84",PAYMENTS CONTROL ACCOUNT - SPOKEMEAD,I-WORLD CONTRACTORS HOLDING ACCOUNT,5902381134,1000059211
03.10.2019,HOUSING GENERAL FUND,C & C BUILDERS LTD,"13,080.00",CAPITAL PS (HOUSING GF),CAPITAL GRANTS,5902380943,1000079100
03.10.2019,HOUSING HRA,ASPEN BUILD (EAST ANGLIA) LTD,"23,011.94",CAPITAL PS (HRA),CONSTRUCTION MAIN CONTRACT -CERTIFICATED,2103012137,3000002075
03.10.2019,HOUSING HRA,ENGIE REGENERATION (APOLLO) LTD,"68,864.77",CAPITAL PS (HRA),CONSTRUCTION MAIN CONTRACT -CERTIFICATED,2103012145,4000449
03.10.2019,HOUSING HRA,ENGIE REGENERATION (APOLLO) LTD,"74,898.76",CAPITAL PS (HRA),CONSTRUCTION MAIN CONTRACT -CERTIFICATED,2103012146,4000449
03.10.2019,HOUSING HRA,ENGIE REGENERATION (APOLLO) LTD,"2,212,376.44",CAPITAL PS (HRA),CONSTRUCTION MAIN CONTRACT -CERTIFICATED,2103012144,4000449
03.10.2019,LEISURE DIRECTORATE,NIKKI CRANE,"4,500.00",ARTS PROJECT,CONSULTANTS SERVICES,5902381107,1000082353
03.10.2019,LEISURE DIRECTORATE,WORKING TRANSITIONS,300,LIBARIES DEVELOPMENT,TRAINING,5902381176,1000063689
03.10.2019,LEISURE DIRECTORATE,CTC RECRUITMENT LTD,589.5,TREES O'HEADS,CONSULTANTS SERVICES,5902381044,1000041410
03.10.2019,LEISURE DIRECTORATE,CTC RECRUITMENT LTD,589.5,TREES O'HEADS,CONSULTANTS SERVICES,5902381045,1000041410
03.10.2019,LEISURE DIRECTORATE,CTC RECRUITMENT LTD,915,TREES O'HEADS,CONSULTANTS SERVICES,5902381046,1000041410
03.10.2019,LEISURE DIRECTORATE,DUCTCLEAN (UK) LTD,"-9,900.00",TREES PRINCIPAL ROADS,EQUIPMENT PURCHASE & REPAIR,5902381490,3000001635
03.10.2019,LEISURE DIRECTORATE,DUCTCLEAN (UK) LTD,"9,900.00",TREES PRINCIPAL ROADS,EQUIPMENT PURCHASE & REPAIR,5902381050,3000001635
03.10.2019,MODERNISATION HGF,ROYAL MAIL GROUP LTD,"3,327.71",160 TOOLEY ST.,POSTAGES,5902380572,1000008168
03.10.2019,MODERNISATION HGF,URBANCANDA,"1,325.00",CORPORATE TRAINING BUDGETS,TRAINING,5902380854,1000036367
03.10.2019,MODERNISATION HGF,WORKING TRANSITIONS,"1,000.00",HR PAYROLL COSTS,TRAINING,5902380994,1000063689
03.10.2019,MODERNISATION HGF,CAPITA SECURE INFORMATION,"18,283.09",IT MANAGEMENT,COMMS & COMPUTING CONTRACT CHARGES,5902380944,1000070739
03.10.2019,MODERNISATION HGF,KIER FACILITIES SERVICES LTD,"56,766.83",PLANNED FM SERVICES BY KIER,INTEGRATED FACILITIES MANAGEMENT CONTRACT,5902381075,1000040603
03.10.2019,MODERNISATION HGF,COMENSURA LTD,"522,765.69",WEEKLY PAYMENTS,AGENCY STAFF,5902381103,1000051261
03.10.2019,NEW SOUTHWARK BUILDING SERVICES,MICHAEL AND PARTNERS LTD,"12,325.00",REORGANISATION COSTS,CONSULTANTS SERVICES,5902380965,1000077686
03.10.2019,NEW SOUTHWARK BUILDING SERVICES,ENVIROVENT LTD,"1,600.00",SBS - HOLDING ACCOUNT,OTHER CONTRACTORS,5902381063,1000075373
03.10.2019,NEW SOUTHWARK BUILDING SERVICES,DIAMOND SCAFFOLDING (SOUTH EAST),"2,575.50",SBS - HOLDING ACCOUNT,OTHER CONTRACTORS,2103012139,3000001625
03.10.2019,NEW SOUTHWARK BUILDING SERVICES,GEN-VENT (METALWORKERS) LTD,"3,799.76",SBS - HOLDING ACCOUNT,OTHER CONTRACTORS,5902380272,1000054858
03.10.2019,NEW SOUTHWARK BUILDING SERVICES,SMITHY DECORATING,"4,269.51",SBS - HOLDING ACCOUNT,OTHER CONTRACTORS,2103012140,3000002050
03.10.2019,NEW SOUTHWARK BUILDING SERVICES,KNK BUILDING SERVICES LTD,"16,898.41",SBS - HOLDING ACCOUNT,OTHER CONTRACTORS,2103012136,3000001728
03.10.2019,NEW SOUTHWARK BUILDING SERVICES,1st ACTIVE PROPERTY SERVICES LTD,"44,459.87",SBS - HOLDING ACCOUNT,OTHER CONTRACTORS,2103012141,3000001655
03.10.2019,PLANNING AND TRANSPORT,SOUTHWARK NEWSPAPER LTD,336,DEVELOPMENT CONTROL ADMINSTRATION,MARKETING & PUBLICITY SERVICES,5902381065,1556957
03.10.2019,PLANNING AND TRANSPORT,COBWEB CONSULTING,"3,944.00",PLANNING POLICY TEAM,CONSULTANTS SERVICES,5902381057,1000082838
03.10.2019,REGENERATION,WILLIAM MARTIN PROPERTY CONSULTANTS,"2,000.00",7 HOLYROOD STREET,PROFESSIONAL FEES,5902381116,1000062171
03.10.2019,REGENERATION,WILLIAM MARTIN PROPERTY CONSULTANTS,"2,500.00",7 HOLYROOD STREET,PROFESSIONAL FEES,5902381120,1000062171
03.10.2019,REGENERATION,WILLIAM MARTIN PROPERTY CONSULTANTS,"1,250.00",LBS SOJOURNER TRUTH COMMUNITY CENTRE,PROFESSIONAL FEES,5902381123,1000062171
03.10.2019,REGENERATION,WILLIAM MARTIN PROPERTY CONSULTANTS,"2,000.00",LBS SOJOURNER TRUTH COMMUNITY CENTRE,PROFESSIONAL FEES,5902381125,1000062171
03.10.2019,REGENERATION,WESTCO TRADING LTD,"2,535.00",MASTER PLAN-H/WAY & TRANS INTERCHANGE,MARKETING & PUBLICITY SERVICES,5902380176,1000069599
03.10.2019,RESIDENT SERVICES,EDF ENERGY PLC,865.63,OPERATIONS/OFFICES ACCOMMODATION,ELECTRICITY,5902381055,1008746
03.10.2019,SOUTHWARK BUILDING SERVICES,A T & T (GB LTD ),-870.98,STORES/LOGISTICS,CREDITORS -GR/IR CLEARING ACCOUNT,5902381043,1000078342
03.10.2019,SOUTHWARK BUILDING SERVICES,A T & T (GB LTD ),340,STORES/LOGISTICS,CREDITORS -GR/IR CLEARING ACCOUNT,5902381036,1000078342
03.10.2019,SOUTHWARK BUILDING SERVICES,A T & T (GB LTD ),510,STORES/LOGISTICS,CREDITORS -GR/IR CLEARING ACCOUNT,5902381041,1000078342
03.10.2019,SOUTHWARK BUILDING SERVICES,A T & T (GB LTD ),870.98,STORES/LOGISTICS,CREDITORS -GR/IR CLEARING ACCOUNT,5902381041,1000078342
04.10.2019,ADULT SOCIAL CARE,FRASER & FRASER,"1,834.63",APPOINTEESHIPS,OTHER PAYMENTS FOR CLIENTS,5902381257,1000082213
04.10.2019,ADULT SOCIAL CARE,FRASER & FRASER,"32,916.85",APPOINTEESHIPS,OTHER PAYMENTS FOR CLIENTS,5902381275,1000082213
04.10.2019,ADULT SOCIAL CARE,REDACTED PERSONAL DATA,"2,270.85",APPOINTEESHIPS,OTHER PAYMENTS FOR CLIENTS,REDACTED,REDACTED
04.10.2019,ADULT SOCIAL CARE,REDACTED PERSONAL DATA,"17,046.01",APPOINTEESHIPS,OTHER PAYMENTS FOR CLIENTS,REDACTED,REDACTED
04.10.2019,ADULT SOCIAL CARE,HYDE HOUSING ASSOCIATION LTD,"-2,759.43",EXTRA CARE CONTRACT,RENTS,5902381641,1000013980
04.10.2019,ADULT SOCIAL CARE,HYDE HOUSING ASSOCIATION LTD,"2,759.43",EXTRA CARE CONTRACT,RENTS,5902381642,1000013980
04.10.2019,ASSET MANAGEMENT,CURTIS SOLICITORS LTD,"1,000.00",DISREPAIR,PAYMENTS FOR LEGAL SERVICES,2103011597,1000083234
04.10.2019,ASSET MANAGEMENT,FRANKHAM CONSULTANCY GROUP LTD,450,REPAIRS OPERATIONS,BUILDING R&M,5902381285,1000043952
04.10.2019,ASSET MANAGEMENT,RELIANCE HIGH-TECH LTD,742.17,REPAIRS OPERATIONS,OFFICE EXPENSES,5902381468,1000079374
04.10.2019,CENTRAL FUNCTIONS,ROWANWOOD PROFESSIONAL SERVICES LTD,"3,000.00",ASSET MANAGEMENT SYSTEM,CONSULTANTS SERVICES,5902380714,1000080531
04.10.2019,CENTRAL FUNCTIONS,NPOWER LTD,453.78,HEATING ACCOUNT,ELECTRICITY,5902381245,1000078994
04.10.2019,CENTRAL FUNCTIONS,NPOWER LTD,888.06,HEATING ACCOUNT,ELECTRICITY,5902381243,1000078994
04.10.2019,CENTRAL FUNCTIONS,NPOWER LTD,"1,324.71",HEATING ACCOUNT,ELECTRICITY,5902381243,1000078994
04.10.2019,CENTRAL FUNCTIONS,NPOWER LTD,"1,690.47",HEATING ACCOUNT,ELECTRICITY,5902381243,1000078994
04.10.2019,CENTRAL FUNCTIONS,HERITAGE SURVEYS LTD,"4,232.00",TECHNICAL SUPPORT,PROFESSIONAL FEES,5902381200,1000080199
04.10.2019,CHIEF EXECUTIVE,CYCLEHOOP LTD,"3,250.00",CAPITAL PS (REGEN),CONSTRUCTION FEES  - EXTERNAL,5902380589,1000057894
04.10.2019,CHILDREN'S SERVICES,HOME OFFICE ACCOUNTING OFFICER,"-1,200.00",CARE LEAVERS SERVICES 16+,OTHER PAYMENTS FOR CLIENTS,5902381707,1000049156
04.10.2019,CHILDREN'S SERVICES,HOME OFFICE ACCOUNTING OFFICER,"-1,200.00",CARE LEAVERS SERVICES 16+,OTHER PAYMENTS FOR CLIENTS,5902381710,1000049156
04.10.2019,CHILDREN'S SERVICES,HOME OFFICE ACCOUNTING OFFICER,"-1,200.00",CARE LEAVERS SERVICES 16+,OTHER PAYMENTS FOR CLIENTS,5902381712,1000049156
04.10.2019,CHILDREN'S SERVICES,HOME OFFICE ACCOUNTING OFFICER,"1,200.00",CARE LEAVERS SERVICES 16+,OTHER PAYMENTS FOR CLIENTS,5902378413,1000049156
04.10.2019,CHILDREN'S SERVICES,HOME OFFICE ACCOUNTING OFFICER,"1,200.00",CARE LEAVERS SERVICES 16+,OTHER PAYMENTS FOR CLIENTS,5902378415,1000049156
04.10.2019,CHILDREN'S SERVICES,HOME OFFICE ACCOUNTING OFFICER,"1,200.00",CARE LEAVERS SERVICES 16+,OTHER PAYMENTS FOR CLIENTS,5902378417,1000049156
04.10.2019,CHILDREN'S SERVICES,TUITION EXTRA (KENT) LTD,705,CASEWORK OLA  0-8,CONTRIBUTION TO PROVISIONS (TP PAYMENTS),2103012237,1000082891
04.10.2019,CHILDREN'S SERVICES,TUITION EXTRA (KENT) LTD,"1,034.00",CASEWORK OLA  0-8,CONTRIBUTION TO PROVISIONS (TP PAYMENTS),2103012238,1000082891
04.10.2019,CHILDREN'S SERVICES,QUEEN ELIZABETH II JUBILEE SCHOOL,540,CASEWORK OLA  0-8,CONTRIBUTION TO PROVISIONS (TP PAYMENTS),2103012235,1000072956
04.10.2019,CHILDREN'S SERVICES,QUEEN ELIZABETH II JUBILEE SCHOOL,"3,880.00",CASEWORK OLA  0-8,CONTRIBUTION TO PROVISIONS (TP PAYMENTS),2103012236,1000072956
04.10.2019,CHILDREN'S SERVICES,KENDER PRIMARY SCHOOL,"2,919.26",CASEWORK OLA  0-8,EXTERNAL AGENCIES AND BODIES,2103012264,1000017238
04.10.2019,CHILDREN'S SERVICES,ST JOSEPH'S RC INFANTS & NURSERY SCHOOL,"7,836.74",CASEWORK OLA  0-8,EXTERNAL AGENCIES AND BODIES,2103012231,1000081963
04.10.2019,CHILDREN'S SERVICES,MYATT GARDEN PRIMARY SCHOOL,"7,897.96",CASEWORK OLA  0-8,EXTERNAL AGENCIES AND BODIES,2103012260,1000082161
04.10.2019,CHILDREN'S SERVICES,BROXBOURNE CE PRIMARY SCHOOL,"8,433.42",CASEWORK OLA  0-8,EXTERNAL AGENCIES AND BODIES,2103012212,1000082966
04.10.2019,CHILDREN'S SERVICES,KENDER PRIMARY SCHOOL,"8,498.29",CASEWORK OLA  0-8,EXTERNAL AGENCIES AND BODIES,2103012265,1000017238
04.10.2019,CHILDREN'S SERVICES,KENDER PRIMARY SCHOOL,"8,498.29",CASEWORK OLA  0-8,EXTERNAL AGENCIES AND BODIES,2103012266,1000017238
04.10.2019,CHILDREN'S SERVICES,THE ST MARYLEBONE CHURCH OF ENGLAND BRIDGE SCHOOL,"9,719.38",CASEWORK OLA  0-8,RECOUPMENT,2103012223,1000075884
04.10.2019,CHILDREN'S SERVICES,THE ST MARYLEBONE CHURCH OF ENGLAND BRIDGE SCHOOL,"9,719.39",CASEWORK OLA  0-8,RECOUPMENT,2103012225,1000075884
04.10.2019,CHILDREN'S SERVICES,THE ST MARYLEBONE CHURCH OF ENGLAND BRIDGE SCHOOL,"9,719.39",CASEWORK OLA  0-8,RECOUPMENT,2103012227,1000075884
04.10.2019,CHILDREN'S SERVICES,THE ST MARYLEBONE CHURCH OF ENGLAND BRIDGE SCHOOL,"9,719.39",CASEWORK OLA  0-8,RECOUPMENT,2103012230,1000075884
04.10.2019,CHILDREN'S SERVICES,DRUMBEAT DOWNHAM SCHOOL,"3,762.60",CASEWORK OLA  0-8,RECOUPMENT,2103012214,1000072258
04.10.2019,CHILDREN'S SERVICES,DRUMBEAT DOWNHAM SCHOOL,"4,497.96",CASEWORK OLA  0-8,RECOUPMENT,2103012213,1000072258
04.10.2019,CHILDREN'S SERVICES,DRUMBEAT DOWNHAM SCHOOL,"8,327.44",CASEWORK OLA  0-8,RECOUPMENT,2103012215,1000072258
04.10.2019,CHILDREN'S SERVICES,DRUMBEAT DOWNHAM SCHOOL,"8,433.42",CASEWORK OLA  0-8,RECOUPMENT,2103012219,1000072258
04.10.2019,CHILDREN'S SERVICES,DRUMBEAT DOWNHAM SCHOOL,"10,081.63",CASEWORK OLA  0-8,RECOUPMENT,2103012218,1000072258
04.10.2019,CHILDREN'S SERVICES,TURNEY SCHOOL,"10,176.56",CASEWORK OLA  0-8,RECOUPMENT,2103012257,1000072254
04.10.2019,CHILDREN'S SERVICES,TURNEY SCHOOL,"10,179.22",CASEWORK OLA  0-8,RECOUPMENT,2103012240,1000072254
04.10.2019,CHILDREN'S SERVICES,TURNEY SCHOOL,"10,179.23",CASEWORK OLA  0-8,RECOUPMENT,2103012239,1000072254
04.10.2019,CHILDREN'S SERVICES,TURNEY SCHOOL,"10,179.23",CASEWORK OLA  0-8,RECOUPMENT,2103012244,1000072254
04.10.2019,CHILDREN'S SERVICES,TURNEY SCHOOL,"10,179.23",CASEWORK OLA  0-8,RECOUPMENT,2103012248,1000072254
04.10.2019,CHILDREN'S SERVICES,TURNEY SCHOOL,"10,179.23",CASEWORK OLA  0-8,RECOUPMENT,2103012253,1000072254
04.10.2019,CHILDREN'S SERVICES,TURNEY SCHOOL,"10,179.23",CASEWORK OLA  0-8,RECOUPMENT,2103012254,1000072254
04.10.2019,CHILDREN'S SERVICES,TURNEY SCHOOL,"13,434.18",CASEWORK OLA  0-8,RECOUPMENT,2103012249,1000072254
04.10.2019,CHILDREN'S SERVICES,TURNEY SCHOOL,"13,434.19",CASEWORK OLA  0-8,RECOUPMENT,2103012241,1000072254
04.10.2019,CHILDREN'S SERVICES,TURNEY SCHOOL,"13,434.19",CASEWORK OLA  0-8,RECOUPMENT,2103012242,1000072254
04.10.2019,CHILDREN'S SERVICES,TURNEY SCHOOL,"13,434.19",CASEWORK OLA  0-8,RECOUPMENT,2103012245,1000072254
04.10.2019,CHILDREN'S SERVICES,TURNEY SCHOOL,"13,434.19",CASEWORK OLA  0-8,RECOUPMENT,2103012246,1000072254
04.10.2019,CHILDREN'S SERVICES,TURNEY SCHOOL,"13,434.19",CASEWORK OLA  0-8,RECOUPMENT,2103012247,1000072254
04.10.2019,CHILDREN'S SERVICES,DRUMBEAT DOWNHAM SCHOOL,"18,505.10",CASEWORK OLA  0-8,RECOUPMENT,2103012216,1000072258
04.10.2019,CHILDREN'S SERVICES,DRUMBEAT DOWNHAM SCHOOL,"18,505.10",CASEWORK OLA  0-8,RECOUPMENT,2103012217,1000072258
04.10.2019,CHILDREN'S SERVICES,TURNEY SCHOOL,"19,627.33",CASEWORK OLA  0-8,RECOUPMENT,2103012243,1000072254
04.10.2019,CHILDREN'S SERVICES,KENT COUNTY COUNCIL - LASER,"1,127.61",MGMT & PARENTING PROG TEAM,INTERPRETING SERVICES,5902381301,1000012926
04.10.2019,CHILDREN'S SERVICES,BISHOP THOMAS GRANT SCHOOL,"5,142.86",PFA TEAM SOUTHWARK 9 PLUS,CENTRAL GOVERNMENT,2103012262,1000073651
04.10.2019,CHILDREN'S SERVICES,BLANCHE NEVILE SCHOOL,687.38,PFA TEAM SOUTHWARK 9 PLUS,CONTRIBUTION TO PROVISIONS (TP PAYMENTS),2103012261,1000078704
04.10.2019,CHILDREN'S SERVICES,THE ST MARYLEBONE CHURCH OF ENGLAND SCHOOL,"1,943.88",PFA TEAM SOUTHWARK 9 PLUS,CONTRIBUTION TO PROVISIONS (TP PAYMENTS),2103012222,1000077981
04.10.2019,CHILDREN'S SERVICES,THE ST MARYLEBONE CHURCH OF ENGLAND BRIDGE SCHOOL,"9,719.38",PFA TEAM SOUTHWARK 9 PLUS,RECOUPMENT,2103012229,1000075884
04.10.2019,CHILDREN'S SERVICES,THE ST MARYLEBONE CHURCH OF ENGLAND BRIDGE SCHOOL,"9,719.39",PFA TEAM SOUTHWARK 9 PLUS,RECOUPMENT,2103012224,1000075884
04.10.2019,CHILDREN'S SERVICES,THE ST MARYLEBONE CHURCH OF ENGLAND BRIDGE SCHOOL,"9,719.39",PFA TEAM SOUTHWARK 9 PLUS,RECOUPMENT,2103012226,1000075884
04.10.2019,CHILDREN'S SERVICES,THE ST MARYLEBONE CHURCH OF ENGLAND BRIDGE SCHOOL,"9,719.39",PFA TEAM SOUTHWARK 9 PLUS,RECOUPMENT,2103012228,1000075884
04.10.2019,CHILDREN'S SERVICES,TURNEY SCHOOL,"10,179.23",PFA TEAM SOUTHWARK 9 PLUS,RECOUPMENT,2103012255,1000072254
04.10.2019,CHILDREN'S SERVICES,TURNEY SCHOOL,"13,017.12",PFA TEAM SOUTHWARK 9 PLUS,RECOUPMENT,2103012251,1000072254
04.10.2019,CHILDREN'S SERVICES,TURNEY SCHOOL,"13,434.19",PFA TEAM SOUTHWARK 9 PLUS,RECOUPMENT,2103012250,1000072254
04.10.2019,CHILDREN'S SERVICES,TURNEY SCHOOL,"13,434.19",PFA TEAM SOUTHWARK 9 PLUS,RECOUPMENT,2103012256,1000072254
04.10.2019,CHILDREN'S SERVICES,DRUMBEAT DOWNHAM SCHOOL,"18,664.95",PFA TEAM SOUTHWARK 9 PLUS,RECOUPMENT,2103012220,1000072258
04.10.2019,CHILDREN'S SERVICES,TURNEY SCHOOL,"19,627.33",PFA TEAM SOUTHWARK 9 PLUS,RECOUPMENT,2103012252,1000072254
04.10.2019,CHILDREN'S SERVICES,THE GREY COAT HOSPITAL,"5,265.31",PFA TEAM SOUTHWARK 9 PLUS,STATEMENTED FEES,2103012233,1000068231
04.10.2019,CHILDREN'S SERVICES,LIME TRUST,"6,166.67",PFA TEAM SOUTHWARK 9 PLUS,STATEMENTED FEES,2103012267,1000077937
04.10.2019,CHILDREN'S SERVICES,THE GREY COAT HOSPITAL,"9,954.72",PFA TEAM SOUTHWARK 9 PLUS,STATEMENTED FEES,2103012232,1000068231
04.10.2019,CHILDREN'S SERVICES,THE BECKMEAD TRUST,"20,905.74",PFA TEAM SOUTHWARK 9 PLUS,STATEMENTED FEES,2103012268,1000082684
04.10.2019,CHILDREN'S SERVICES,THE BECKMEAD TRUST,"20,905.76",PFA TEAM SOUTHWARK 9 PLUS,STATEMENTED FEES,2103012269,1000082684
04.10.2019,CHILDREN'S SERVICES,THE BECKMEAD TRUST,"20,905.76",PFA TEAM SOUTHWARK 9 PLUS,STATEMENTED FEES,2103012271,1000082684
04.10.2019,CHILDREN'S SERVICES,THE BECKMEAD TRUST,"27,214.29",PFA TEAM SOUTHWARK 9 PLUS,STATEMENTED FEES,2103012270,1000082684
04.10.2019,CHILDREN'S SERVICES,THE ST MARYLEBONE CHURCH OF ENGLAND SCHOOL,"8,238.80",PFA TEAM SOUTHWARK 9 PLUS,STATEMENTED FEES,2103012221,1000077981
04.10.2019,CHILDREN'S SERVICES,RELAKS LTD,"2,880.00",TEMPORARY ACCOMMODATION,EXTERNAL AGENCIES AND BODIES,5902381386,1000054151
04.10.2019,CHILDREN'S SERVICES,RELAKS LTD,"2,880.00",TEMPORARY ACCOMMODATION,EXTERNAL AGENCIES AND BODIES,5902381398,1000054151
04.10.2019,CHILDREN'S SERVICES,RELAKS LTD,"2,976.00",TEMPORARY ACCOMMODATION,EXTERNAL AGENCIES AND BODIES,5902381394,1000054151
04.10.2019,COMMUNITIES,TAAKSVALE HOUSING LTD,"5,355.00",NO RECOURSE TO PUBLIC FUNDS,ACCOMMODATION CHARGES,5902381289,1000073665
04.10.2019,COMMUNITIES,TAAKSVALE HOUSING LTD,"38,539.75",NO RECOURSE TO PUBLIC FUNDS,ACCOMMODATION CHARGES,5902381290,1000073665
04.10.2019,CUSTOMER EXPERIENCE HGF,VALTECH LTD,322.4,BLUE BADGES,MATERIALS,5902380874,1000082245
04.10.2019,CUSTOMER EXPERIENCE HGF,WHITE RIBBON CAMPAIGN UK,450,HOUSING OPTIONS,TRAINING,5902381199,1000082946
04.10.2019,CUSTOMER EXPERIENCE HGF,PROPERTYPLACEBOOK LTD,"1,680.00",NIGHTLY TA (NSC),EXTERNAL AGENCIES AND BODIES,5902381278,1000077817
04.10.2019,CUSTOMER EXPERIENCE HGF,PROPERTYPLACEBOOK LTD,"1,740.00",NIGHTLY TA (NSC),EXTERNAL AGENCIES AND BODIES,5902381221,1000077817
04.10.2019,CUSTOMER EXPERIENCE HGF,NATIONWIDE ACCOMMODATION,"3,727.50",NIGHTLY TA (NSC),EXTERNAL AGENCIES AND BODIES,5902381209,1000076112
04.10.2019,CUSTOMER EXPERIENCE HGF,VENTURE HOUSING (LONDON) LTD,"4,068.00",NIGHTLY TA (NSC),EXTERNAL AGENCIES AND BODIES,5902381442,1000056686
04.10.2019,CUSTOMER EXPERIENCE HGF,VENTURE HOUSING (LONDON) LTD,"4,329.00",NIGHTLY TA (NSC),EXTERNAL AGENCIES AND BODIES,5902381424,1000056686
04.10.2019,CUSTOMER EXPERIENCE HGF,VENTURE HOUSING (LONDON) LTD,"6,580.50",NIGHTLY TA (NSC),EXTERNAL AGENCIES AND BODIES,5902381419,1000056686
04.10.2019,CUSTOMER EXPERIENCE HGF,VENTURE HOUSING (LONDON) LTD,"9,072.00",NIGHTLY TA (NSC),EXTERNAL AGENCIES AND BODIES,5902381426,1000056686
04.10.2019,CUSTOMER EXPERIENCE HGF,KINDLY PROPERTIES LTD,"16,561.75",NIGHTLY TA (NSC),EXTERNAL AGENCIES AND BODIES,5902381240,1000060734
04.10.2019,CUSTOMER EXPERIENCE HGF,J & M OASIS LTD,"19,143.75",NIGHTLY TA (NSC),EXTERNAL AGENCIES AND BODIES,5902381255,1000072169
04.10.2019,CUSTOMER EXPERIENCE HGF,VENTURE HOUSING (LONDON) LTD,"21,525.00",NIGHTLY TA (NSC),EXTERNAL AGENCIES AND BODIES,5902381440,1000056686
04.10.2019,ENVIRONMENT AND LEISURE,RIVERSIDE PARENTS & CARERS ASSN,"3,398.11",CAPITAL PS (LEISURE),CAPITAL GRANTS,5902381113,1000060478
04.10.2019,ENVIRONMENT AND LEISURE,INTO SERVICES LONDON LTD,"9,345.00",CAPITAL PS (LEISURE),CONSTRUCTION FEES - ARCHITECT,5902381242,1000059328
04.10.2019,ENVIRONMENT DIRECTORATE,ARNOLD CLARK VEHICLE MANAGEMENT,252.91,CAR LEASING CTRL A/C,VEHICLE LEASING CHARGES,5902381361,1000079116
04.10.2019,ENVIRONMENT DIRECTORATE,ARNOLD CLARK VEHICLE MANAGEMENT,273.37,CAR LEASING CTRL A/C,VEHICLE LEASING CHARGES,5902381350,1000079116
04.10.2019,ENVIRONMENT DIRECTORATE,ARNOLD CLARK VEHICLE MANAGEMENT,321.63,CAR LEASING CTRL A/C,VEHICLE LEASING CHARGES,5902381385,1000079116
04.10.2019,ENVIRONMENT DIRECTORATE,ARNOLD CLARK VEHICLE MANAGEMENT,351.32,CAR LEASING CTRL A/C,VEHICLE LEASING CHARGES,5902381385,1000079116
04.10.2019,ENVIRONMENT DIRECTORATE,ARNOLD CLARK VEHICLE MANAGEMENT,363.4,CAR LEASING CTRL A/C,VEHICLE LEASING CHARGES,5902381352,1000079116
04.10.2019,ENVIRONMENT DIRECTORATE,ARNOLD CLARK VEHICLE MANAGEMENT,393.84,CAR LEASING CTRL A/C,VEHICLE LEASING CHARGES,5902381352,1000079116
04.10.2019,ENVIRONMENT DIRECTORATE,ARNOLD CLARK VEHICLE MANAGEMENT,400.77,CAR LEASING CTRL A/C,VEHICLE LEASING CHARGES,5902381388,1000079116
04.10.2019,ENVIRONMENT DIRECTORATE,ARNOLD CLARK VEHICLE MANAGEMENT,420.64,CAR LEASING CTRL A/C,VEHICLE LEASING CHARGES,5902381343,1000079116
04.10.2019,ENVIRONMENT DIRECTORATE,ARNOLD CLARK VEHICLE MANAGEMENT,445.82,CAR LEASING CTRL A/C,VEHICLE LEASING CHARGES,5902381388,1000079116
04.10.2019,ENVIRONMENT DIRECTORATE,ARNOLD CLARK VEHICLE MANAGEMENT,449.38,CAR LEASING CTRL A/C,VEHICLE LEASING CHARGES,5902381343,1000079116
04.10.2019,ENVIRONMENT DIRECTORATE,ARNOLD CLARK VEHICLE MANAGEMENT,614.76,CAR LEASING CTRL A/C,VEHICLE LEASING CHARGES,5902381384,1000079116
04.10.2019,ENVIRONMENT DIRECTORATE,ARNOLD CLARK VEHICLE MANAGEMENT,631.1,CAR LEASING CTRL A/C,VEHICLE LEASING CHARGES,5902381384,1000079116
04.10.2019,ENVIRONMENT DIRECTORATE,ARNOLD CLARK VEHICLE MANAGEMENT,671.15,CAR LEASING CTRL A/C,VEHICLE LEASING CHARGES,5902381387,1000079116
04.10.2019,ENVIRONMENT DIRECTORATE,ARNOLD CLARK VEHICLE MANAGEMENT,695.14,CAR LEASING CTRL A/C,VEHICLE LEASING CHARGES,5902381387,1000079116
04.10.2019,ENVIRONMENT DIRECTORATE,ARNOLD CLARK VEHICLE MANAGEMENT,752.32,CAR LEASING CTRL A/C,VEHICLE LEASING CHARGES,5902381382,1000079116
04.10.2019,ENVIRONMENT DIRECTORATE,ARNOLD CLARK VEHICLE MANAGEMENT,789.71,CAR LEASING CTRL A/C,VEHICLE LEASING CHARGES,5902381393,1000079116
04.10.2019,ENVIRONMENT DIRECTORATE,ARNOLD CLARK VEHICLE MANAGEMENT,800.97,CAR LEASING CTRL A/C,VEHICLE LEASING CHARGES,5902381382,1000079116
04.10.2019,ENVIRONMENT DIRECTORATE,ARNOLD CLARK VEHICLE MANAGEMENT,837.49,CAR LEASING CTRL A/C,VEHICLE LEASING CHARGES,5902381393,1000079116
04.10.2019,ENVIRONMENT DIRECTORATE,ARNOLD CLARK VEHICLE MANAGEMENT,875.23,CAR LEASING CTRL A/C,VEHICLE LEASING CHARGES,5902381342,1000079116
04.10.2019,ENVIRONMENT DIRECTORATE,ARNOLD CLARK VEHICLE MANAGEMENT,884.82,CAR LEASING CTRL A/C,VEHICLE LEASING CHARGES,5902381342,1000079116
04.10.2019,ENVIRONMENT DIRECTORATE,ARNOLD CLARK VEHICLE MANAGEMENT,950.83,CAR LEASING CTRL A/C,VEHICLE LEASING CHARGES,5902381391,1000079116
04.10.2019,ENVIRONMENT DIRECTORATE,ARNOLD CLARK VEHICLE MANAGEMENT,"1,053.80",CAR LEASING CTRL A/C,VEHICLE LEASING CHARGES,5902381391,1000079116
04.10.2019,ENVIRONMENT DIRECTORATE,PESTOKILL,"2,600.00",COMMERCIAL PEST CONTROL WORKS,OTHER CONTRACTORS,5902381379,1000059440
04.10.2019,ENVIRONMENT DIRECTORATE,SCOT GROUP LIMITED,385.56,COMMERCIAL VEH CTRL A/C,HIRED VEHICLES,5902381297,1709512
04.10.2019,ENVIRONMENT DIRECTORATE,UNIVERSAL TYRE & AUTOCENTRES,294.94,COMMERCIAL VEH CTRL A/C,OTHER VEHICLE RUNNING COSTS,5902381260,1000072475
04.10.2019,ENVIRONMENT DIRECTORATE,SHELL UK OIL PRODUCTS LTD,293.92,COMMERCIAL VEH CTRL A/C,VEHICLE FUEL,5902381291,1000081254
04.10.2019,ENVIRONMENT DIRECTORATE,SHELL UK OIL PRODUCTS LTD,300.37,COMMERCIAL VEH CTRL A/C,VEHICLE FUEL,5902381274,1000081254
04.10.2019,ENVIRONMENT DIRECTORATE,SHELL UK OIL PRODUCTS LTD,355.36,COMMERCIAL VEH CTRL A/C,VEHICLE FUEL,5902381325,1000081254
04.10.2019,ENVIRONMENT DIRECTORATE,SHELL UK OIL PRODUCTS LTD,488.26,COMMERCIAL VEH CTRL A/C,VEHICLE FUEL,5902381329,1000081254
04.10.2019,ENVIRONMENT DIRECTORATE,SHELL UK OIL PRODUCTS LTD,500.85,COMMERCIAL VEH CTRL A/C,VEHICLE FUEL,5902381287,1000081254
04.10.2019,ENVIRONMENT DIRECTORATE,SHELL UK OIL PRODUCTS LTD,745.27,COMMERCIAL VEH CTRL A/C,VEHICLE FUEL,5902381292,1000081254
04.10.2019,ENVIRONMENT DIRECTORATE,SHELL UK OIL PRODUCTS LTD,"1,291.88",COMMERCIAL VEH CTRL A/C,VEHICLE FUEL,5902381328,1000081254
04.10.2019,ENVIRONMENT DIRECTORATE,SHELL UK OIL PRODUCTS LTD,"1,629.71",COMMERCIAL VEH CTRL A/C,VEHICLE FUEL,5902381327,1000081254
04.10.2019,ENVIRONMENT DIRECTORATE,PLASTIC OMNIUM URBAN SYSTEMS LTD,414.8,COMMERCIAL WASTE,EQUIPMENT PURCHASE & REPAIR,5902381445,1525642
04.10.2019,ENVIRONMENT DIRECTORATE,PLASTIC OMNIUM URBAN SYSTEMS LTD,779,COMMERCIAL WASTE,EQUIPMENT PURCHASE & REPAIR,5902381445,1525642
04.10.2019,ENVIRONMENT DIRECTORATE,PURPOSE POWDER COATINGS LTD,654.73,ENGINEERING CRAFTS,MATERIALS,5902381239,1000059450
04.10.2019,ENVIRONMENT DIRECTORATE,F H BRUNDLE,750,ENGINEERING CRAFTS,MATERIALS,5902381241,1082714
04.10.2019,ENVIRONMENT DIRECTORATE,GREENHAM TRADING LTD,293.25,ESTATE CLEANING-GENERAL,MATERIALS,5902381304,1000006610
04.10.2019,ENVIRONMENT DIRECTORATE,PERFORMANCE CHEMICALS LTD,960,ESTATE CLEANING-GENERAL,MATERIALS,5902381401,1000037129
04.10.2019,ENVIRONMENT DIRECTORATE,THE T.P. PARTNERSHIP,"2,225.00",ESTATE CLEANING-GENERAL,OTHER CONTRACTORS,5902381307,1000045906
04.10.2019,ENVIRONMENT DIRECTORATE,BT OFFICE FURNITURE & SUPPLIES,299,HIGHWAY MAINTENANCE OVERHEADS,TELEPHONES (MOBILES),5902381380,1000058060
04.10.2019,ENVIRONMENT DIRECTORATE,SOUTHWARK NEWSPAPER LTD,492,HIGHWAYS DEVELOPMENT,MARKETING & PUBLICITY SERVICES,5902381276,1556957
04.10.2019,ENVIRONMENT DIRECTORATE,SOUTHWARK NEWSPAPER LTD,552,HIGHWAYS DEVELOPMENT,MARKETING & PUBLICITY SERVICES,5902381279,1556957
04.10.2019,ENVIRONMENT DIRECTORATE,CONWAY AECOM LTD,"3,278.49",PARKING OVERHEADS,OTHER CONTRACTORS,2103012151,3000001595
04.10.2019,ENVIRONMENT DIRECTORATE,SIGNSCAPE SYSTEMS LTD,"3,148.73",SIGN SHOP,MATERIALS,5902381232,1000052408
04.10.2019,ENVIRONMENT DIRECTORATE,VEOLIA ES SOUTHWARK LTD,"38,654.79",WASTE PFI,VEHICLE FUEL,5902381358,1000056979
04.10.2019,ENVIRONMENT DIRECTORATE,VEOLIA ES SOUTHWARK LTD,"42,200.04",WASTE PFI,VEHICLE FUEL,5902381370,1000056979
04.10.2019,ENVIRONMENT DIRECTORATE,VEOLIA ES SOUTHWARK LTD,"43,016.86",WASTE PFI,VEHICLE FUEL,5902381376,1000056979
04.10.2019,ENVIRONMENT DIRECTORATE,VEOLIA ES SOUTHWARK LTD,"44,155.31",WASTE PFI,VEHICLE FUEL,5902381349,1000056979
04.10.2019,ENVIRONMENT DIRECTORATE,VEOLIA ES SOUTHWARK LTD,"45,997.13",WASTE PFI,VEHICLE FUEL,5902381367,1000056979
04.10.2019,ENVIRONMENT DIRECTORATE,VEOLIA ES SOUTHWARK LTD,"49,191.99",WASTE PFI,VEHICLE FUEL,5902381355,1000056979
04.10.2019,EXCHEQUER SERVICES,NORTHGATE PUBLIC SERVICES (UK) LTD,255.21,ADMINISTRATIVE SUPPORT,POSTAGES,5902381449,1000037405
04.10.2019,HOUSING GENERAL FUND,DAVID MILES & PARTNERS LTD,"16,500.00",CAPITAL PS (REGEN),CONSTRUCTION MAIN CONTRACT,5902381351,1000001119
04.10.2019,HOUSING HRA,C&C BUILDERS LTD,"6,548.15",CAPITAL PS (HRA),CONST'N MAIN CONTRACT - NON CERTIFICATED,2103012150,3000001986
04.10.2019,HOUSING HRA,C&C BUILDERS LTD,"7,861.28",CAPITAL PS (HRA),CONST'N MAIN CONTRACT - NON CERTIFICATED,2103012135,3000001986
04.10.2019,HOUSING HRA,C&C BUILDERS LTD,"12,440.57",CAPITAL PS (HRA),CONST'N MAIN CONTRACT - NON CERTIFICATED,2103012149,3000001986
04.10.2019,HOUSING HRA,POTTER RAPER LTD,"1,886.07",CAPITAL PS (HRA),CONSTRUCTION FEES  - EXTERNAL,5902381464,1009369
04.10.2019,HOUSING HRA,ENGIE REGENERATION (APOLLO) LTD,"23,503.24",CAPITAL PS (HRA),CONSTRUCTION MAIN CONTRACT -CERTIFICATED,2103012153,4000449
04.10.2019,HOUSING HRA,ENGIE REGENERATION (APOLLO) LTD,"57,329.34",CAPITAL PS (HRA),CONSTRUCTION MAIN CONTRACT -CERTIFICATED,2103012148,4000449
04.10.2019,LEISURE DIRECTORATE,NPOWER,304.96,BRANDON LIBRARY,ELECTRICITY,5902381346,1000055441
04.10.2019,LEISURE DIRECTORATE,KENT COUNTY COUNCIL - LASER,595.59,BURGESS AREA TEAM,ELECTRICITY,5902381482,1000012926
04.10.2019,LEISURE DIRECTORATE,KENT COUNTY COUNCIL - LASER,603.15,BURGESS AREA TEAM,ELECTRICITY,5902381448,1000012926
04.10.2019,LEISURE DIRECTORATE,KENT COUNTY COUNCIL - LASER,633.29,BURGESS AREA TEAM,ELECTRICITY,5902381332,1000012926
04.10.2019,LEISURE DIRECTORATE,KENT COUNTY COUNCIL - LASER,715.05,BURGESS AREA TEAM,ELECTRICITY,5902381460,1000012926
04.10.2019,LEISURE DIRECTORATE,KENT COUNTY COUNCIL - LASER,"1,313.93",BURGESS AREA TEAM,ELECTRICITY,5902381466,1000012926
04.10.2019,LEISURE DIRECTORATE,P D CONSTRUCTION LTD,"1,890.00",BURGESS AREA TEAM,OTHER R&M,5902381360,1000000390
04.10.2019,LEISURE DIRECTORATE,P D CONSTRUCTION LTD,"2,195.00",BURGESS AREA TEAM,OTHER R&M,5902381368,1000000390
04.10.2019,LEISURE DIRECTORATE,KENT COUNTY COUNCIL - LASER,338.6,BURGESS SPORTS CENTRE,ELECTRICITY,5902381457,1000012926
04.10.2019,LEISURE DIRECTORATE,KENT COUNTY COUNCIL - LASER,371.38,BURGESS SPORTS CENTRE,ELECTRICITY,5902381473,1000012926
04.10.2019,LEISURE DIRECTORATE,QUADRON SERVICES LIMITED,"8,407.90",BURGESS SPORTS CENTRE,PROFESSIONAL FEES,5902381404,1000066528
04.10.2019,LEISURE DIRECTORATE,LASCOT LTD,634.55,COMMUNITY SPORTS DEVELOPMENT,HIRED VEHICLES,5902381335,1000039774
04.10.2019,LEISURE DIRECTORATE,KENT COUNTY COUNCIL - LASER,251.26,DULWICH AREA TEAM,ELECTRICITY,5902381331,1000012926
04.10.2019,LEISURE DIRECTORATE,KENT COUNTY COUNCIL - LASER,332.37,DULWICH AREA TEAM,ELECTRICITY,5902381330,1000012926
04.10.2019,LEISURE DIRECTORATE,KENT COUNTY COUNCIL - LASER,506.48,DULWICH AREA TEAM,ELECTRICITY,5902381345,1000012926
04.10.2019,LEISURE DIRECTORATE,KENT COUNTY COUNCIL - LASER,"1,449.34",DULWICH AREA TEAM,ELECTRICITY,5902381452,1000012926
04.10.2019,LEISURE DIRECTORATE,KENT COUNTY COUNCIL - LASER,"1,608.40",DULWICH AREA TEAM,ELECTRICITY,5902381475,1000012926
04.10.2019,LEISURE DIRECTORATE,KENT COUNTY COUNCIL - LASER,288.31,DULWICH AREA TEAM,GAS,5902381430,1000012926
04.10.2019,LEISURE DIRECTORATE,KENT COUNTY COUNCIL - LASER,384.29,DULWICH AREA TEAM,GAS,5902381341,1000012926
04.10.2019,LEISURE DIRECTORATE,CCCP WORKSHOPS LTD,353.8,LIBARIES DEVELOPMENT,MARKETING & PUBLICITY SERVICES,5902381244,1000052637
04.10.2019,LEISURE DIRECTORATE,KENT COUNTY COUNCIL - LASER,321.67,MINT STREET,GAS,5902381436,1000012926
04.10.2019,LEISURE DIRECTORATE,KENT COUNTY COUNCIL - LASER,349.98,MINT STREET,GAS,5902381434,1000012926
04.10.2019,LEISURE DIRECTORATE,KENT COUNTY COUNCIL - LASER,"2,615.90",SOUTHWARK AREA TEAM,ELECTRICITY,5902381463,1000012926
04.10.2019,NEW SOUTHWARK BUILDING SERVICES,HOWDENS JOINERY CO,288.6,WALWORTH DD,MATERIALS,5902381256,1000027491
04.10.2019,PLANNING AND TRANSPORT,LONDON DISTRICT SURVEYORS ASSOCIATION,695,BUILDING CONTROL,PROFESSIONAL FEES,5902381205,1000054841
04.10.2019,REGENERATION,FIELD FISHER WATERHOUSE,495,22 SHAND STREET,PROFESSIONAL FEES,5902381459,1000047449
04.10.2019,REGENERATION,NPOWER LTD,"1,256.45",LBS SOJOURNER TRUTH COMMUNITY CENTRE,ELECTRICITY,5902381480,1000078994
04.10.2019,REGENERATION,SAWYER FIELDING LTD,750,PROFESSIONAL SERVICES (GENERAL),PROFESSIONAL FEES,5902381461,1000081434
04.10.2019,REGENERATION,ORU SPACE LTD,"11,410.00",PROFESSIONAL SERVICES (GENERAL),PROFESSIONAL FEES,5902381407,1000083105
04.10.2019,REGENERATION,NPOWER LTD,269.87,VCS MANAGED MSC BUILDILNGS,ELECTRICITY,5902381470,1000078994
04.10.2019,RESIDENT SERVICES,NPOWER,950.54,OPERATIONS/OFFICES ACCOMMODATION,ELECTRICITY,5902381223,1000064203
04.10.2019,RESIDENT SERVICES,RELIANCE HIGH-TECH LTD,"1,655.55",OPERATIONS/OFFICES ACCOMMODATION,OFFICE EXPENSES,5902381468,1000079374
04.10.2019,RESIDENT SERVICES,CRIME CONCERN UK LTD,"2,790.00",OPERATIONS/OFFICES ACCOMMODATION,OTHER CONTRACTORS,5902381334,1000067928
04.10.2019,RESIDENT SERVICES,CRIME CONCERN UK LTD,"3,100.00",OPERATIONS/OFFICES ACCOMMODATION,OTHER CONTRACTORS,5902381333,1000067928
04.10.2019,RESIDENT SERVICES,CASTLE WATER LTD,414.33,PECKHAM,WATER,5902381412,1000078867
04.10.2019,RESIDENT SERVICES,OCEAN MEDIA GROUP LIMITED,459,STRATEGIC BUSINESS PLANNING,TRAINING,5902380588,1000003205
04.10.2019,RESIDENT SERVICES HGF,THAMES WATER UTILITIES LTD,359.22,ILDERTON ROAD PERM,WATER,5902381427,11003005
04.10.2019,SOUTHWARK BUILDING SERVICES,EDWARDES BROS (DULWICH) LTD,385,STORES/LOGISTICS,CREDITORS -GR/IR CLEARING ACCOUNT,5902381210,1004945
04.10.2019,SOUTHWARK BUILDING SERVICES,EDWARDES BROS (DULWICH) LTD,385,STORES/LOGISTICS,CREDITORS -GR/IR CLEARING ACCOUNT,5902381212,1004945
04.10.2019,SOUTHWARK BUILDING SERVICES,C A BALDWIN & CO LTD,488,STORES/LOGISTICS,CREDITORS -GR/IR CLEARING ACCOUNT,5902381201,1000699
04.10.2019,SOUTHWARK BUILDING SERVICES,EDWARDES BROS (DULWICH) LTD,962.5,STORES/LOGISTICS,CREDITORS -GR/IR CLEARING ACCOUNT,5902381204,1004945
04.10.2019,SOUTHWARK BUILDING SERVICES,EDWARDES BROS (DULWICH) LTD,"4,200.00",STORES/LOGISTICS,CREDITORS -GR/IR CLEARING ACCOUNT,5902381204,1004945
05.10.2019,ADULT SOCIAL CARE,INSPIRE SOCIAL CARE LTD,"2,362.40",SAFEGUARDING TEAM,OTHER CONTRACTORS,5902381082,1000081757
05.10.2019,ADULT SOCIAL CARE,INSPIRE SOCIAL CARE LTD,"3,432.00",SAFEGUARDING TEAM,OTHER CONTRACTORS,5902381084,1000081757
05.10.2019,ASSET MANAGEMENT,DISTRICT SURVEYORS ASSOCIATION LTD,300,DESIGN & DELIVERY,TRAINING,5902381102,1000022645
05.10.2019,ASSET MANAGEMENT,FRANKHAM CONSULTANCY GROUP LTD,750,DISREPAIR,PAYMENTS FOR LEGAL SERVICES,5902381035,1000043952
05.10.2019,COMMUNITIES,ST HELENA & OLDFIELD TR&A,"1,300.00",TENANTS FUND,GRANTS,5902380270,1000061625
05.10.2019,CUSTOMER EXPERIENCE,PATRICIA AMESBURY,528.53,COMPLAINTS,EXTERNAL AGENCIES AND BODIES,5902380862,1000060418
05.10.2019,ENVIRONMENT AND LEISURE,LANT & BITTERN STREET T&RA,"4,500.00",CAPITAL PS (LEISURE),CAPITAL GRANTS,5902380291,1000056086
05.10.2019,ENVIRONMENT DIRECTORATE,HAVEBIKE LTD,495,"ROAD SAFETY EDUCATION,TRAINING&PUBLICITY",PROFESSIONAL FEES,5902380506,1000073961
05.10.2019,HOUSING HRA,CALFORD SEADEN LLP,"3,206.56",CAPITAL PS (HRA),CONSTRUCTION FEES  - EXTERNAL,5902381202,1061592
05.10.2019,HOUSING HRA,CALFORD SEADEN LLP,"10,481.05",CAPITAL PS (HRA),CONSTRUCTION FEES  - EXTERNAL,5902380614,1061592
05.10.2019,HOUSING HRA,ENGIE REGENERATION (APOLLO) LTD,"115,888.96",CAPITAL PS (HRA),CONSTRUCTION MAIN CONTRACT -CERTIFICATED,2103012152,4000449
05.10.2019,LEISURE DIRECTORATE,35 PERCENT LTD,"2,717.50",DULWICH AREA TEAM,GROUNDS MAINTENANCE,5902380517,1000082931
05.10.2019,MODERNISATION HGF,INTERSERVE (FACILITIES MANAGEMENT),"455,448.20",FM SERVICES BY INTERSERVE,INTEGRATED FACILITIES MANAGEMENT CONTRACT,5902381247,1000070792
05.10.2019,REGENERATION,GISELLA BOUTIQUE,960,OLD KENT RD-FEES/MPLAN,MARKETING & PUBLICITY SERVICES,5902381453,1000083063
06.10.2019,ADULT SOCIAL CARE,RADHA CONSULTING LTD,357.25,SAFEGUARDING TEAM,OTHER CONTRACTORS,5902381078,1000061154
06.10.2019,CUSTOMER EXPERIENCE,PATRICIA AMESBURY,449.78,COMPLAINTS,EXTERNAL AGENCIES AND BODIES,5902381410,1000060418
06.10.2019,ENVIRONMENT AND LEISURE,SARAH YATES,"1,200.00",CAPITAL PS (LEISURE),CONSTRUCTION MAIN CONTRACT -CERTIFICATED,5902381025,1000082364
06.10.2019,ENVIRONMENT DIRECTORATE,SOUTHWARK NEWSPAPER LTD,564,HIGHWAYS DEVELOPMENT,MARKETING & PUBLICITY SERVICES,5902381280,1556957
06.10.2019,ENVIRONMENT DIRECTORATE,ELLIOT ENVIRONMENTAL LTD,400,STREET CLEANING-GENERAL,OTHER CONTRACTORS,5902381238,1000047392
06.10.2019,ENVIRONMENT DIRECTORATE,SOUTHWARK NEWSPAPER LTD,300,STREET WORKS OVERHEADS,MARKETING & PUBLICITY SERVICES,5902381163,1556957
06.10.2019,ENVIRONMENT DIRECTORATE,SOUTHWARK NEWSPAPER LTD,300,STREET WORKS OVERHEADS,MARKETING & PUBLICITY SERVICES,5902381193,1556957
06.10.2019,ENVIRONMENT DIRECTORATE,SOUTHWARK NEWSPAPER LTD,312,STREET WORKS OVERHEADS,MARKETING & PUBLICITY SERVICES,5902381164,1556957
07.10.2019,ADULT SOCIAL CARE,REDACTED PERSONAL DATA,277.3,APPOINTEESHIPS,OTHER PAYMENTS FOR CLIENTS,REDACTED,REDACTED
07.10.2019,ADULT SOCIAL CARE,HYDE HOUSING ASSOCIATION LTD,"2,759.43",EXTRA CARE CONTRACT,RENTS,5902381645,1000013980
07.10.2019,ADULT SOCIAL CARE,HYDE HOUSING ASSOCIATION LTD,"2,759.43",EXTRA CARE CONTRACT,RENTS,5902381646,1000013980
07.10.2019,ADULT SOCIAL CARE,ACCESS MOBILITY TRANSPORT LTD,"2,271.80",LD LTS 18-64,CLIENT TRANSPORT,2103012514,1000074637
07.10.2019,ADULT SOCIAL CARE,REDACTED PERSONAL DATA,419,LD LTS 18-64,PAYMENTS TO CLIENTS (DIRECT PAYMENTS),REDACTED,REDACTED
07.10.2019,ADULT SOCIAL CARE,MEDACS HOMECARE,289,LD LTS 18-64,SUPPORTED LIVING,2103012531,11287415
07.10.2019,ADULT SOCIAL CARE,MEDACS HOMECARE,293.23,LD LTS 18-64,SUPPORTED LIVING,2103012529,11287415
07.10.2019,ADULT SOCIAL CARE,MEDACS HOMECARE,332.25,LD LTS 18-64,SUPPORTED LIVING,2103012523,11287415
07.10.2019,ADULT SOCIAL CARE,MEDACS HOMECARE,346.8,LD LTS 18-64,SUPPORTED LIVING,2103012524,11287415
07.10.2019,ADULT SOCIAL CARE,MEDACS HOMECARE,346.8,LD LTS 18-64,SUPPORTED LIVING,2103012527,11287415
07.10.2019,ADULT SOCIAL CARE,MEDACS HOMECARE,346.8,LD LTS 18-64,SUPPORTED LIVING,2103012532,11287415
07.10.2019,ADULT SOCIAL CARE,DARETHEALTHCARE UK LTD,496.44,LD LTS 18-64,SUPPORTED LIVING,2103012513,1000059149
07.10.2019,ADULT SOCIAL CARE,MARCUS AND MARCUS LTD,"4,800.00",LD LTS 18-64,SUPPORTED LIVING,2103012519,1000065913
07.10.2019,ADULT SOCIAL CARE,MANLEY COURT NURSING HOME (BUPA),"2,520.32",MEM LTS 65+,NURSING PLACEMENTS FEES,2103009650,11101434
07.10.2019,ADULT SOCIAL CARE,MANLEY COURT NURSING HOME (BUPA),"2,700.32",MEM LTS 65+,NURSING PLACEMENTS FEES,2103009208,11101434
07.10.2019,ADULT SOCIAL CARE,PAULWAYS KENNELS,310,MH LTS 18-64,EXTERNAL AGENCIES AND BODIES,2103012517,1068767
07.10.2019,ADULT SOCIAL CARE,SERVESOUL LTD,323.66,MH LTS 18-64,HOMECARE - SPOT,2103012439,1000081503
07.10.2019,ADULT SOCIAL CARE,AGE UK LEWISHAM & SOUTHWARK,"52,825.00",OLDER PEOPLES HUBS,EXTERNAL AGENCIES AND BODIES,5902381570,1507154
07.10.2019,ADULT SOCIAL CARE,SUPREME CARE SERVICES LTD,835.08,PHY LTS 18-64,HOMECARE - C&V,2103012432,1000059416
07.10.2019,ADULT SOCIAL CARE,THAMES HOMECARE SERVICE LTD,250.6,PHY LTS 18-64,HOMECARE - SPOT,2103012474,1000079295
07.10.2019,ADULT SOCIAL CARE,THAMES HOMECARE SERVICE LTD,286.4,PHY LTS 18-64,HOMECARE - SPOT,2103012482,1000079295
07.10.2019,ADULT SOCIAL CARE,THAMES HOMECARE SERVICE LTD,290.88,PHY LTS 18-64,HOMECARE - SPOT,2103012501,1000079295
07.10.2019,ADULT SOCIAL CARE,THAMES HOMECARE SERVICE LTD,322.2,PHY LTS 18-64,HOMECARE - SPOT,2103012503,1000079295
07.10.2019,ADULT SOCIAL CARE,THAMES HOMECARE SERVICE LTD,380.38,PHY LTS 18-64,HOMECARE - SPOT,2103012457,1000079295
07.10.2019,ADULT SOCIAL CARE,SERVESOUL LTD,408.91,PHY LTS 18-64,HOMECARE - SPOT,2103012400,1000081503
07.10.2019,ADULT SOCIAL CARE,THAMES HOMECARE SERVICE LTD,604.13,PHY LTS 18-64,HOMECARE - SPOT,2103012480,1000079295
07.10.2019,ADULT SOCIAL CARE,THAMES HOMECARE SERVICE LTD,626.5,PHY LTS 18-64,HOMECARE - SPOT,2103012477,1000079295
07.10.2019,ADULT SOCIAL CARE,THAMES HOMECARE SERVICE LTD,733.9,PHY LTS 18-64,HOMECARE - SPOT,2103012485,1000079295
07.10.2019,ADULT SOCIAL CARE,HAVELOCK COURT (BUPA CARE),"3,308.28",PHY LTS 18-64,NURSING PLACEMENTS FEES,2103009826,1000028902
07.10.2019,ADULT SOCIAL CARE,WARREN LODGE CARE HOME (BUPA),"3,672.00",PHY LTS 18-64,NURSING PLACEMENTS FEES,2103009864,11197104
07.10.2019,ADULT SOCIAL CARE,HAVELOCK COURT (BUPA CARE),"3,806.36",PHY LTS 18-64,NURSING PLACEMENTS FEES,2103009732,1000028902
07.10.2019,ADULT SOCIAL CARE,HAVELOCK COURT (BUPA CARE),"3,876.00",PHY LTS 18-64,NURSING PLACEMENTS FEES,2103009781,1000028902
07.10.2019,ADULT SOCIAL CARE,HAVELOCK COURT (BUPA CARE),"3,902.84",PHY LTS 18-64,NURSING PLACEMENTS FEES,2103009177,1000028902
07.10.2019,ADULT SOCIAL CARE,MEDACS HOMECARE,693.6,PHY LTS 18-64,SUPPORTED LIVING,2103012525,11287415
07.10.2019,ADULT SOCIAL CARE,MEDACS HOMECARE,736.95,PHY LTS 18-64,SUPPORTED LIVING,2103012526,11287415
07.10.2019,ADULT SOCIAL CARE,MEDACS HOMECARE,736.95,PHY LTS 18-64,SUPPORTED LIVING,2103012530,11287415
07.10.2019,ADULT SOCIAL CARE,SUPREME CARE SERVICES LTD,250.58,PHY LTS 65+,HOMECARE - C&V,2103012433,1000059416
07.10.2019,ADULT SOCIAL CARE,SUPREME CARE SERVICES LTD,417.5,PHY LTS 65+,HOMECARE - C&V,2103012426,1000059416
07.10.2019,ADULT SOCIAL CARE,SUPREME CARE SERVICES LTD,460.36,PHY LTS 65+,HOMECARE - C&V,2103012428,1000059416
07.10.2019,ADULT SOCIAL CARE,SUPREME CARE SERVICES LTD,733.71,PHY LTS 65+,HOMECARE - C&V,2103012436,1000059416
07.10.2019,ADULT SOCIAL CARE,SUPREME CARE SERVICES LTD,"1,331.96",PHY LTS 65+,HOMECARE - C&V,2103012437,1000059416
07.10.2019,ADULT SOCIAL CARE,THAMES HOMECARE SERVICE LTD,250.6,PHY LTS 65+,HOMECARE - SPOT,2103012489,1000079295
07.10.2019,ADULT SOCIAL CARE,SERVESOUL LTD,262.87,PHY LTS 65+,HOMECARE - SPOT,2103012389,1000081503
07.10.2019,ADULT SOCIAL CARE,THAMES HOMECARE SERVICE LTD,268.5,PHY LTS 65+,HOMECARE - SPOT,2103012476,1000079295
07.10.2019,ADULT SOCIAL CARE,SERVESOUL LTD,292.08,PHY LTS 65+,HOMECARE - SPOT,2103012421,1000081503
07.10.2019,ADULT SOCIAL CARE,SERVESOUL LTD,308.77,PHY LTS 65+,HOMECARE - SPOT,2103012391,1000081503
07.10.2019,ADULT SOCIAL CARE,THAMES HOMECARE SERVICE LTD,313.25,PHY LTS 65+,HOMECARE - SPOT,2103012511,1000079295
07.10.2019,ADULT SOCIAL CARE,THAMES HOMECARE SERVICE LTD,344.58,PHY LTS 65+,HOMECARE - SPOT,2103012454,1000079295
07.10.2019,ADULT SOCIAL CARE,THAMES HOMECARE SERVICE LTD,344.58,PHY LTS 65+,HOMECARE - SPOT,2103012497,1000079295
07.10.2019,ADULT SOCIAL CARE,THAMES HOMECARE SERVICE LTD,344.58,PHY LTS 65+,HOMECARE - SPOT,2103012507,1000079295
07.10.2019,ADULT SOCIAL CARE,SERVESOUL LTD,346.32,PHY LTS 65+,HOMECARE - SPOT,2103012414,1000081503
07.10.2019,ADULT SOCIAL CARE,SERVESOUL LTD,400.56,PHY LTS 65+,HOMECARE - SPOT,2103012442,1000081503
07.10.2019,ADULT SOCIAL CARE,THAMES HOMECARE SERVICE LTD,407.23,PHY LTS 65+,HOMECARE - SPOT,2103012506,1000079295
07.10.2019,ADULT SOCIAL CARE,SERVESOUL LTD,408.91,PHY LTS 65+,HOMECARE - SPOT,2103012404,1000081503
07.10.2019,ADULT SOCIAL CARE,THAMES HOMECARE SERVICE LTD,420.65,PHY LTS 65+,HOMECARE - SPOT,2103012484,1000079295
07.10.2019,ADULT SOCIAL CARE,SERVESOUL LTD,421.42,PHY LTS 65+,HOMECARE - SPOT,2103012418,1000081503
07.10.2019,ADULT SOCIAL CARE,SERVESOUL LTD,433.94,PHY LTS 65+,HOMECARE - SPOT,2103012383,1000081503
07.10.2019,ADULT SOCIAL CARE,THAMES HOMECARE SERVICE LTD,483.3,PHY LTS 65+,HOMECARE - SPOT,2103012460,1000079295
07.10.2019,ADULT SOCIAL CARE,THAMES HOMECARE SERVICE LTD,501.2,PHY LTS 65+,HOMECARE - SPOT,2103012495,1000079295
07.10.2019,ADULT SOCIAL CARE,SERVESOUL LTD,525.74,PHY LTS 65+,HOMECARE - SPOT,2103012401,1000081503
07.10.2019,ADULT SOCIAL CARE,SERVESOUL LTD,525.74,PHY LTS 65+,HOMECARE - SPOT,2103012405,1000081503
07.10.2019,ADULT SOCIAL CARE,SERVESOUL LTD,534.08,PHY LTS 65+,HOMECARE - SPOT,2103012423,1000081503
07.10.2019,ADULT SOCIAL CARE,THAMES HOMECARE SERVICE LTD,537,PHY LTS 65+,HOMECARE - SPOT,2103012468,1000079295
07.10.2019,ADULT SOCIAL CARE,SERVESOUL LTD,559.12,PHY LTS 65+,HOMECARE - SPOT,2103012392,1000081503
07.10.2019,ADULT SOCIAL CARE,THAMES HOMECARE SERVICE LTD,563.85,PHY LTS 65+,HOMECARE - SPOT,2103012466,1000079295
07.10.2019,ADULT SOCIAL CARE,THAMES HOMECARE SERVICE LTD,563.85,PHY LTS 65+,HOMECARE - SPOT,2103012470,1000079295
07.10.2019,ADULT SOCIAL CARE,THAMES HOMECARE SERVICE LTD,563.85,PHY LTS 65+,HOMECARE - SPOT,2103012494,1000079295
07.10.2019,ADULT SOCIAL CARE,SERVESOUL LTD,579.98,PHY LTS 65+,HOMECARE - SPOT,2103012410,1000081503
07.10.2019,ADULT SOCIAL CARE,SERVESOUL LTD,584.15,PHY LTS 65+,HOMECARE - SPOT,2103012388,1000081503
07.10.2019,ADULT SOCIAL CARE,SERVESOUL LTD,642.57,PHY LTS 65+,HOMECARE - SPOT,2103012413,1000081503
07.10.2019,ADULT SOCIAL CARE,THAMES HOMECARE SERVICE LTD,702.58,PHY LTS 65+,HOMECARE - SPOT,2103012465,1000079295
07.10.2019,ADULT SOCIAL CARE,THAMES HOMECARE SERVICE LTD,814.45,PHY LTS 65+,HOMECARE - SPOT,2103012500,1000079295
07.10.2019,ADULT SOCIAL CARE,THAMES HOMECARE SERVICE LTD,984.5,PHY LTS 65+,HOMECARE - SPOT,2103012456,1000079295
07.10.2019,ADULT SOCIAL CARE,THAMES HOMECARE SERVICE LTD,"1,029.25",PHY LTS 65+,HOMECARE - SPOT,2103012490,1000079295
07.10.2019,ADULT SOCIAL CARE,WARREN LODGE CARE HOME (BUPA),-913.82,PHY LTS 65+,"MAND STATUTORY CHARGES, NURSING",2103009995,11197104
07.10.2019,ADULT SOCIAL CARE,HAVELOCK COURT (BUPA CARE),-629.4,PHY LTS 65+,"MAND STATUTORY CHARGES, NURSING",2103009001,1000028902
07.10.2019,ADULT SOCIAL CARE,HAVELOCK COURT (BUPA CARE),-569.4,PHY LTS 65+,"MAND STATUTORY CHARGES, RESIDENTIAL",2103009297,1000028902
07.10.2019,ADULT SOCIAL CARE,MANLEY COURT NURSING HOME (BUPA),"2,670.12",PHY LTS 65+,NURSING PLACEMENTS FEES,2103009277,11101434
07.10.2019,ADULT SOCIAL CARE,MANLEY COURT NURSING HOME (BUPA),"2,680.16",PHY LTS 65+,NURSING PLACEMENTS FEES,2103009209,11101434
07.10.2019,ADULT SOCIAL CARE,MANLEY COURT NURSING HOME (BUPA),"2,700.32",PHY LTS 65+,NURSING PLACEMENTS FEES,2103008885,11101434
07.10.2019,ADULT SOCIAL CARE,MANLEY COURT NURSING HOME (BUPA),"2,700.32",PHY LTS 65+,NURSING PLACEMENTS FEES,2103009048,11101434
07.10.2019,ADULT SOCIAL CARE,MANLEY COURT NURSING HOME (BUPA),"2,700.32",PHY LTS 65+,NURSING PLACEMENTS FEES,2103009074,11101434
07.10.2019,ADULT SOCIAL CARE,MANLEY COURT NURSING HOME (BUPA),"2,700.32",PHY LTS 65+,NURSING PLACEMENTS FEES,2103009106,11101434
07.10.2019,ADULT SOCIAL CARE,MANLEY COURT NURSING HOME (BUPA),"2,700.32",PHY LTS 65+,NURSING PLACEMENTS FEES,2103009282,11101434
07.10.2019,ADULT SOCIAL CARE,MANLEY COURT NURSING HOME (BUPA),"2,700.32",PHY LTS 65+,NURSING PLACEMENTS FEES,2103009296,11101434
07.10.2019,ADULT SOCIAL CARE,MANLEY COURT NURSING HOME (BUPA),"2,700.32",PHY LTS 65+,NURSING PLACEMENTS FEES,2103009499,11101434
07.10.2019,ADULT SOCIAL CARE,MANLEY COURT NURSING HOME (BUPA),"2,700.32",PHY LTS 65+,NURSING PLACEMENTS FEES,2103010053,11101434
07.10.2019,ADULT SOCIAL CARE,MANLEY COURT NURSING HOME (BUPA),"2,789.44",PHY LTS 65+,NURSING PLACEMENTS FEES,2103009088,11101434
07.10.2019,ADULT SOCIAL CARE,MANLEY COURT NURSING HOME (BUPA),"2,822.72",PHY LTS 65+,NURSING PLACEMENTS FEES,2103009312,11101434
07.10.2019,ADULT SOCIAL CARE,MANLEY COURT NURSING HOME (BUPA),"2,835.40",PHY LTS 65+,NURSING PLACEMENTS FEES,2103008832,11101434
07.10.2019,ADULT SOCIAL CARE,MANLEY COURT NURSING HOME (BUPA),"2,892.12",PHY LTS 65+,NURSING PLACEMENTS FEES,2103008952,11101434
07.10.2019,ADULT SOCIAL CARE,MANLEY COURT NURSING HOME (BUPA),"2,925.76",PHY LTS 65+,NURSING PLACEMENTS FEES,2103009697,11101434
07.10.2019,ADULT SOCIAL CARE,HAVELOCK COURT (BUPA CARE),"3,230.72",PHY LTS 65+,NURSING PLACEMENTS FEES,2103009812,1000028902
07.10.2019,ADULT SOCIAL CARE,HAVELOCK COURT (BUPA CARE),"3,421.04",PHY LTS 65+,NURSING PLACEMENTS FEES,2103009002,1000028902
07.10.2019,ADULT SOCIAL CARE,WARREN LODGE CARE HOME (BUPA),"4,700.00",PHY LTS 65+,NURSING PLACEMENTS FEES,2103009996,11197104
07.10.2019,ADULT SOCIAL CARE,HAVELOCK COURT (BUPA CARE),"3,953.52",PHY LTS 65+,RESIDENTIAL CARE,2103009298,1000028902
07.10.2019,ADULT SOCIAL CARE,SUPREME CARE SERVICES LTD,368.61,PHY STS 65+,HOMECARE - IC,2103012435,1000059416
07.10.2019,ADULT SOCIAL CARE,THAMES HOMECARE SERVICE LTD,617.55,PHY STS 65+,HOMECARE - IC,2103012508,1000079295
07.10.2019,ADULT SOCIAL CARE,THAMES HOMECARE SERVICE LTD,626.5,PHY STS 65+,HOMECARE - IC,2103012461,1000079295
07.10.2019,ADULT SOCIAL CARE,SUPREME CARE SERVICES LTD,"1,217.26",PHY STS 65+,HOMECARE - IC,2103012430,1000059416
07.10.2019,ADULT SOCIAL CARE,MANLEY COURT NURSING HOME (BUPA),429.44,SEN LTS 65+,"MAND STATUTORY CHARGES, NURSING",2103008868,11101434
07.10.2019,ADULT SOCIAL CARE,MANLEY COURT NURSING HOME (BUPA),"-2,218.12",SEN LTS 65+,NURSING PLACEMENTS FEES,2103008867,11101434
07.10.2019,ADULT SOCIAL CARE,RESOURCES FOR AUTISM,"7,778.00",SHORT BREAKS,EXTERNAL AGENCIES AND BODIES,5902381676,1000062540
07.10.2019,ADULT SOCIAL CARE,THAMES HOMECARE SERVICE LTD,268.5,SOCIAL ISOLATION,HOMECARE - SPOT,2103012464,1000079295
07.10.2019,ADULT SOCIAL CARE,MANLEY COURT NURSING HOME (BUPA),"2,700.32",SOCIAL ISOLATION,NURSING PLACEMENTS FEES,2103008916,11101434
07.10.2019,ADULT SOCIAL CARE,MANLEY COURT NURSING HOME (BUPA),"3,345.60",SOCIAL ISOLATION,NURSING PLACEMENTS FEES,2103009565,11101434
07.10.2019,ADULT SOCIAL CARE,CONTACT PROFESSIONALS,266,SPECIALIST CARE,SECTION 17 PAYMENTS TO AGENCIES/CARERS,2103012375,1000057263
07.10.2019,ADULT SOCIAL CARE,CONTACT PROFESSIONALS,285,SPECIALIST CARE,SECTION 17 PAYMENTS TO AGENCIES/CARERS,2103012373,1000057263
07.10.2019,ADULT SOCIAL CARE,CONTACT PROFESSIONALS,304,SPECIALIST CARE,SECTION 17 PAYMENTS TO AGENCIES/CARERS,2103012346,1000057263
07.10.2019,ADULT SOCIAL CARE,CONTACT PROFESSIONALS,342,SPECIALIST CARE,SECTION 17 PAYMENTS TO AGENCIES/CARERS,2103012334,1000057263
07.10.2019,ADULT SOCIAL CARE,CONTACT PROFESSIONALS,361,SPECIALIST CARE,SECTION 17 PAYMENTS TO AGENCIES/CARERS,2103012355,1000057263
07.10.2019,ADULT SOCIAL CARE,CONTACT PROFESSIONALS,380,SPECIALIST CARE,SECTION 17 PAYMENTS TO AGENCIES/CARERS,2103012340,1000057263
07.10.2019,ADULT SOCIAL CARE,CONTACT PROFESSIONALS,380,SPECIALIST CARE,SECTION 17 PAYMENTS TO AGENCIES/CARERS,2103012351,1000057263
07.10.2019,ADULT SOCIAL CARE,CONTACT PROFESSIONALS,456,SPECIALIST CARE,SECTION 17 PAYMENTS TO AGENCIES/CARERS,2103012333,1000057263
07.10.2019,ADULT SOCIAL CARE,CONTACT PROFESSIONALS,456,SPECIALIST CARE,SECTION 17 PAYMENTS TO AGENCIES/CARERS,2103012337,1000057263
07.10.2019,ADULT SOCIAL CARE,CONTACT PROFESSIONALS,532,SPECIALIST CARE,SECTION 17 PAYMENTS TO AGENCIES/CARERS,2103012338,1000057263
07.10.2019,ADULT SOCIAL CARE,SERVESOUL LTD,375.53,SUB LTS 18-64,HOMECARE - SPOT,2103012402,1000081503
07.10.2019,ADULT SOCIAL CARE,HOPE WORLDWIDE,"3,510.00",SUB LTS 18-64,PLACEMENTS - REHAB,2103012522,1000047835
07.10.2019,ADULT SOCIAL CARE,FREEDOM RECOVERY CENTRE,521.8,SUB LTS 18-64,RESIDENTIAL CARE,2103012520,1000046185
07.10.2019,ADULT SOCIAL CARE,MANLEY COURT NURSING HOME (BUPA),"2,670.12",SUB LTS 65+,NURSING PLACEMENTS FEES,2103009235,11101434
07.10.2019,ADULT SOCIAL CARE,REDACTED PERSONAL DATA,958.8,TRANSITIONS 14-18YRS,PAYMENTS TO CLIENTS (DIRECT PAYMENTS),REDACTED,REDACTED
07.10.2019,ASSET MANAGEMENT,SCS TECHNOLOGIES LTD,"1,537.04",ENG CONTRACTS (NORTH),TV AERIALS R&M,5902380599,1000069919
07.10.2019,ASSET MANAGEMENT,RELIANCE HIGH-TECH LTD,742.17,REPAIRS OPERATIONS,OFFICE EXPENSES,5902381616,1000079374
07.10.2019,CENTRAL FUNCTIONS,STANDAGE & CO LTD,"35,597.00",AYLESBURY,SECURITY SERVICES,2103012589,4002817
07.10.2019,CENTRAL FUNCTIONS,ANALYTICAL BUSINESS SOLUTIONS (UK),"2,970.00",BUSINESS APPLICATIONS,CONSULTANTS SERVICES,5902381596,1000037133
07.10.2019,CENTRAL FUNCTIONS,STANBURY BUILDING SERVICES LTD,"1,895.00",COMMERCIAL PROPERTIES,BUILDING R&M,2103012568,3000001967
07.10.2019,CENTRAL FUNCTIONS,STANBURY BUILDING SERVICES LTD,"3,995.00",COMMERCIAL PROPERTIES,BUILDING R&M,2103012570,3000001967
07.10.2019,CENTRAL FUNCTIONS,NPOWER LTD,-325.21,COMMERCIAL PROPERTIES,ELECTRICITY,5902381636,1000078994
07.10.2019,CENTRAL FUNCTIONS,NPOWER LTD,634.92,COMMERCIAL PROPERTIES,ELECTRICITY,5902381634,1000078994
07.10.2019,CHIEF EXECUTIVE,CONWAY AECOM LTD,"115,422.00",CAPITAL PS (REGEN),CONSTRUCTION,2103012574,3000001595
07.10.2019,CHIEF EXECUTIVE,KIER CONSTRUCTION LTD,"681,753.76",CAPITAL PS (REGEN),CONSTRUCTION FEES,2103012580,3000001970
07.10.2019,CHILDREN AND ADULT,PDC CONSTRUCTION SERVICES LTD,"116,955.45",CAPITAL PS (EDUCATION),CONSTRUCTION SITE COSTS,2103012590,3000001841
07.10.2019,CHILDREN'S SERVICES,CORAM FAMILY,750,ADOPTION REFORM GRANT (PART B),EXTERNAL AGENCIES AND BODIES,5902381579,1000023579
07.10.2019,CHILDREN'S SERVICES,FAITHFUL & GOULD,"17,230.00",CAPITAL PS (EDUCATION),CONSTRUCTION,5902381617,1000061390
07.10.2019,CHILDREN'S SERVICES,TFL TELESALES / OYSTER FULFILMENT,"1,020.00",CENTRAL COSTS - SEN,PUBLIC TRANSPORT,5902381609,1000059727
07.10.2019,CHILDREN'S SERVICES,ISABELLE GRAVENSTEIN T/A REVIVAL,696,MGMT & PARENTING PROG TEAM,PROFESSIONAL FEES,5902381564,1000027424
07.10.2019,CHILDREN'S SERVICES,MOTHER GOOSE NURSERIES - GREENDALE FIELDS LTD,615,NURSERY ED GRANT 3 AND 4 YR OLDS,GRANTS,2103012310,1000025888
07.10.2019,CHILDREN'S SERVICES,CORAM FAMILY,900,REGIONAL ADOPTION AGENCY,EXTERNAL AGENCIES AND BODIES,5902381581,1000023579
07.10.2019,CHILDREN'S SERVICES,OUTBOUND CARE LTD,"6,500.00",RESIDENTIAL,RESIDENTIAL CARE,2103012327,1000083072
07.10.2019,CHILDREN'S SERVICES,ACORN HOMES (UK) LTD,"16,607.01",RESIDENTIAL,RESIDENTIAL CARE,2103012329,1000080423
07.10.2019,CHILDREN'S SERVICES,STONELAKE LONDON LTD,"23,760.00",RESIDENTIAL,RESIDENTIAL CARE,2103012328,1000080075
07.10.2019,CHILDREN'S SERVICES,CREATING CARE CHOICES LTD,"24,000.00",RESIDENTIAL,RESIDENTIAL CARE,2103012533,1000076738
07.10.2019,CHILDREN'S SERVICES,PULSE HEALTHCARE LTD,308,SCH TRANS - CONTRACT COST,AGENCY STAFF,5902381592,1000035063
07.10.2019,CHILDREN'S SERVICES,REDACTED PERSONAL DATA,580,SEMI INDEPENDENT CARE LEAVERS,CLIENT TRANSPORT,REDACTED,REDACTED
07.10.2019,CHILDREN'S SERVICES,SILVER BIRCH CARE LTD,"2,375.00",SEMI INDEPENDENT LAC,EXTERNAL AGENCIES AND BODIES,2103012536,1000076525
07.10.2019,CHILDREN'S SERVICES,SILVER BIRCH CARE LTD,"3,750.00",SEMI INDEPENDENT LAC,EXTERNAL AGENCIES AND BODIES,2103012534,1000076525
07.10.2019,CHILDREN'S SERVICES,SILVER BIRCH CARE LTD,"4,000.71",SEMI INDEPENDENT LAC,EXTERNAL AGENCIES AND BODIES,2103012535,1000076525
07.10.2019,CHILDREN'S SERVICES,JLD MANAGEMENT LTD,"1,123.50",SEND EMPLOYMENT GRANT,CONSULTANTS SERVICES,5902381608,1000079916
07.10.2019,CHILDREN'S SERVICES,CORAM ACADEMY LTD,370,SPECIAL GUARDIANSHIP,EXTERNAL AGENCIES AND BODIES,5902381585,1000076627
07.10.2019,CHILDREN'S SERVICES,ARC COMMUNITY TRUSTEES,650,SPECIAL GUARDIANSHIP,EXTERNAL AGENCIES AND BODIES,5902381583,1000046206
07.10.2019,CHILDREN'S SERVICES,J & M OASIS LTD,"1,530.00",TEMPORARY ACCOMMODATION,EXTERNAL AGENCIES AND BODIES,5902381669,1000072169
07.10.2019,CHILDREN'S SERVICES,REDACTED PERSONAL DATA,300,UNIVERSITY SUPPORT,CLIENT TRANSPORT,REDACTED,REDACTED
07.10.2019,CHILDREN'S SERVICES,REDACTED PERSONAL DATA,300,UNIVERSITY SUPPORT,CLIENT TRANSPORT,REDACTED,REDACTED
07.10.2019,CHILDREN'S SERVICES,REDACTED PERSONAL DATA,500,UNIVERSITY SUPPORT,OTHER PAYMENTS FOR CLIENTS,REDACTED,REDACTED
07.10.2019,CHILDREN'S SERVICES,REDACTED PERSONAL DATA,800,UNIVERSITY SUPPORT,OTHER PAYMENTS FOR CLIENTS,REDACTED,REDACTED
07.10.2019,COMMUNITIES,SOUTHSIDE PARTNERSHIP LTD,"1,020.37",NO RECOURSE TO PUBLIC FUNDS,ACCOMMODATION CHARGES,5902381494,1716624
07.10.2019,COMMUNITIES,SOUTHSIDE PARTNERSHIP LTD,"1,829.15",NO RECOURSE TO PUBLIC FUNDS,ACCOMMODATION CHARGES,5902381494,1716624
07.10.2019,COMMUNITIES,THAMES HOMECARE SERVICE LTD,281.93,NO RECOURSE TO PUBLIC FUNDS,HOMECARE - C&V,2103012475,1000079295
07.10.2019,COMMUNITIES,THAMES HOMECARE SERVICE LTD,707.05,NO RECOURSE TO PUBLIC FUNDS,HOMECARE - C&V,2103012491,1000079295
07.10.2019,COMMUNITIES,DARETHEALTHCARE UK LTD,"1,296.71",NO RECOURSE TO PUBLIC FUNDS,HOMECARE - C&V,2103012516,1000059149
07.10.2019,COMMUNITIES,HAVELOCK COURT (BUPA CARE),"3,173.48",NO RECOURSE TO PUBLIC FUNDS,NURSING PLACEMENTS FEES,2103009286,1000028902
07.10.2019,COMMUNITIES,HAVELOCK COURT (BUPA CARE),"3,423.56",NO RECOURSE TO PUBLIC FUNDS,NURSING PLACEMENTS FEES,2103009714,1000028902
07.10.2019,COMMUNITIES,SANCUS SOLUTIONS LTD,"10,000.00",SAFEGUARDING BOARDS,CONSULTANTS SERVICES,5902381647,1000082988
07.10.2019,COMMUNITIES,KEETONS T&RA,"1,300.00",TENANTS FUND,GRANTS,5902381070,1000054897
07.10.2019,CUSTOMER EXPERIENCE HGF,IMPERIAL COLLEGE PROJECTS LTD,292,CORONER'S,PROFESSIONAL FEES,5902381653,1000080106
07.10.2019,CUSTOMER EXPERIENCE HGF,IMPERIAL COLLEGE PROJECTS LTD,336,CORONER'S,PROFESSIONAL FEES,5902381654,1000080106
07.10.2019,CUSTOMER EXPERIENCE HGF,IMPERIAL COLLEGE PROJECTS LTD,344,CORONER'S,PROFESSIONAL FEES,5902381655,1000080106
07.10.2019,CUSTOMER EXPERIENCE HGF,IMPERIAL COLLEGE PROJECTS LTD,388,CORONER'S,PROFESSIONAL FEES,5902381656,1000080106
07.10.2019,CUSTOMER EXPERIENCE HGF,IMPERIAL COLLEGE PROJECTS LTD,484,CORONER'S,PROFESSIONAL FEES,5902381651,1000080106
07.10.2019,CUSTOMER EXPERIENCE HGF,IMPERIAL COLLEGE PROJECTS LTD,600,CORONER'S,PROFESSIONAL FEES,5902381649,1000080106
07.10.2019,DEPT DORMANT AND DEAD CODES,P D CONSTRUCTION LTD,"5,530.00",PLAY NORTH,OTHER R&M,2103012582,4001883
07.10.2019,DEPT DORMANT AND DEAD CODES,ARGOS,292.1,PLAY SOUTH,MATERIALS,5902381628,1000049527
07.10.2019,ENVIRONMENT AND LEISURE,EAST DULWICH ACTION GROUP,"4,019.00",CAPITAL PS (LEISURE),CAPITAL GRANTS,5902381140,1000080899
07.10.2019,ENVIRONMENT AND LEISURE,APPLEGARTH HOUSE COOPERATIVE LTD,"11,730.00",CAPITAL PS (LEISURE),CAPITAL GRANTS,5902381397,1296074
07.10.2019,ENVIRONMENT AND LEISURE,RH WROUGHT IRON,"1,740.00",CAPITAL PS (LEISURE),CONST'N MAIN CONTRACT - NON CERTIFICATED,2103012583,3000000680
07.10.2019,ENVIRONMENT AND LEISURE,CONWAY AECOM LTD,"1,256.96",CAPITAL PS (LEISURE),CONSTRUCTION,5902381620,1000071205
07.10.2019,ENVIRONMENT AND LEISURE,CONWAY AECOM LTD,"233,247.69",CAPITAL PS (LEISURE),CONSTRUCTION,2103012575,3000001595
07.10.2019,ENVIRONMENT AND LEISURE,CONWAY AECOM LTD,"233,270.76",CAPITAL PS (LEISURE),CONSTRUCTION,2103012576,3000001595
07.10.2019,ENVIRONMENT AND LEISURE,RH WROUGHT IRON,"3,000.00",CAPITAL PS (LEISURE),CONSTRUCTION FEES  - EXTERNAL,2103012558,3000000680
07.10.2019,ENVIRONMENT AND LEISURE,STANBURY BUILDING SERVICES LTD,"1,495.00",CAPITAL PS (LEISURE),CONSTRUCTION FEES - INTERNAL,2103012560,3000001967
07.10.2019,ENVIRONMENT DIRECTORATE,EGBERT H TAYLOR & CO LTD,"4,200.00",COMMERCIAL WASTE,EQUIPMENT PURCHASE & REPAIR,5902381456,1000082372
07.10.2019,ENVIRONMENT DIRECTORATE,EGBERT H TAYLOR & CO LTD,"4,200.00",COMMERCIAL WASTE,EQUIPMENT PURCHASE & REPAIR,5902381456,1000082372
07.10.2019,ENVIRONMENT DIRECTORATE,PERFORMANCE CHEMICALS LTD,480,ESTATE CLEANING-GENERAL,MATERIALS,5902381662,1000037129
07.10.2019,ENVIRONMENT DIRECTORATE,THE T.P. PARTNERSHIP,445,ESTATE CLEANING-GENERAL,OTHER CONTRACTORS,5902381658,1000045906
07.10.2019,ENVIRONMENT DIRECTORATE,NPOWER LTD,271.75,STRUCTURES MAJOR ROADS,OTHER CONTRACTORS,5902381633,1000078994
07.10.2019,ENVIRONMENT DIRECTORATE,VEOLIA ES SOUTHWARK LTD,"246,783.63",WASTE PFI,PFI/PPP PAYMENTS,5902381511,1000056979
07.10.2019,EXCHEQUER SERVICES,A L RISK SOLUTIONS LTD,420,ADMINISTRATIVE SUPPORT,PROFESSIONAL FEES,5902381489,1000081305
07.10.2019,EXCHEQUER SERVICES,THE BLUE BERMONDSEY BID CO LTD,"5,043.43",BERMONDSEY BID,EXTERNAL AGENCIES AND BODIES,5902381514,1000074877
07.10.2019,HOUSING,DUCTCLEAN (UK) LTD,950.98,DUCTCLEAN,I-WORLD CONTRACTORS HOLDING ACCOUNT,2103012132,3000001635
07.10.2019,HOUSING & MODERNISATION,COMMUNITY SOUTHWARK,"30,000.00",HEALTHWATCH,GRANTS,5902381607,1000018147
07.10.2019,HOUSING & MODERNISATION,COMMUNITY SOUTHWARK,"95,932.50",VCS GRANTS,GRANTS,5902381626,1000018147
07.10.2019,HOUSING GENERAL FUND,INTERSERVE (FACILITIES MANAGEMENT),"123,570.85",CAPITAL PS (REGEN),CONSTRUCTION MAIN CONTRACT,2103012559,3000000166
07.10.2019,HOUSING HRA,POTTER RAPER LTD,"6,041.77",CAPITAL PS (HRA),CONSTRUCTION FEES  - EXTERNAL,5902381597,1009369
07.10.2019,HOUSING HRA,CALFORD SEADEN LLP,"9,981.87",CAPITAL PS (HRA),CONSTRUCTION FEES  - EXTERNAL,5902381584,1061592
07.10.2019,HOUSING HRA,POTTER RAPER LTD,"36,852.61",CAPITAL PS (HRA),CONSTRUCTION FEES  - EXTERNAL,5902381595,1009369
07.10.2019,HOUSING HRA,BALFOUR BEATTY REGIONAL CONSTRUCTION LTD,"393,023.24",CAPITAL PS (HRA),CONSTRUCTION MAIN CONTRACT,2103012572,4002033
07.10.2019,HOUSING HRA,A & E ELKINS LTD,"8,212.30",CAPITAL PS (HRA),CONSTRUCTION MAIN CONTRACT -CERTIFICATED,2103012571,4012501
07.10.2019,HOUSING HRA,SALTASH ENTERPRISES LTD,"13,688.14",CAPITAL PS (HRA),CONSTRUCTION MAIN CONTRACT -CERTIFICATED,2103012587,4013605
07.10.2019,HOUSING HRA,SALTASH ENTERPRISES LTD,"31,460.73",CAPITAL PS (HRA),CONSTRUCTION MAIN CONTRACT -CERTIFICATED,2103012586,4013605
07.10.2019,HOUSING HRA,SALTASH ENTERPRISES LTD,"86,772.64",CAPITAL PS (HRA),CONSTRUCTION MAIN CONTRACT -CERTIFICATED,2103012588,4013605
07.10.2019,HOUSING HRA,SALTASH ENTERPRISES LTD,"120,904.49",CAPITAL PS (HRA),CONSTRUCTION MAIN CONTRACT -CERTIFICATED,2103012557,4013605
07.10.2019,HOUSING HRA,SALTASH ENTERPRISES LTD,"145,074.27",CAPITAL PS (HRA),CONSTRUCTION MAIN CONTRACT -CERTIFICATED,2103012585,4013605
07.10.2019,HOUSING HRA,CARTER JONAS LLP,700,CAPITAL PS (HRA),LAND & BUILDINGS ACQUISITION FEES,5902381469,1000073124
07.10.2019,HOUSING HRA,CARTER JONAS LLP,"1,500.00",CAPITAL PS (REGEN),LAND & BUILDINGS ACQUISITION FEES,5902381471,1000073124
07.10.2019,LAW & DEMOCRACY,LORDSHIP LANE & MELFORD COURT T&RA,400,EUROPEAN ELECTION,HIRE OF ROOMS/HALLS,5902381599,1000047854
07.10.2019,LEISURE DIRECTORATE,TECHNICAL SURFACES,582.05,BURGESS SPORTS CENTRE,GROUNDS MAINTENANCE,5902381561,1000011451
07.10.2019,LEISURE DIRECTORATE,HUSSEY SEATWAY LTD,626,CANADA WATER LIBRARY,EQUIPMENT PURCHASE & REPAIR,5902381619,1000077959
07.10.2019,LEISURE DIRECTORATE,ARGOS,267.78,DAMILOLA TAYLOR CENTRE,SOFTWARE,5902381652,1000049527
07.10.2019,LEISURE DIRECTORATE,NPOWER LTD,696.47,GROVE VALE LIBRARY,ELECTRICITY,5902381568,1000078994
07.10.2019,LEISURE DIRECTORATE,CASTLE WATER LTD,480.13,HERITAGE,WATER,5902381491,1000078867
07.10.2019,LEISURE DIRECTORATE,KENT COUNTY COUNCIL - LASER,329.21,MINT STREET,GAS,5902381495,1000012926
07.10.2019,LEISURE DIRECTORATE,KENT COUNTY COUNCIL - LASER,363.77,MINT STREET,GAS,5902381497,1000012926
07.10.2019,LEISURE DIRECTORATE,REGENT OFFICE CARE LTD,"3,232.84",SDM BUDGET,PREMISES CLEANING,5902381670,1000063340
07.10.2019,LEISURE DIRECTORATE,CURVINGROAD LTD,"1,000.00",SOUTHWARK FESTIVAL FUND,GRANTS,5902381580,1000081411
07.10.2019,LEISURE DIRECTORATE,DUCTCLEAN (UK) LTD,"9,900.00",TREES PRINCIPAL ROADS,EQUIPMENT PURCHASE & REPAIR,2103012591,3000001635
07.10.2019,NEW SOUTHWARK BUILDING SERVICES,LOCKESLEYS LTD,740.08,SBS - HOLDING ACCOUNT,OTHER CONTRACTORS,2103012566,3000001480
07.10.2019,NEW SOUTHWARK BUILDING SERVICES,LOCKESLEYS LTD,"1,186.56",SBS - HOLDING ACCOUNT,OTHER CONTRACTORS,2103012565,3000001480
07.10.2019,NEW SOUTHWARK BUILDING SERVICES,GC CONSTRUCT LTD,"1,240.92",SBS - HOLDING ACCOUNT,OTHER CONTRACTORS,2103012578,3000002106
07.10.2019,NEW SOUTHWARK BUILDING SERVICES,LOCKESLEYS LTD,"3,490.60",SBS - HOLDING ACCOUNT,OTHER CONTRACTORS,2103012564,3000001480
07.10.2019,NEW SOUTHWARK BUILDING SERVICES,BUDMAX CONSTRUCTION LTD,"6,518.16",SBS - HOLDING ACCOUNT,OTHER CONTRACTORS,2103012573,3000001936
07.10.2019,NEW SOUTHWARK BUILDING SERVICES,LOCKESLEYS LTD,"6,855.90",SBS - HOLDING ACCOUNT,OTHER CONTRACTORS,2103012563,3000001480
07.10.2019,NEW SOUTHWARK BUILDING SERVICES,LOCKESLEYS LTD,"6,863.14",SBS - HOLDING ACCOUNT,OTHER CONTRACTORS,2103012562,3000001480
07.10.2019,NEW SOUTHWARK BUILDING SERVICES,GMS ELECTRICAL LTD,"7,169.96",SBS - HOLDING ACCOUNT,OTHER CONTRACTORS,2103012579,3000002085
07.10.2019,NEW SOUTHWARK BUILDING SERVICES,LIBRA CONSTRUCTION SERVICES LTD,"18,035.85",SBS - HOLDING ACCOUNT,OTHER CONTRACTORS,2103012581,3000000875
07.10.2019,NEW SOUTHWARK BUILDING SERVICES,DEREK BUILDING SERVICES LTD,"81,624.27",SBS - HOLDING ACCOUNT,OTHER CONTRACTORS,2103012577,3000001751
07.10.2019,PLANNING AND TRANSPORT,ETC VENUES LTD,"1,950.00",PLANNING APPEALS AND INQUIRIES,HIRE OF ROOMS/HALLS,5902381037,1000045226
07.10.2019,REGENERATION,CLYDE & CO,"6,397.76",9 HOLYROOD STREET,PROFESSIONAL FEES,5902381515,1000067838
07.10.2019,REGENERATION,CLYDE & CO,"7,085.90",9 HOLYROOD STREET,PROFESSIONAL FEES,5902381513,1000067838
07.10.2019,REGENERATION,STANBURY BUILDING SERVICES LTD,695,CPHA  MANAGED PROPERTIES,BUILDING R&M,2103012569,3000001967
07.10.2019,REGENERATION,FIELD FISHER WATERHOUSE,"1,189.50",MISC INDUSTRIAL PROPERTIES,PROFESSIONAL FEES,5902381502,1000047449
07.10.2019,RESIDENT SERVICES,RELIANCE HIGH-TECH LTD,"1,655.55",OPERATIONS/OFFICES ACCOMMODATION,OFFICE EXPENSES,5902381616,1000079374
07.10.2019,RESIDENT SERVICES,NORBURY PROPERTY SERVICES (LONDON) LTD,"2,100.00",TA PLACEMENTS,EXTERNAL AGENCIES AND BODIES,5902381496,1000075566
07.10.2019,RESIDENT SERVICES,NORBURY PROPERTY SERVICES (LONDON) LTD,"2,170.00",TA PLACEMENTS,EXTERNAL AGENCIES AND BODIES,5902381493,1000075566
07.10.2019,SUSTAINABILITY & BUSINESS DEVELOPMENT,RELIANCE HIGH-TECH LTD,773.34,SERVICE DEVELOPMENT TEAM,OFFICE EXPENSES,5902381630,1000079374
07.10.2019,SUSTAINABILITY & BUSINESS DEVELOPMENT,RELIANCE HIGH-TECH LTD,958.61,SERVICE DEVELOPMENT TEAM,OFFICE EXPENSES,5902381630,1000079374
08.10.2019,ADULT SOCIAL CARE,SHUTTLEWORTH (UK) LTD,"1,178.00",ASC TEMPORARY ACCOMMODATION,EXTERNAL AGENCIES AND BODIES,5902381840,1000056468
08.10.2019,ADULT SOCIAL CARE,ALLPAY LTD,-277.59,CLIENT FINANCE TEAM,PAYMENTS FOR FINANCIAL SERVICES,5902381723,1000043001
08.10.2019,ADULT SOCIAL CARE,ALLPAY LTD,275.37,CLIENT FINANCE TEAM,PAYMENTS FOR FINANCIAL SERVICES,5902381729,1000043001
08.10.2019,ADULT SOCIAL CARE,ALLPAY LTD,277.59,CLIENT FINANCE TEAM,PAYMENTS FOR FINANCIAL SERVICES,5902381726,1000043001
08.10.2019,ADULT SOCIAL CARE,ALLPAY LTD,283.79,CLIENT FINANCE TEAM,PAYMENTS FOR FINANCIAL SERVICES,5902381728,1000043001
08.10.2019,ADULT SOCIAL CARE,ALLPAY LTD,312.02,CLIENT FINANCE TEAM,PAYMENTS FOR FINANCIAL SERVICES,5902381722,1000043001
08.10.2019,ADULT SOCIAL CARE,ALLPAY LTD,318.7,CLIENT FINANCE TEAM,PAYMENTS FOR FINANCIAL SERVICES,5902381721,1000043001
08.10.2019,ADULT SOCIAL CARE,ALLPAY LTD,323.81,CLIENT FINANCE TEAM,PAYMENTS FOR FINANCIAL SERVICES,5902381730,1000043001
08.10.2019,ADULT SOCIAL CARE,ALLPAY LTD,329.57,CLIENT FINANCE TEAM,PAYMENTS FOR FINANCIAL SERVICES,5902381727,1000043001
08.10.2019,ADULT SOCIAL CARE,HELP ME GROW FOSTERING SERVICES LTD,"5,571.30",DISABILITIES LAC,EXTERNAL AGENCIES AND BODIES,2103012737,1000079302
08.10.2019,ADULT SOCIAL CARE,BY THE BRIDGE LTD,"5,571.43",DISABILITIES LAC,EXTERNAL AGENCIES AND BODIES,2103012726,1000043961
08.10.2019,ADULT SOCIAL CARE,BY THE BRIDGE LTD,"6,030.00",DISABILITIES LAC,EXTERNAL AGENCIES AND BODIES,2103012724,1000043961
08.10.2019,ADULT SOCIAL CARE,ALL4U FOSTERING LTD,"6,235.20",DISABILITIES LAC,EXTERNAL AGENCIES AND BODIES,2103012631,1000080663
08.10.2019,ADULT SOCIAL CARE,HYDE HOUSING ASSOCIATION LTD,"-2,759.43",EXTRA CARE CONTRACT,RENTS,5902381994,1000013980
08.10.2019,ADULT SOCIAL CARE,HYDE HOUSING ASSOCIATION LTD,"2,759.43",EXTRA CARE CONTRACT,RENTS,5902381643,1000013980
08.10.2019,ADULT SOCIAL CARE,HEALTHCARE & TRANSPORT SERVICES,306,LD LTS 18-64,CLIENT TRANSPORT,2103012746,1000042743
08.10.2019,ADULT SOCIAL CARE,HEALTHCARE & TRANSPORT SERVICES,448,LD LTS 18-64,CLIENT TRANSPORT,2103012751,1000042743
08.10.2019,ADULT SOCIAL CARE,SWEETTREE HOME CARE SERVICES LTD,743.38,LD LTS 18-64,SUPPORTED LIVING,2103012745,1000058171
08.10.2019,ADULT SOCIAL CARE,BRISEN COMPANY LTD,"8,234.48",LD LTS 18-64,SUPPORTED LIVING,2103012747,1000083000
08.10.2019,ADULT SOCIAL CARE,BUDDI LTD,420,MEM LTS 65+,EQUIPMENT PURCHASE & REPAIR,2103012749,1000067243
08.10.2019,ADULT SOCIAL CARE,MARTIN VITERA LTD,292.54,ORIENT ST � RESPITE,PREMISES CLEANING,5902381776,1560597
08.10.2019,ADULT SOCIAL CARE,BUDDI LTD,594,PHY LTS 18-64,EQUIPMENT PURCHASE & REPAIR,2103012750,1000067243
08.10.2019,ADULT SOCIAL CARE,REDACTED PERSONAL DATA,"1,874.72",PHY LTS 18-64,PAYMENTS TO CLIENTS (DIRECT PAYMENTS),REDACTED,REDACTED
08.10.2019,ADULT SOCIAL CARE,BUDDI LTD,430,PHY LTS 65+,EQUIPMENT PURCHASE & REPAIR,2103012748,1000067243
08.10.2019,ADULT SOCIAL CARE,ANCHOR TRUST,"61,547.01",PHY LTS 65+,RESIDENTIAL CARE,5902381827,11257534
08.10.2019,ADULT SOCIAL CARE,THAMES HOMECARE SERVICE LTD,"27,300.00",REABLEMENT CONTRACT,HOMECARE - C&V,5902381716,1000079295
08.10.2019,ADULT SOCIAL CARE,THAMES HOMECARE SERVICE LTD,"27,300.00",REABLEMENT CONTRACT,HOMECARE - C&V,5902381720,1000079295
08.10.2019,ADULT SOCIAL CARE,ROMEDICAL LTD,396.41,SAFEGUARDING TEAM,OTHER CONTRACTORS,5902381704,1000076318
08.10.2019,ADULT SOCIAL CARE,ROMEDICAL LTD,560.12,SAFEGUARDING TEAM,OTHER CONTRACTORS,5902381699,1000076318
08.10.2019,ADULT SOCIAL CARE,ROMEDICAL LTD,569.38,SAFEGUARDING TEAM,OTHER CONTRACTORS,5902381705,1000076318
08.10.2019,ADULT SOCIAL CARE,HCP STAFFING SERVICES LTD,346.78,SPECIALIST CARE,SECTION 17 PAYMENTS TO AGENCIES/CARERS,2103012554,1000078329
08.10.2019,ADULT SOCIAL CARE,HCP STAFFING SERVICES LTD,370.24,SPECIALIST CARE,SECTION 17 PAYMENTS TO AGENCIES/CARERS,2103012546,1000078329
08.10.2019,ADULT SOCIAL CARE,HCP STAFFING SERVICES LTD,370.24,SPECIALIST CARE,SECTION 17 PAYMENTS TO AGENCIES/CARERS,2103012552,1000078329
08.10.2019,ADULT SOCIAL CARE,HCP STAFFING SERVICES LTD,352.95,TRANSITIONS 14-18YRS,SECTION 17 PAYMENTS TO AGENCIES/CARERS,2103012542,1000078329
08.10.2019,ASSET MANAGEMENT,GAS ADVISORY SERVICES LIMITED,906.38,ENG CONTRACTS (NORTH),HEATING -DISTRICT SERVICE (CONTRACT SUM),5902381715,1000064649
08.10.2019,ASSET MANAGEMENT,GAS ADVISORY SERVICES LIMITED,990,ENG CONTRACTS (NORTH),HEATING -DISTRICT SERVICE (CONTRACT SUM),5902381718,1000064649
08.10.2019,ASSET MANAGEMENT,GAS ADVISORY SERVICES LIMITED,"1,200.00",ENG CONTRACTS (NORTH),HEATING -DISTRICT SERVICE (CONTRACT SUM),5902381717,1000064649
08.10.2019,CHIEF EXECUTIVE,SURREY DOCKS FARM PROVIDENT SOCIETY,"57,723.51",CAPITAL PS (REGEN),CONSTRUCTION MAIN CONTRACT,5902381693,1000000958
08.10.2019,CHILDREN'S SERVICES,REDACTED PERSONAL DATA,487.5,ADOPTION PLACEMENTS & INTER AGENCY,PAYMENTS TO CARERS,REDACTED,REDACTED
08.10.2019,CHILDREN'S SERVICES,REDACTED PERSONAL DATA,500,ADOPTION PLACEMENTS & INTER AGENCY,PAYMENTS TO CARERS,REDACTED,REDACTED
08.10.2019,CHILDREN'S SERVICES,HOME OFFICE ACCOUNTING OFFICER,"1,012.00",CARE LEAVERS SERVICES 16+,OTHER PAYMENTS FOR CLIENTS,5902381759,1000049156
08.10.2019,CHILDREN'S SERVICES,HOME OFFICE ACCOUNTING OFFICER,"1,012.00",CARE LEAVERS SERVICES 16+,OTHER PAYMENTS FOR CLIENTS,5902381760,1000049156
08.10.2019,CHILDREN'S SERVICES,HOME OFFICE ACCOUNTING OFFICER,"1,012.00",CARE LEAVERS SERVICES 16+,OTHER PAYMENTS FOR CLIENTS,5902381761,1000049156
08.10.2019,CHILDREN'S SERVICES,MARJORIE MCCLURE SPECIALIST SCHOOL FOR PHYSICAL DEVELOPMENT,"5,698.00",CASEWORK OLA  0-8,RECOUPMENT,2103012211,1000049215
08.10.2019,CHILDREN'S SERVICES,EATON HOUSE SCHOOL LTD,"2,000.00",CASEWORK OLA  0-8,STATEMENTED FEES,2103012210,1000083253
08.10.2019,CHILDREN'S SERVICES,AIDHOUR LIMITED,258,CLA TEAM SAFEGUARDING,PROFESSIONAL FEES,5902380789,1000057345
08.10.2019,CHILDREN'S SERVICES,AIDHOUR LIMITED,258,CLA TEAM SAFEGUARDING,PROFESSIONAL FEES,5902380796,1000057345
08.10.2019,CHILDREN'S SERVICES,AIDHOUR LIMITED,339.4,CLA TEAM SAFEGUARDING,PROFESSIONAL FEES,5902380799,1000057345
08.10.2019,CHILDREN'S SERVICES,AIDHOUR LIMITED,529.08,CLA TEAM SAFEGUARDING,PROFESSIONAL FEES,5902380878,1000057345
08.10.2019,CHILDREN'S SERVICES,AIDHOUR LIMITED,529.7,CLA TEAM SAFEGUARDING,PROFESSIONAL FEES,5902380794,1000057345
08.10.2019,CHILDREN'S SERVICES,AIDHOUR LIMITED,626.2,CLA TEAM SAFEGUARDING,PROFESSIONAL FEES,5902380456,1000057345
08.10.2019,CHILDREN'S SERVICES,AIDHOUR LIMITED,745.55,CLA TEAM SAFEGUARDING,PROFESSIONAL FEES,5902380896,1000057345
08.10.2019,CHILDREN'S SERVICES,DIVERSE CARE (UK) LTD,"-4,080.00",FRIENDS & FAMILY FOSTERING,EXTERNAL AGENCIES AND BODIES,2103012699,1000055636
08.10.2019,CHILDREN'S SERVICES,NEXT STEP FOSTERING SERVICES LTD,701.5,FRIENDS & FAMILY FOSTERING,EXTERNAL AGENCIES AND BODIES,2103012666,1000044973
08.10.2019,CHILDREN'S SERVICES,BANYA FAMILY PLACEMENT AGENCY LTD,814.59,FRIENDS & FAMILY FOSTERING,EXTERNAL AGENCIES AND BODIES,2103012639,11328315
08.10.2019,CHILDREN'S SERVICES,NATIONAL FOSTERING AGENCY,"1,705.68",FRIENDS & FAMILY FOSTERING,EXTERNAL AGENCIES AND BODIES,2103012697,1000038868
08.10.2019,CHILDREN'S SERVICES,NATIONAL FOSTERING AGENCY,"2,558.52",FRIENDS & FAMILY FOSTERING,EXTERNAL AGENCIES AND BODIES,2103012683,1000038868
08.10.2019,CHILDREN'S SERVICES,HELP ME GROW FOSTERING SERVICES LTD,"2,777.10",FRIENDS & FAMILY FOSTERING,EXTERNAL AGENCIES AND BODIES,2103012627,1000079302
08.10.2019,CHILDREN'S SERVICES,HELP ME GROW FOSTERING SERVICES LTD,"2,777.10",FRIENDS & FAMILY FOSTERING,EXTERNAL AGENCIES AND BODIES,2103012727,1000079302
08.10.2019,CHILDREN'S SERVICES,KENT HOMEFINDING & FOSTERING LTD,"2,943.00",FRIENDS & FAMILY FOSTERING,EXTERNAL AGENCIES AND BODIES,2103012646,1000033978
08.10.2019,CHILDREN'S SERVICES,COMPASS FOSTERING LONDON LTD,"2,978.70",FRIENDS & FAMILY FOSTERING,EXTERNAL AGENCIES AND BODIES,2103012685,1000057908
08.10.2019,CHILDREN'S SERVICES,CHILDREN OF ALL NATIONS LTD,"3,004.16",FRIENDS & FAMILY FOSTERING,EXTERNAL AGENCIES AND BODIES,2103012730,1000060151
08.10.2019,CHILDREN'S SERVICES,HELP ME GROW FOSTERING SERVICES LTD,"3,085.50",FRIENDS & FAMILY FOSTERING,EXTERNAL AGENCIES AND BODIES,2103012640,1000079302
08.10.2019,CHILDREN'S SERVICES,HELP ME GROW FOSTERING SERVICES LTD,"3,085.50",FRIENDS & FAMILY FOSTERING,EXTERNAL AGENCIES AND BODIES,2103012641,1000079302
08.10.2019,CHILDREN'S SERVICES,HELP ME GROW FOSTERING SERVICES LTD,"3,085.50",FRIENDS & FAMILY FOSTERING,EXTERNAL AGENCIES AND BODIES,2103012642,1000079302
08.10.2019,CHILDREN'S SERVICES,HELP ME GROW FOSTERING SERVICES LTD,"3,085.50",FRIENDS & FAMILY FOSTERING,EXTERNAL AGENCIES AND BODIES,2103012658,1000079302
08.10.2019,CHILDREN'S SERVICES,HELP ME GROW FOSTERING SERVICES LTD,"3,085.50",FRIENDS & FAMILY FOSTERING,EXTERNAL AGENCIES AND BODIES,2103012708,1000079302
08.10.2019,CHILDREN'S SERVICES,FOSTERING FOR YOU LTD,"3,165.69",FRIENDS & FAMILY FOSTERING,EXTERNAL AGENCIES AND BODIES,2103012637,1000080380
08.10.2019,CHILDREN'S SERVICES,FOSTERING FOR YOU LTD,"3,165.69",FRIENDS & FAMILY FOSTERING,EXTERNAL AGENCIES AND BODIES,2103012723,1000080380
08.10.2019,CHILDREN'S SERVICES,COMPASS FOSTERING SOUTH LTD,"3,201.39",FRIENDS & FAMILY FOSTERING,EXTERNAL AGENCIES AND BODIES,2103012700,1000073772
08.10.2019,CHILDREN'S SERVICES,COMPASS FOSTERING SOUTH LTD,"3,201.39",FRIENDS & FAMILY FOSTERING,EXTERNAL AGENCIES AND BODIES,2103012702,1000073772
08.10.2019,CHILDREN'S SERVICES,NATIONAL FOSTERING AGENCY,"3,210.00",FRIENDS & FAMILY FOSTERING,EXTERNAL AGENCIES AND BODIES,2103012714,1000038868
08.10.2019,CHILDREN'S SERVICES,CORE ASSETS FOSTERING LTD,"3,211.60",FRIENDS & FAMILY FOSTERING,EXTERNAL AGENCIES AND BODIES,2103012674,11288002
08.10.2019,CHILDREN'S SERVICES,NATIONAL FOSTERING AGENCY,"3,214.20",FRIENDS & FAMILY FOSTERING,EXTERNAL AGENCIES AND BODIES,2103012626,1000038868
08.10.2019,CHILDREN'S SERVICES,SHINING STARS FOSTERING AGENCY LTD,"3,214.20",FRIENDS & FAMILY FOSTERING,EXTERNAL AGENCIES AND BODIES,2103012669,1000079431
08.10.2019,CHILDREN'S SERVICES,CONNECT FOSTERING SERVICES LTD,"3,235.71",FRIENDS & FAMILY FOSTERING,EXTERNAL AGENCIES AND BODIES,2103012663,1000079969
08.10.2019,CHILDREN'S SERVICES,FIVE RIVERS CHILD CARE LTD,"3,257.14",FRIENDS & FAMILY FOSTERING,EXTERNAL AGENCIES AND BODIES,2103012721,1000018792
08.10.2019,CHILDREN'S SERVICES,NATIONAL FOSTERING AGENCY,"3,278.70",FRIENDS & FAMILY FOSTERING,EXTERNAL AGENCIES AND BODIES,2103012698,1000038868
08.10.2019,CHILDREN'S SERVICES,FOSTERING FOR YOU LTD,"3,332.31",FRIENDS & FAMILY FOSTERING,EXTERNAL AGENCIES AND BODIES,2103012618,1000080380
08.10.2019,CHILDREN'S SERVICES,FOSTERING FOR YOU LTD,"3,332.31",FRIENDS & FAMILY FOSTERING,EXTERNAL AGENCIES AND BODIES,2103012636,1000080380
08.10.2019,CHILDREN'S SERVICES,FOSTERING FOR YOU LTD,"3,332.31",FRIENDS & FAMILY FOSTERING,EXTERNAL AGENCIES AND BODIES,2103012675,1000080380
08.10.2019,CHILDREN'S SERVICES,FOSTERING FOR YOU LTD,"3,332.31",FRIENDS & FAMILY FOSTERING,EXTERNAL AGENCIES AND BODIES,2103012690,1000080380
08.10.2019,CHILDREN'S SERVICES,FOSTERING FOR YOU LTD,"3,332.31",FRIENDS & FAMILY FOSTERING,EXTERNAL AGENCIES AND BODIES,2103012691,1000080380
08.10.2019,CHILDREN'S SERVICES,FOSTERING FOR YOU LTD,"3,332.31",FRIENDS & FAMILY FOSTERING,EXTERNAL AGENCIES AND BODIES,2103012706,1000080380
08.10.2019,CHILDREN'S SERVICES,FUTURES FOR CHILDREN LIMITED,"3,338.70",FRIENDS & FAMILY FOSTERING,EXTERNAL AGENCIES AND BODIES,2103012703,1000041984
08.10.2019,CHILDREN'S SERVICES,NATIONAL FOSTERING AGENCY,"3,407.10",FRIENDS & FAMILY FOSTERING,EXTERNAL AGENCIES AND BODIES,2103012621,1000038868
08.10.2019,CHILDREN'S SERVICES,NATIONAL FOSTERING AGENCY,"3,407.10",FRIENDS & FAMILY FOSTERING,EXTERNAL AGENCIES AND BODIES,2103012644,1000038868
08.10.2019,CHILDREN'S SERVICES,KENT HOMEFINDING & FOSTERING LTD,"3,415.50",FRIENDS & FAMILY FOSTERING,EXTERNAL AGENCIES AND BODIES,2103012615,1000033978
08.10.2019,CHILDREN'S SERVICES,RYANCARE FOSTERING,"3,427.50",FRIENDS & FAMILY FOSTERING,EXTERNAL AGENCIES AND BODIES,2103012680,1000062376
08.10.2019,CHILDREN'S SERVICES,CHILDREN OF COLOUR,"3,444.00",FRIENDS & FAMILY FOSTERING,EXTERNAL AGENCIES AND BODIES,2103012632,1000044955
08.10.2019,CHILDREN'S SERVICES,CHILDREN OF COLOUR,"3,444.00",FRIENDS & FAMILY FOSTERING,EXTERNAL AGENCIES AND BODIES,2103012652,1000044955
08.10.2019,CHILDREN'S SERVICES,CHILDREN OF COLOUR,"3,444.00",FRIENDS & FAMILY FOSTERING,EXTERNAL AGENCIES AND BODIES,2103012653,1000044955
08.10.2019,CHILDREN'S SERVICES,BARNARDOS SERVICES LTD,"3,444.30",FRIENDS & FAMILY FOSTERING,EXTERNAL AGENCIES AND BODIES,2103012611,1000063730
08.10.2019,CHILDREN'S SERVICES,KENT HOMEFINDING & FOSTERING LTD,"3,450.00",FRIENDS & FAMILY FOSTERING,EXTERNAL AGENCIES AND BODIES,2103012671,1000033978
08.10.2019,CHILDREN'S SERVICES,BANYA FAMILY PLACEMENT AGENCY LTD,"3,477.30",FRIENDS & FAMILY FOSTERING,EXTERNAL AGENCIES AND BODIES,2103012677,11328315
08.10.2019,CHILDREN'S SERVICES,BANYA FAMILY PLACEMENT AGENCY LTD,"3,477.30",FRIENDS & FAMILY FOSTERING,EXTERNAL AGENCIES AND BODIES,2103012692,11328315
08.10.2019,CHILDREN'S SERVICES,FUTURES FOR CHILDREN LIMITED,"3,487.20",FRIENDS & FAMILY FOSTERING,EXTERNAL AGENCIES AND BODIES,2103012614,1000041984
08.10.2019,CHILDREN'S SERVICES,CAPSTONE FOSTER CARE (SOUTH EAST) LTD,"3,504.40",FRIENDS & FAMILY FOSTERING,EXTERNAL AGENCIES AND BODIES,2103012716,1000050353
08.10.2019,CHILDREN'S SERVICES,FAMILY FOSTERING LTD,"3,528.49",FRIENDS & FAMILY FOSTERING,EXTERNAL AGENCIES AND BODIES,2103012739,1000075179
08.10.2019,CHILDREN'S SERVICES,FUTURES FOR CHILDREN LIMITED,"3,532.20",FRIENDS & FAMILY FOSTERING,EXTERNAL AGENCIES AND BODIES,2103012720,1000041984
08.10.2019,CHILDREN'S SERVICES,SELECT FOSTERCARE SERVICES LTD,"3,535.80",FRIENDS & FAMILY FOSTERING,EXTERNAL AGENCIES AND BODIES,2103012645,1000079277
08.10.2019,CHILDREN'S SERVICES,COMPASS FOSTERING LONDON LTD,"3,557.10",FRIENDS & FAMILY FOSTERING,EXTERNAL AGENCIES AND BODIES,2103012665,1000057908
08.10.2019,CHILDREN'S SERVICES,ETHELBERT SPECIALIST HOMES,"3,559.46",FRIENDS & FAMILY FOSTERING,EXTERNAL AGENCIES AND BODIES,2103012606,1796129
08.10.2019,CHILDREN'S SERVICES,ETHELBERT SPECIALIST HOMES,"3,559.46",FRIENDS & FAMILY FOSTERING,EXTERNAL AGENCIES AND BODIES,2103012629,1796129
08.10.2019,CHILDREN'S SERVICES,ETHELBERT SPECIALIST HOMES,"3,559.46",FRIENDS & FAMILY FOSTERING,EXTERNAL AGENCIES AND BODIES,2103012732,1796129
08.10.2019,CHILDREN'S SERVICES,ST CHRISTOPHER FELLOWSHIP,"3,578.70",FRIENDS & FAMILY FOSTERING,EXTERNAL AGENCIES AND BODIES,2103012731,1000045269
08.10.2019,CHILDREN'S SERVICES,ORANGE GROVE FOSTERCARE LTD,"3,630.73",FRIENDS & FAMILY FOSTERING,EXTERNAL AGENCIES AND BODIES,2103012630,1000078716
08.10.2019,CHILDREN'S SERVICES,CAPSTONE FOSTER CARE (SOUTH EAST) LTD,"3,642.90",FRIENDS & FAMILY FOSTERING,EXTERNAL AGENCIES AND BODIES,2103012679,1000050353
08.10.2019,CHILDREN'S SERVICES,FUSION FOSTERING LTD,"3,646.07",FRIENDS & FAMILY FOSTERING,EXTERNAL AGENCIES AND BODIES,2103012734,1000081674
08.10.2019,CHILDREN'S SERVICES,CORE ASSETS FOSTERING LTD,"3,696.00",FRIENDS & FAMILY FOSTERING,EXTERNAL AGENCIES AND BODIES,2103012622,11288002
08.10.2019,CHILDREN'S SERVICES,ANCHOR FOSTERCARE,"3,732.30",FRIENDS & FAMILY FOSTERING,EXTERNAL AGENCIES AND BODIES,2103012628,1000065675
08.10.2019,CHILDREN'S SERVICES,ETHELBERT SPECIALIST HOMES,"3,757.16",FRIENDS & FAMILY FOSTERING,EXTERNAL AGENCIES AND BODIES,2103012711,1796129
08.10.2019,CHILDREN'S SERVICES,ETHELBERT SPECIALIST HOMES,"3,757.16",FRIENDS & FAMILY FOSTERING,EXTERNAL AGENCIES AND BODIES,2103012717,1796129
08.10.2019,CHILDREN'S SERVICES,BANYA FAMILY PLACEMENT AGENCY LTD,"3,803.10",FRIENDS & FAMILY FOSTERING,EXTERNAL AGENCIES AND BODIES,2103012694,11328315
08.10.2019,CHILDREN'S SERVICES,CHILDREN FIRST FOSTERING AGENCY LTD,"3,852.90",FRIENDS & FAMILY FOSTERING,EXTERNAL AGENCIES AND BODIES,2103012710,1000060081
08.10.2019,CHILDREN'S SERVICES,NEXT STEP FOSTERING SERVICES LTD,"3,858.00",FRIENDS & FAMILY FOSTERING,EXTERNAL AGENCIES AND BODIES,2103012623,1000044973
08.10.2019,CHILDREN'S SERVICES,KENT HOMEFINDING & FOSTERING LTD,"4,070.14",FRIENDS & FAMILY FOSTERING,EXTERNAL AGENCIES AND BODIES,2103012668,1000033978
08.10.2019,CHILDREN'S SERVICES,BY THE BRIDGE LTD,"4,082.44",FRIENDS & FAMILY FOSTERING,EXTERNAL AGENCIES AND BODIES,2103012656,1000043961
08.10.2019,CHILDREN'S SERVICES,COMPASS FOSTERING SOUTH EAST LTD,"4,132.50",FRIENDS & FAMILY FOSTERING,EXTERNAL AGENCIES AND BODIES,2103012650,1000081155
08.10.2019,CHILDREN'S SERVICES,ANCHOR FOSTERCARE,"4,148.70",FRIENDS & FAMILY FOSTERING,EXTERNAL AGENCIES AND BODIES,2103012610,1000065675
08.10.2019,CHILDREN'S SERVICES,SYNERGY FOSTERING LTD,"4,170.00",FRIENDS & FAMILY FOSTERING,EXTERNAL AGENCIES AND BODIES,2103012701,1000031559
08.10.2019,CHILDREN'S SERVICES,BY THE BRIDGE LTD,"4,206.86",FRIENDS & FAMILY FOSTERING,EXTERNAL AGENCIES AND BODIES,2103012608,1000043961
08.10.2019,CHILDREN'S SERVICES,NATIONAL FOSTERING AGENCY,"4,264.20",FRIENDS & FAMILY FOSTERING,EXTERNAL AGENCIES AND BODIES,2103012624,1000038868
08.10.2019,CHILDREN'S SERVICES,NATIONAL FOSTERING AGENCY,"4,264.20",FRIENDS & FAMILY FOSTERING,EXTERNAL AGENCIES AND BODIES,2103012713,1000038868
08.10.2019,CHILDREN'S SERVICES,BY THE BRIDGE LTD,"4,297.33",FRIENDS & FAMILY FOSTERING,EXTERNAL AGENCIES AND BODIES,2103012695,1000043961
08.10.2019,CHILDREN'S SERVICES,BY THE BRIDGE LTD,"4,297.33",FRIENDS & FAMILY FOSTERING,EXTERNAL AGENCIES AND BODIES,2103012696,1000043961
08.10.2019,CHILDREN'S SERVICES,BY THE BRIDGE LTD,"4,331.44",FRIENDS & FAMILY FOSTERING,EXTERNAL AGENCIES AND BODIES,2103012647,1000043961
08.10.2019,CHILDREN'S SERVICES,BY THE BRIDGE LTD,"4,359.64",FRIENDS & FAMILY FOSTERING,EXTERNAL AGENCIES AND BODIES,2103012635,1000043961
08.10.2019,CHILDREN'S SERVICES,BANYA FAMILY PLACEMENT AGENCY LTD,"4,363.80",FRIENDS & FAMILY FOSTERING,EXTERNAL AGENCIES AND BODIES,2103012657,11328315
08.10.2019,CHILDREN'S SERVICES,BANYA FAMILY PLACEMENT AGENCY LTD,"4,363.80",FRIENDS & FAMILY FOSTERING,EXTERNAL AGENCIES AND BODIES,2103012693,11328315
08.10.2019,CHILDREN'S SERVICES,BANYA FAMILY PLACEMENT AGENCY LTD,"4,392.30",FRIENDS & FAMILY FOSTERING,EXTERNAL AGENCIES AND BODIES,2103012620,11328315
08.10.2019,CHILDREN'S SERVICES,BANYA FAMILY PLACEMENT AGENCY LTD,"4,392.30",FRIENDS & FAMILY FOSTERING,EXTERNAL AGENCIES AND BODIES,2103012638,11328315
08.10.2019,CHILDREN'S SERVICES,NATIONAL FOSTERING AGENCY,"4,410.00",FRIENDS & FAMILY FOSTERING,EXTERNAL AGENCIES AND BODIES,2103012648,1000038868
08.10.2019,CHILDREN'S SERVICES,BY THE BRIDGE LTD,"4,422.60",FRIENDS & FAMILY FOSTERING,EXTERNAL AGENCIES AND BODIES,2103012616,1000043961
08.10.2019,CHILDREN'S SERVICES,BY THE BRIDGE LTD,"4,422.60",FRIENDS & FAMILY FOSTERING,EXTERNAL AGENCIES AND BODIES,2103012725,1000043961
08.10.2019,CHILDREN'S SERVICES,BY THE BRIDGE LTD,"4,433.01",FRIENDS & FAMILY FOSTERING,EXTERNAL AGENCIES AND BODIES,2103012654,1000043961
08.10.2019,CHILDREN'S SERVICES,NATIONAL FOSTERING AGENCY,"4,478.40",FRIENDS & FAMILY FOSTERING,EXTERNAL AGENCIES AND BODIES,2103012625,1000038868
08.10.2019,CHILDREN'S SERVICES,ASCENT FOSTERING AGENCY LTD,"4,482.90",FRIENDS & FAMILY FOSTERING,EXTERNAL AGENCIES AND BODIES,2103012728,1000074714
08.10.2019,CHILDREN'S SERVICES,HELP ME GROW FOSTERING SERVICES LTD,"4,500.00",FRIENDS & FAMILY FOSTERING,EXTERNAL AGENCIES AND BODIES,2103012659,1000079302
08.10.2019,CHILDREN'S SERVICES,BY THE BRIDGE LTD,"4,523.49",FRIENDS & FAMILY FOSTERING,EXTERNAL AGENCIES AND BODIES,2103012609,1000043961
08.10.2019,CHILDREN'S SERVICES,BY THE BRIDGE LTD,"4,650.47",FRIENDS & FAMILY FOSTERING,EXTERNAL AGENCIES AND BODIES,2103012678,1000043961
08.10.2019,CHILDREN'S SERVICES,BY THE BRIDGE LTD,"4,650.47",FRIENDS & FAMILY FOSTERING,EXTERNAL AGENCIES AND BODIES,2103012735,1000043961
08.10.2019,CHILDREN'S SERVICES,ST CHRISTOPHER FELLOWSHIP,"4,727.10",FRIENDS & FAMILY FOSTERING,EXTERNAL AGENCIES AND BODIES,2103012681,1000045269
08.10.2019,CHILDREN'S SERVICES,BY THE BRIDGE LTD,"4,745.36",FRIENDS & FAMILY FOSTERING,EXTERNAL AGENCIES AND BODIES,2103012660,1000043961
08.10.2019,CHILDREN'S SERVICES,BY THE BRIDGE LTD,"4,745.36",FRIENDS & FAMILY FOSTERING,EXTERNAL AGENCIES AND BODIES,2103012689,1000043961
08.10.2019,CHILDREN'S SERVICES,AIM HIGH FOSTERING SERVICES LTD,"4,964.02",FRIENDS & FAMILY FOSTERING,EXTERNAL AGENCIES AND BODIES,2103012712,1000082607
08.10.2019,CHILDREN'S SERVICES,INTEGRATED SERVICES PROGRAMME,"5,009.40",FRIENDS & FAMILY FOSTERING,EXTERNAL AGENCIES AND BODIES,2103012687,1642068
08.10.2019,CHILDREN'S SERVICES,INTEGRATED SERVICES PROGRAMME,"5,009.40",FRIENDS & FAMILY FOSTERING,EXTERNAL AGENCIES AND BODIES,2103012722,1642068
08.10.2019,CHILDREN'S SERVICES,NATIONAL FOSTERING AGENCY,"5,044.20",FRIENDS & FAMILY FOSTERING,EXTERNAL AGENCIES AND BODIES,2103012715,1000038868
08.10.2019,CHILDREN'S SERVICES,NATIONAL FOSTERING AGENCY,"5,095.80",FRIENDS & FAMILY FOSTERING,EXTERNAL AGENCIES AND BODIES,2103012707,1000038868
08.10.2019,CHILDREN'S SERVICES,AIM HIGH FOSTERING SERVICES LTD,"5,142.60",FRIENDS & FAMILY FOSTERING,EXTERNAL AGENCIES AND BODIES,2103012619,1000082607
08.10.2019,CHILDREN'S SERVICES,HEATH FARM FAMILY SOLUTION (FOSTERING),"5,150.40",FRIENDS & FAMILY FOSTERING,EXTERNAL AGENCIES AND BODIES,2103012684,11271268
08.10.2019,CHILDREN'S SERVICES,INTEGRATED SERVICES PROGRAMME,"5,164.20",FRIENDS & FAMILY FOSTERING,EXTERNAL AGENCIES AND BODIES,2103012607,1642068
08.10.2019,CHILDREN'S SERVICES,INTEGRATED SERVICES PROGRAMME,"5,164.20",FRIENDS & FAMILY FOSTERING,EXTERNAL AGENCIES AND BODIES,2103012617,1642068
08.10.2019,CHILDREN'S SERVICES,INTEGRATED SERVICES PROGRAMME,"5,164.20",FRIENDS & FAMILY FOSTERING,EXTERNAL AGENCIES AND BODIES,2103012655,1642068
08.10.2019,CHILDREN'S SERVICES,INTEGRATED SERVICES PROGRAMME,"5,284.80",FRIENDS & FAMILY FOSTERING,EXTERNAL AGENCIES AND BODIES,2103012682,1642068
08.10.2019,CHILDREN'S SERVICES,INTEGRATED SERVICES PROGRAMME,"5,284.80",FRIENDS & FAMILY FOSTERING,EXTERNAL AGENCIES AND BODIES,2103012736,1642068
08.10.2019,CHILDREN'S SERVICES,BY THE BRIDGE LTD,"5,292.86",FRIENDS & FAMILY FOSTERING,EXTERNAL AGENCIES AND BODIES,2103012633,1000043961
08.10.2019,CHILDREN'S SERVICES,BY THE BRIDGE LTD,"5,292.86",FRIENDS & FAMILY FOSTERING,EXTERNAL AGENCIES AND BODIES,2103012672,1000043961
08.10.2019,CHILDREN'S SERVICES,BY THE BRIDGE LTD,"5,292.86",FRIENDS & FAMILY FOSTERING,EXTERNAL AGENCIES AND BODIES,2103012673,1000043961
08.10.2019,CHILDREN'S SERVICES,AIM HIGH FOSTERING SERVICES LTD,"5,314.02",FRIENDS & FAMILY FOSTERING,EXTERNAL AGENCIES AND BODIES,2103012729,1000082607
08.10.2019,CHILDREN'S SERVICES,COMPASS FOSTERING SOUTH EAST LTD,"5,357.10",FRIENDS & FAMILY FOSTERING,EXTERNAL AGENCIES AND BODIES,2103012613,1000081155
08.10.2019,CHILDREN'S SERVICES,INTEGRATED SERVICES PROGRAMME,"5,396.10",FRIENDS & FAMILY FOSTERING,EXTERNAL AGENCIES AND BODIES,2103012634,1642068
08.10.2019,CHILDREN'S SERVICES,FAMILY WORKS FOSTERING LTD,"5,442.90",FRIENDS & FAMILY FOSTERING,EXTERNAL AGENCIES AND BODIES,2103012676,1000082529
08.10.2019,CHILDREN'S SERVICES,ANCHOR FOSTERCARE,"5,464.20",FRIENDS & FAMILY FOSTERING,EXTERNAL AGENCIES AND BODIES,2103012664,1000065675
08.10.2019,CHILDREN'S SERVICES,INTEGRATED SERVICES PROGRAMME,"5,562.90",FRIENDS & FAMILY FOSTERING,EXTERNAL AGENCIES AND BODIES,2103012662,1642068
08.10.2019,CHILDREN'S SERVICES,HELP ME GROW FOSTERING SERVICES LTD,"5,571.30",FRIENDS & FAMILY FOSTERING,EXTERNAL AGENCIES AND BODIES,2103012643,1000079302
08.10.2019,CHILDREN'S SERVICES,LIGHTHOUSE FOSTERING LTD,"5,580.86",FRIENDS & FAMILY FOSTERING,EXTERNAL AGENCIES AND BODIES,2103012718,1000080372
08.10.2019,CHILDREN'S SERVICES,SHARED CARE SERVICES LTD,"5,650.20",FRIENDS & FAMILY FOSTERING,EXTERNAL AGENCIES AND BODIES,2103012649,1000080308
08.10.2019,CHILDREN'S SERVICES,ASCENT FOSTERING AGENCY LTD,"5,678.70",FRIENDS & FAMILY FOSTERING,EXTERNAL AGENCIES AND BODIES,2103012709,1000074714
08.10.2019,CHILDREN'S SERVICES,HEATH FARM FAMILY SOLUTION (FOSTERING),"5,722.50",FRIENDS & FAMILY FOSTERING,EXTERNAL AGENCIES AND BODIES,2103012612,11271268
08.10.2019,CHILDREN'S SERVICES,ST CHRISTOPHER FELLOWSHIP,"5,978.70",FRIENDS & FAMILY FOSTERING,EXTERNAL AGENCIES AND BODIES,2103012667,1000045269
08.10.2019,CHILDREN'S SERVICES,DIVERSE CARE (UK) LTD,"6,120.00",FRIENDS & FAMILY FOSTERING,EXTERNAL AGENCIES AND BODIES,2103012661,1000055636
08.10.2019,CHILDREN'S SERVICES,MOSAIC FOSTER CARE LTD,"6,428.40",FRIENDS & FAMILY FOSTERING,EXTERNAL AGENCIES AND BODIES,2103012733,1000076259
08.10.2019,CHILDREN'S SERVICES,INTEGRATED SERVICES PROGRAMME,"6,467.40",FRIENDS & FAMILY FOSTERING,EXTERNAL AGENCIES AND BODIES,2103012688,1642068
08.10.2019,CHILDREN'S SERVICES,MOSAIC FOSTER CARE LTD,"6,750.00",FRIENDS & FAMILY FOSTERING,EXTERNAL AGENCIES AND BODIES,2103012651,1000076259
08.10.2019,CHILDREN'S SERVICES,MOSAIC FOSTER CARE LTD,"6,750.00",FRIENDS & FAMILY FOSTERING,EXTERNAL AGENCIES AND BODIES,2103012719,1000076259
08.10.2019,CHILDREN'S SERVICES,PARENT AND CHILD FOSTERING ASSESSMENTS,"7,500.00",FRIENDS & FAMILY FOSTERING,EXTERNAL AGENCIES AND BODIES,2103012686,1000078962
08.10.2019,CHILDREN'S SERVICES,PARENT AND CHILD FOSTERING ASSESSMENTS,"7,884.00",FRIENDS & FAMILY FOSTERING,EXTERNAL AGENCIES AND BODIES,2103012704,1000078962
08.10.2019,CHILDREN'S SERVICES,PARENT AND CHILD FOSTERING ASSESSMENTS,"7,928.57",FRIENDS & FAMILY FOSTERING,EXTERNAL AGENCIES AND BODIES,2103012670,1000078962
08.10.2019,CHILDREN'S SERVICES,RPMUSIC,"1,000.00",LEA MUSIC SERVICE(310) - 5018566,CONSULTANTS SERVICES,5902381151,1000073207
08.10.2019,CHILDREN'S SERVICES,LCCM AU UK LTD,"3,900.00",LEA MUSIC SERVICE(310) - 5018566,CONSULTANTS SERVICES,5902381158,1000083252
08.10.2019,CHILDREN'S SERVICES,KM MANAGEMENT AND CONSULTANCY LTD,"1,850.00",MANAGEMENT INFORMATION UNIT,PROFESSIONAL FEES,5902378350,1000078756
08.10.2019,CHILDREN'S SERVICES,T4 TRUST,"17,948.72",PFA TEAM SOUTHWARK 9 PLUS,RECOUPMENT,2103012263,1000083275
08.10.2019,CHILDREN'S SERVICES,FAMILY FOSTERING LTD,"1,714.20",SEMI INDEPENDENT CARE LEAVERS,EXTERNAL AGENCIES AND BODIES,2103012743,1000075179
08.10.2019,CHILDREN'S SERVICES,SILVER BIRCH CARE LTD,"3,750.00",SEMI INDEPENDENT CARE LEAVERS,EXTERNAL AGENCIES AND BODIES,2103012740,1000076525
08.10.2019,CHILDREN'S SERVICES,REDACTED PERSONAL DATA,617.14,SEMI INDEPENDENT LAC,OTHER PAYMENTS FOR CLIENTS,REDACTED,REDACTED
08.10.2019,CHILDREN'S SERVICES,NATIONAL FOSTERING AGENCY,"1,422.60",STAYING PUT,EXTERNAL AGENCIES AND BODIES,2103012744,1000038868
08.10.2019,CHILDREN'S SERVICES,NATIONAL FOSTERING AGENCY,"1,800.00",STAYING PUT,EXTERNAL AGENCIES AND BODIES,2103012741,1000038868
08.10.2019,CHILDREN'S SERVICES,NATIONAL FOSTERING AGENCY,"1,800.00",STAYING PUT,EXTERNAL AGENCIES AND BODIES,2103012742,1000038868
08.10.2019,CHILDREN'S SERVICES,INTEGRATED SERVICES PROGRAMME,"2,334.00",STAYING PUT,EXTERNAL AGENCIES AND BODIES,2103012738,1642068
08.10.2019,CHILDREN'S SERVICES,REDACTED PERSONAL DATA,-300,UNIVERSITY SUPPORT,CLIENT TRANSPORT,REDACTED,REDACTED
08.10.2019,CHILDREN'S SERVICES,REDACTED PERSONAL DATA,300,UNIVERSITY SUPPORT,CLIENT TRANSPORT,REDACTED,REDACTED
08.10.2019,CHILDREN'S SERVICES,REDACTED PERSONAL DATA,-800,UNIVERSITY SUPPORT,OTHER PAYMENTS FOR CLIENTS,REDACTED,REDACTED
08.10.2019,CHILDREN'S SERVICES,REDACTED PERSONAL DATA,800,UNIVERSITY SUPPORT,OTHER PAYMENTS FOR CLIENTS,REDACTED,REDACTED
08.10.2019,CHILDREN'S SERVICES,REDACTED PERSONAL DATA,"1,750.00",UNIVERSITY SUPPORT,OTHER PAYMENTS FOR CLIENTS,REDACTED,REDACTED
08.10.2019,COMMUNITIES,TURNING POINT,"1,349.56",NO RECOURSE TO PUBLIC FUNDS,ACCOMMODATION CHARGES,5902381843,11321523
08.10.2019,COMMUNITIES,CARE UNLIMITED GROUP LTD,"5,870.70",NO RECOURSE TO PUBLIC FUNDS,RESIDENTIAL CARE,5902381841,11172617
08.10.2019,COMMUNITIES,OPEN COMMUNITIES LTD,"1,543.50",RESIDENT INVOLVEMENT TEAM,PLANNED MAINTENANCE,5902381837,1000065800
08.10.2019,COMMUNITIES,SOUTHWARK HINDU CENTRE,"1,300.00",SOUTH,GRANTS,5902380320,1000067675
08.10.2019,CUSTOMER EXPERIENCE,KENT COUNTY COUNCIL - LASER,"-2,412.22",CUSTOMER SUPPORT,ELECTRICITY,5902381751,1000012926
08.10.2019,CUSTOMER EXPERIENCE,KENT COUNTY COUNCIL - LASER,"2,376.53",CUSTOMER SUPPORT,ELECTRICITY,5902381755,1000012926
08.10.2019,CUSTOMER EXPERIENCE,KENT COUNTY COUNCIL - LASER,"2,501.74",CUSTOMER SUPPORT,ELECTRICITY,5902381756,1000012926
08.10.2019,CUSTOMER EXPERIENCE,CENTRE FOR ASSESSMENT LTD,700,PECKHAM MSSP,HIRE OF ROOMS/HALLS,5902381406,1000043715
08.10.2019,CUSTOMER EXPERIENCE HGF,ALLIED PUBLICITY SERVICES LTD,602.95,BLUE BADGES,MATERIALS,5902381813,1000082115
08.10.2019,CUSTOMER EXPERIENCE HGF,MYRTLE BRUCE-MITFORD,"2,500.00",HOMELESS PROJECTS,GRANTS,5902381311,1000049594
08.10.2019,CUSTOMER EXPERIENCE HGF,SHARPE PRITCHARD LLP,350,HOUSING OPTIONS,PROFESSIONAL FEES,5902381833,1790085
08.10.2019,CUSTOMER EXPERIENCE HGF,SHARPE PRITCHARD LLP,864,HOUSING OPTIONS,PROFESSIONAL FEES,5902381832,1790085
08.10.2019,CUSTOMER EXPERIENCE HGF,SOUTHWARK CATHEDRAL ENTERPRISES LTD,775,HOUSING OPTIONS,TRAINING,5902381829,1000011453
08.10.2019,CUSTOMER EXPERIENCE HGF,HOMES2LET UK LTD,"1,083.00",NIGHTLY TA (NSC),EXTERNAL AGENCIES AND BODIES,5902381812,1000079868
08.10.2019,CUSTOMER EXPERIENCE HGF,CROWN HOUSING LTD,"12,845.00",NIGHTLY TA (NSC),EXTERNAL AGENCIES AND BODIES,5902381834,1000075070
08.10.2019,CUSTOMER EXPERIENCE HGF,SK HOUSING LTD,"17,346.50",NIGHTLY TA (NSC),EXTERNAL AGENCIES AND BODIES,5902381801,1000070716
08.10.2019,CUSTOMER EXPERIENCE HGF,J & M OASIS LTD,"19,967.50",NIGHTLY TA (NSC),EXTERNAL AGENCIES AND BODIES,5902381831,1000072169
08.10.2019,CUSTOMER EXPERIENCE HGF,ADERONKE SOYOMBO,"2,000.00",PSL (SOCIAL LETTINGS),EXTERNAL AGENCIES AND BODIES,2103007347,1000083219
08.10.2019,CUSTOMER EXPERIENCE HGF,ADERONKE SOYOMBO,"4,574.31",PSL (SOCIAL LETTINGS),EXTERNAL AGENCIES AND BODIES,2103007346,1000083219
08.10.2019,ENVIRONMENT AND LEISURE,SOUTHWARK PARK BOWLING CLUB,900,CAPITAL PS (LEISURE),CAPITAL GRANTS,5902377650,1000083189
08.10.2019,ENVIRONMENT AND LEISURE,CONWAY AECOM LTD,"110,079.32",CAPITAL PS (LEISURE),CONSTRUCTION,2103012594,3000001595
08.10.2019,ENVIRONMENT AND LEISURE,ETC SPORTS SURFACES LTD,728.75,CAPITAL PS (LEISURE),CONSTRUCTION FEES  - EXTERNAL,2103012561,3000001845
08.10.2019,ENVIRONMENT AND LEISURE,SIMLAW ECOLOGY LIMITED,"1,145.00",CAPITAL PS (LEISURE),CONSTRUCTION FEES  - EXTERNAL,5902381732,1000081042
08.10.2019,ENVIRONMENT AND LEISURE,BLOOM PROCUREMENT SERVICES LTD,"38,431.58",CAPITAL PS (LEISURE),CONSTRUCTION FEES  - EXTERNAL,5902381815,1000082531
08.10.2019,ENVIRONMENT AND LEISURE,ASKEWS & HOLTS LIBRARY SERVICES LTD,"1,707.97",CAPITAL PS (REGEN),"PLANT, MACHINERY & EQUIPMENT ACQUISITION",5902381836,1494168
08.10.2019,ENVIRONMENT DIRECTORATE,CONWAY AECOM LTD,"1,287.93",PARKING ATTENDANTS PCN'S,HIGHWAYS R&M,5902381706,1000071205
08.10.2019,ENVIRONMENT DIRECTORATE,KEYSOFT SOLUTIONS LTD,"20,782.50",PROJECT SUPPORT,SOFTWARE,5902379844,1000025779
08.10.2019,ENVIRONMENT DIRECTORATE,TYCO INTEGRATED FIRE & SECURITY,"13,429.87",TOWN CENTRE CCTV,EQUIPMENT PURCHASE & REPAIR,5902381736,1000077948
08.10.2019,ENVIRONMENT DIRECTORATE,SYMMONS MADGE ASSOCIATES LTD,"1,976.72",TRANSPORT PROJECTS,TRAINING,5902381714,1000067012
08.10.2019,EXCHEQUER SERVICES,LONDON BRIDGE BUSINESS IMPROVEMENT,"32,111.62",TEAM LONDON BRIDGE,EXTERNAL AGENCIES AND BODIES,5902381734,1000050879
08.10.2019,EXCHEQUER SERVICES,WE ARE WATERLOO,"10,845.52",WATERLOO QUARTER,EXTERNAL AGENCIES AND BODIES,5902381733,1000057618
08.10.2019,FINANCE & GOVERNANCE,LAND REGISTRY,542,REGENERATION,LEGAL & COURT FEES,6101907026,DIRECT DEBIT PAYMENT
08.10.2019,HOUSING,GAS ADVISORY SERVICES LIMITED,"13,716.06",PHOENIX,I-WORLD CONTRACTORS HOLDING ACCOUNT,5902381713,1000064649
08.10.2019,HOUSING & MODERNISATION,POHWER,"5,656.40",NHS COMPLAINTS ADVOCACY,EXTERNAL AGENCIES AND BODIES,5902381821,1000070508
08.10.2019,HOUSING HRA,CALFORD SEADEN LLP,"1,075.00",CAPITAL PS (HRA),CONSTRUCTION FEES  - EXTERNAL,5902381803,1061592
08.10.2019,HOUSING HRA,CALFORD SEADEN LLP,"1,176.00",CAPITAL PS (HRA),CONSTRUCTION FEES  - EXTERNAL,5902381802,1061592
08.10.2019,HOUSING HRA,OVE ARUP & PARTNERS LTD,"5,092.50",CAPITAL PS (HRA),CONSTRUCTION FEES  - EXTERNAL,5902381811,1000066606
08.10.2019,HOUSING HRA,KENT COUNTY COUNCIL - LASER,"41,418.18",RESIDENT SERVICES BUSINESS SUPPORT,ELECTRICITY,6101907019,DIRECT DEBIT PAYMENT
08.10.2019,HOUSING HRA,KENT COUNTY COUNCIL - LASER,"13,277.74",RESIDENT SERVICES BUSINESS SUPPORT,ELECTRICITY,6101907020,DIRECT DEBIT PAYMENT
08.10.2019,LEISURE DIRECTORATE,P D CONSTRUCTION LTD,951.88,BURGESS AREA TEAM,OTHER R&M,5902381682,1000000390
08.10.2019,LEISURE DIRECTORATE,P D CONSTRUCTION LTD,"3,927.00",BURGESS AREA TEAM,OTHER R&M,5902381680,1000000390
08.10.2019,LEISURE DIRECTORATE,SHARPE PRITCHARD LLP,440,FACILITIES MANAGEMENT,PAYMENTS FOR LEGAL SERVICES,5902381844,1790085
08.10.2019,LEISURE DIRECTORATE,SHARPE PRITCHARD LLP,"1,148.00",FACILITIES MANAGEMENT,PAYMENTS FOR LEGAL SERVICES,5902381846,1790085
08.10.2019,LEISURE DIRECTORATE,CASTLE WATER LTD,445.31,SDM BUDGET,WATER,5902381779,1000078867
08.10.2019,LEISURE DIRECTORATE,ASKEWS & HOLTS LIBRARY SERVICES LTD,"4,368.91",STOCK SERVICES,BOOKS & PUBLICATIONS,5902381809,1494168
08.10.2019,LEISURE DIRECTORATE,ASKEWS & HOLTS LIBRARY SERVICES LTD,"7,578.16",STOCK SERVICES,BOOKS & PUBLICATIONS,5902381822,1494168
08.10.2019,LEISURE DIRECTORATE,BIBLIOTHECA LTD,399.05,STOCK SERVICES,STATIONERY,5902381738,1000069536
08.10.2019,MODERNISATION HGF,ROYAL MAIL GROUP LTD,"3,678.12",160 TOOLEY ST.,POSTAGES,5902381817,1000008168
08.10.2019,MODERNISATION HGF,TMP (UK) LIMITED,715,ADVERTISING,RECRUITMENT ADVERTISING,5902381848,1000041810
08.10.2019,MODERNISATION HGF,TMP (UK) LIMITED,"1,162.11",ADVERTISING,RECRUITMENT ADVERTISING,5902381845,1000041810
08.10.2019,MODERNISATION HGF,TMP (UK) LIMITED,"3,445.00",ADVERTISING,RECRUITMENT ADVERTISING,5902381847,1000041810
08.10.2019,MODERNISATION HGF,MACH 1 COURIERS LTD,"1,870.37",REPAIR AND MAINTENANCE SERVICES,CAB FARES,5902381797,1000038113
08.10.2019,NEW SOUTHWARK BUILDING SERVICES,GC CONSTRUCT LTD,"14,337.46",SUPPORTED HOUSING - REPAIRS,OTHER CONTRACTORS,5902381796,1000082102
08.10.2019,PUBLIC HEALTH,CENTRAL & NORTH WEST LONDON,739.08,SEXUAL HEALTH - STI,EXTERNAL AGENCIES AND BODIES,5902381754,1000066666
08.10.2019,PUBLIC HEALTH,CENTRAL & NORTH WEST LONDON,"20,906.54",SEXUAL HEALTH - STI,EXTERNAL AGENCIES AND BODIES,5902381752,1000066666
08.10.2019,PUBLIC HEALTH,CITY OF LONDON CORPORATION,"37,066.08",SEXUAL HEALTH - STI,EXTERNAL AGENCIES AND BODIES,5902381757,1000052061
08.10.2019,PUBLIC HEALTH,CITY OF LONDON CORPORATION,"44,082.08",SEXUAL HEALTH - STI,EXTERNAL AGENCIES AND BODIES,5902381758,1000052061
08.10.2019,REGENERATION,ASSOCIATED NEWSPAPERS LTD,"30,000.00",MISC INDUSTRIAL PROPERTIES,PROFESSIONAL FEES,5902381668,1000065916
08.10.2019,REGENERATION,CARMEL KING PHOTOGRAPHY,720,OKR MASTER PLANNING,PROFESSIONAL FEES,5902381040,1000083240
08.10.2019,RESIDENT SERVICES,EDF ENERGY PLC,745.66,OPERATIONS/OFFICES ACCOMMODATION,ELECTRICITY,5902381816,1008746
08.10.2019,RESIDENT SERVICES,CAPITA BUSINESS SERVICES LTD,"1,045.00",PARKING CONTROL,STATIONERY,5902381724,1000006291
08.10.2019,RESIDENT SERVICES,NPOWER,327.17,SUPPORTED HOSTELS,ELECTRICITY,5902381795,1000032342
08.10.2019,SOUTHWARK BUILDING SERVICES,A T & T (GB LTD ),727.43,STORES/LOGISTICS,CREDITORS -GR/IR CLEARING ACCOUNT,5902381678,1000078342
08.10.2019,SOUTHWARK BUILDING SERVICES,A T & T (GB LTD ),728,STORES/LOGISTICS,CREDITORS -GR/IR CLEARING ACCOUNT,5902381677,1000078342
08.10.2019,SOUTHWARK BUILDING SERVICES,A T & T (GB LTD ),813.01,STORES/LOGISTICS,CREDITORS -GR/IR CLEARING ACCOUNT,5902381690,1000078342
08.10.2019,SOUTHWARK BUILDING SERVICES,A T & T (GB LTD ),910,STORES/LOGISTICS,CREDITORS -GR/IR CLEARING ACCOUNT,5902381678,1000078342
08.10.2019,SOUTHWARK BUILDING SERVICES,A T & T (GB LTD ),"1,056.00",STORES/LOGISTICS,CREDITORS -GR/IR CLEARING ACCOUNT,5902381690,1000078342
08.10.2019,SOUTHWARK BUILDING SERVICES,A T & T (GB LTD ),"1,326.49",STORES/LOGISTICS,CREDITORS -GR/IR CLEARING ACCOUNT,5902381679,1000078342
08.10.2019,SOUTHWARK BUILDING SERVICES,A T & T (GB LTD ),"1,532.16",STORES/LOGISTICS,CREDITORS -GR/IR CLEARING ACCOUNT,5902381684,1000078342
08.10.2019,SOUTHWARK BUILDING SERVICES,A T & T (GB LTD ),"1,839.60",STORES/LOGISTICS,CREDITORS -GR/IR CLEARING ACCOUNT,5902381687,1000078342
08.10.2019,SOUTHWARK BUILDING SERVICES,A T & T (GB LTD ),"1,975.80",STORES/LOGISTICS,CREDITORS -GR/IR CLEARING ACCOUNT,5902381687,1000078342
08.10.2019,SOUTHWARK BUILDING SERVICES,A T & T (GB LTD ),"2,640.00",STORES/LOGISTICS,CREDITORS -GR/IR CLEARING ACCOUNT,5902381691,1000078342
08.10.2019,SOUTHWARK BUILDING SERVICES,A T & T (GB LTD ),"2,640.00",STORES/LOGISTICS,CREDITORS -GR/IR CLEARING ACCOUNT,5902381691,1000078342
08.10.2019,SOUTHWARK BUILDING SERVICES,A T & T (GB LTD ),"2,747.40",STORES/LOGISTICS,CREDITORS -GR/IR CLEARING ACCOUNT,5902381686,1000078342
08.10.2019,SOUTHWARK BUILDING SERVICES,A T & T (GB LTD ),"3,679.20",STORES/LOGISTICS,CREDITORS -GR/IR CLEARING ACCOUNT,5902381681,1000078342
08.10.2019,SOUTHWARK BUILDING SERVICES,A T & T (GB LTD ),"4,280.90",STORES/LOGISTICS,CREDITORS -GR/IR CLEARING ACCOUNT,5902381681,1000078342
09.10.2019,ADULT SOCIAL CARE,SHUTTLEWORTH (UK) LTD,"-1,278.00",ASC TEMPORARY ACCOMMODATION,EXTERNAL AGENCIES AND BODIES,5902381965,1000056468
09.10.2019,ADULT SOCIAL CARE,JACK ANDERSON,"1,250.00",DIR OF ASC,LEGAL FEES & COURT COSTS,2103013708,1000058150
09.10.2019,ADULT SOCIAL CARE,REMARK LIVING,920,LD LTS 18-64,SUPPORTED LIVING,2103013382,1000081741
09.10.2019,ADULT SOCIAL CARE,REDACTED PERSONAL DATA,"7,482.40",PHB- SOUTHWARK CCG,RECOVERABLE COSTS INCL. HEALTH,REDACTED,REDACTED
09.10.2019,ADULT SOCIAL CARE,REMARK LIVING,"1,035.00",PHY LTS 18-64,SUPPORTED LIVING,2103013381,1000081741
09.10.2019,ADULT SOCIAL CARE,HC-ONE LTD (TOWER BRIDGE CARE HOME),"2,163.86",PHY LTS 65+,PLACEMENTS - RESPITE,2103013383,1000067670
09.10.2019,ADULT SOCIAL CARE,F A ALBIN AND SONS,"1,090.00",PUBLIC FUNERALS S.46,OTHER CONTRACTORS,5902382055,11313949
09.10.2019,ADULT SOCIAL CARE,F A ALBIN AND SONS,"1,138.06",PUBLIC FUNERALS S.46,OTHER CONTRACTORS,5902382012,11313949
09.10.2019,ADULT SOCIAL CARE,F A ALBIN AND SONS,"1,254.00",PUBLIC FUNERALS S.46,OTHER CONTRACTORS,5902382061,11313949
09.10.2019,ASSET MANAGEMENT,CHESHIRE ESTATE AND LEGAL LTD,"1,369.58",DISREPAIR,LEGAL FEES & COURT COSTS,2103013747,1000081908
09.10.2019,ASSET MANAGEMENT,SHAW KELLY,704.17,DISREPAIR,LEGAL FEES & COURT COSTS,2103013736,1000006930
09.10.2019,ASSET MANAGEMENT,CHESHIRE ESTATE AND LEGAL LTD,596.14,DISREPAIR,PAYMENTS FOR LEGAL SERVICES,2103012775,1000081908
09.10.2019,ASSET MANAGEMENT,CHESHIRE ESTATE AND LEGAL LTD,800,DISREPAIR,PAYMENTS FOR LEGAL SERVICES,2103012781,1000081908
09.10.2019,ASSET MANAGEMENT,CHESHIRE ESTATE AND LEGAL LTD,"1,000.00",DISREPAIR,PAYMENTS FOR LEGAL SERVICES,2103012771,1000081908
09.10.2019,ASSET MANAGEMENT,SJS LEGAL,"1,118.30",DISREPAIR,PAYMENTS FOR LEGAL SERVICES,2103012770,1000082655
09.10.2019,ASSET MANAGEMENT,CHESHIRE ESTATE AND LEGAL LTD,"1,200.00",DISREPAIR,PAYMENTS FOR LEGAL SERVICES,2103012783,1000081908
09.10.2019,ASSET MANAGEMENT,SOUTHWARK LAW CENTRE,"1,226.16",DISREPAIR,PAYMENTS FOR LEGAL SERVICES,2103012784,1931684
09.10.2019,ASSET MANAGEMENT,ARKAS LAW LTD,"1,800.00",DISREPAIR,PAYMENTS FOR LEGAL SERVICES,2103012780,1000082181
09.10.2019,ASSET MANAGEMENT,CHESHIRE ESTATE AND LEGAL LTD,"4,250.00",DISREPAIR,PAYMENTS FOR LEGAL SERVICES,2103012768,1000081908
09.10.2019,ASSET MANAGEMENT,HODGE JONES & ALLEN,"9,000.00",DISREPAIR,PAYMENTS FOR LEGAL SERVICES,2103012779,11011881
09.10.2019,ASSET MANAGEMENT,CAMBRIDGE HOUSE & TALBOT,"10,750.00",DISREPAIR,PAYMENTS FOR LEGAL SERVICES,2103012767,1139414
09.10.2019,ASSET MANAGEMENT,MATRIX SOLICITORS,400,DISREPAIR,PAYMENTS FOR LEGAL SERVICES,2103012765,1000082248
09.10.2019,ASSET MANAGEMENT,ANTONY HODARI  SOLICITORS,"1,000.00",DISREPAIR,PAYMENTS FOR LEGAL SERVICES,2103012772,1000031040
09.10.2019,ASSET MANAGEMENT,ANTONY HODARI  SOLICITORS,"1,750.00",DISREPAIR,PAYMENTS FOR LEGAL SERVICES,2103012776,1000031040
09.10.2019,ASSET MANAGEMENT,BELSHAW & CURTIN SOLICITORS,"2,015.96",DISREPAIR,PAYMENTS FOR LEGAL SERVICES,2103012786,1767379
09.10.2019,ASSET MANAGEMENT,BROWN TURNER ROSS SOLICITORS,"2,500.00",DISREPAIR,PAYMENTS FOR LEGAL SERVICES,2103012764,1000082981
09.10.2019,ASSET MANAGEMENT,ANTONY HODARI  SOLICITORS,"3,750.00",DISREPAIR,PAYMENTS FOR LEGAL SERVICES,2103012777,1000031040
09.10.2019,ASSET MANAGEMENT,BELSHAW & CURTIN SOLICITORS,"3,933.61",DISREPAIR,PAYMENTS FOR LEGAL SERVICES,2103012773,1767379
09.10.2019,ASSET MANAGEMENT,ANTONY HODARI  SOLICITORS,"4,000.00",DISREPAIR,PAYMENTS FOR LEGAL SERVICES,2103012766,1000031040
09.10.2019,ASSET MANAGEMENT,ANTONY HODARI  SOLICITORS,"5,000.00",DISREPAIR,PAYMENTS FOR LEGAL SERVICES,2103012769,1000031040
09.10.2019,ASSET MANAGEMENT,ANTONY HODARI  SOLICITORS,"10,000.00",DISREPAIR,PAYMENTS FOR LEGAL SERVICES,2103012778,1000031040
09.10.2019,CENTRAL FUNCTIONS,STANBURY BUILDING SERVICES LTD,695,COMMERCIAL PROPERTIES,BUILDING R&M,2103012756,3000001967
09.10.2019,CENTRAL FUNCTIONS,SHERCURITY LTD,"3,360.00",COMMERCIAL PROPERTIES,LEGAL FEES & COURT COSTS,2103013741,1000067090
09.10.2019,CENTRAL FUNCTIONS,SHERCURITY LTD,"3,360.00",COMMERCIAL PROPERTIES,LEGAL FEES & COURT COSTS,2103013742,1000067090
09.10.2019,CENTRAL FUNCTIONS,CURRIE & BROWN UK LTD,600,COMMERCIAL PROPERTIES,PROFESSIONAL FEES,5902381982,1000033455
09.10.2019,CENTRAL FUNCTIONS,CURRIE & BROWN UK LTD,975,COMMERCIAL PROPERTIES,PROFESSIONAL FEES,5902381984,1000033455
09.10.2019,CHIEF EXECUTIVE,BRAC CONTRACTS,"79,325.99",CAPITAL PS (REGEN),CONSTRUCTION FEES - ARCHITECT,2103013685,3000002025
09.10.2019,CHIEF EXECUTIVE,CONWAY AECOM LTD,"55,959.03",CAPITAL PS (REGEN),CONSTRUCTION SUB CONTRACT -CERTIFICATED,2103013687,3000001595
09.10.2019,CHILDREN AND ADULT,SHARPE PRITCHARD LLP,838,CAPITAL PS (EDUCATION),CONSTRUCTION FEES - QUANTITY SURVEYOR,5902382038,1790085
09.10.2019,CHILDREN AND ADULT,HUNTERS CONTRACTS LTD,410,CAPITAL PS (SOC SERV),FURNITURE & FITTINGS ACQUISITION,5902380470,1000065904
09.10.2019,CHILDREN'S SERVICES,REDACTED PERSONAL DATA,251.12,ADOPTION PLACEMENTS & INTER AGENCY,PAYMENTS TO CARERS,REDACTED,REDACTED
09.10.2019,CHILDREN'S SERVICES,REDACTED PERSONAL DATA,251.94,ADOPTION PLACEMENTS & INTER AGENCY,PAYMENTS TO CARERS,REDACTED,REDACTED
09.10.2019,CHILDREN'S SERVICES,REDACTED PERSONAL DATA,252.9,ADOPTION PLACEMENTS & INTER AGENCY,PAYMENTS TO CARERS,REDACTED,REDACTED
09.10.2019,CHILDREN'S SERVICES,REDACTED PERSONAL DATA,253.56,ADOPTION PLACEMENTS & INTER AGENCY,PAYMENTS TO CARERS,REDACTED,REDACTED
09.10.2019,CHILDREN'S SERVICES,REDACTED PERSONAL DATA,255.22,ADOPTION PLACEMENTS & INTER AGENCY,PAYMENTS TO CARERS,REDACTED,REDACTED
09.10.2019,CHILDREN'S SERVICES,REDACTED PERSONAL DATA,255.22,ADOPTION PLACEMENTS & INTER AGENCY,PAYMENTS TO CARERS,REDACTED,REDACTED
09.10.2019,CHILDREN'S SERVICES,REDACTED PERSONAL DATA,262.44,ADOPTION PLACEMENTS & INTER AGENCY,PAYMENTS TO CARERS,REDACTED,REDACTED
09.10.2019,CHILDREN'S SERVICES,REDACTED PERSONAL DATA,278.54,ADOPTION PLACEMENTS & INTER AGENCY,PAYMENTS TO CARERS,REDACTED,REDACTED
09.10.2019,CHILDREN'S SERVICES,REDACTED PERSONAL DATA,279.26,ADOPTION PLACEMENTS & INTER AGENCY,PAYMENTS TO CARERS,REDACTED,REDACTED
09.10.2019,CHILDREN'S SERVICES,REDACTED PERSONAL DATA,282.76,ADOPTION PLACEMENTS & INTER AGENCY,PAYMENTS TO CARERS,REDACTED,REDACTED
09.10.2019,CHILDREN'S SERVICES,REDACTED PERSONAL DATA,293.98,ADOPTION PLACEMENTS & INTER AGENCY,PAYMENTS TO CARERS,REDACTED,REDACTED
09.10.2019,CHILDREN'S SERVICES,REDACTED PERSONAL DATA,304.64,ADOPTION PLACEMENTS & INTER AGENCY,PAYMENTS TO CARERS,REDACTED,REDACTED
09.10.2019,CHILDREN'S SERVICES,REDACTED PERSONAL DATA,359.44,ADOPTION PLACEMENTS & INTER AGENCY,PAYMENTS TO CARERS,REDACTED,REDACTED
09.10.2019,CHILDREN'S SERVICES,REDACTED PERSONAL DATA,359.44,ADOPTION PLACEMENTS & INTER AGENCY,PAYMENTS TO CARERS,REDACTED,REDACTED
09.10.2019,CHILDREN'S SERVICES,REDACTED PERSONAL DATA,368.52,ADOPTION PLACEMENTS & INTER AGENCY,PAYMENTS TO CARERS,REDACTED,REDACTED
09.10.2019,CHILDREN'S SERVICES,REDACTED PERSONAL DATA,375.54,ADOPTION PLACEMENTS & INTER AGENCY,PAYMENTS TO CARERS,REDACTED,REDACTED
09.10.2019,CHILDREN'S SERVICES,REDACTED PERSONAL DATA,375.54,ADOPTION PLACEMENTS & INTER AGENCY,PAYMENTS TO CARERS,REDACTED,REDACTED
09.10.2019,CHILDREN'S SERVICES,REDACTED PERSONAL DATA,375.54,ADOPTION PLACEMENTS & INTER AGENCY,PAYMENTS TO CARERS,REDACTED,REDACTED
09.10.2019,CHILDREN'S SERVICES,REDACTED PERSONAL DATA,375.54,ADOPTION PLACEMENTS & INTER AGENCY,PAYMENTS TO CARERS,REDACTED,REDACTED
09.10.2019,CHILDREN'S SERVICES,REDACTED PERSONAL DATA,375.54,ADOPTION PLACEMENTS & INTER AGENCY,PAYMENTS TO CARERS,REDACTED,REDACTED
09.10.2019,CHILDREN'S SERVICES,REDACTED PERSONAL DATA,375.54,ADOPTION PLACEMENTS & INTER AGENCY,PAYMENTS TO CARERS,REDACTED,REDACTED
09.10.2019,CHILDREN'S SERVICES,REDACTED PERSONAL DATA,375.54,ADOPTION PLACEMENTS & INTER AGENCY,PAYMENTS TO CARERS,REDACTED,REDACTED
09.10.2019,CHILDREN'S SERVICES,REDACTED PERSONAL DATA,375.54,ADOPTION PLACEMENTS & INTER AGENCY,PAYMENTS TO CARERS,REDACTED,REDACTED
09.10.2019,CHILDREN'S SERVICES,REDACTED PERSONAL DATA,375.54,ADOPTION PLACEMENTS & INTER AGENCY,PAYMENTS TO CARERS,REDACTED,REDACTED
09.10.2019,CHILDREN'S SERVICES,REDACTED PERSONAL DATA,382.3,ADOPTION PLACEMENTS & INTER AGENCY,PAYMENTS TO CARERS,REDACTED,REDACTED
09.10.2019,CHILDREN'S SERVICES,REDACTED PERSONAL DATA,382.3,ADOPTION PLACEMENTS & INTER AGENCY,PAYMENTS TO CARERS,REDACTED,REDACTED
09.10.2019,CHILDREN'S SERVICES,REDACTED PERSONAL DATA,382.3,ADOPTION PLACEMENTS & INTER AGENCY,PAYMENTS TO CARERS,REDACTED,REDACTED
09.10.2019,CHILDREN'S SERVICES,REDACTED PERSONAL DATA,382.3,ADOPTION PLACEMENTS & INTER AGENCY,PAYMENTS TO CARERS,REDACTED,REDACTED
09.10.2019,CHILDREN'S SERVICES,REDACTED PERSONAL DATA,386,ADOPTION PLACEMENTS & INTER AGENCY,PAYMENTS TO CARERS,REDACTED,REDACTED
09.10.2019,CHILDREN'S SERVICES,REDACTED PERSONAL DATA,400.18,ADOPTION PLACEMENTS & INTER AGENCY,PAYMENTS TO CARERS,REDACTED,REDACTED
09.10.2019,CHILDREN'S SERVICES,REDACTED PERSONAL DATA,400.84,ADOPTION PLACEMENTS & INTER AGENCY,PAYMENTS TO CARERS,REDACTED,REDACTED
09.10.2019,CHILDREN'S SERVICES,REDACTED PERSONAL DATA,400.84,ADOPTION PLACEMENTS & INTER AGENCY,PAYMENTS TO CARERS,REDACTED,REDACTED
09.10.2019,CHILDREN'S SERVICES,REDACTED PERSONAL DATA,400.84,ADOPTION PLACEMENTS & INTER AGENCY,PAYMENTS TO CARERS,REDACTED,REDACTED
09.10.2019,CHILDREN'S SERVICES,REDACTED PERSONAL DATA,404.46,ADOPTION PLACEMENTS & INTER AGENCY,PAYMENTS TO CARERS,REDACTED,REDACTED
09.10.2019,CHILDREN'S SERVICES,REDACTED PERSONAL DATA,451.8,ADOPTION PLACEMENTS & INTER AGENCY,PAYMENTS TO CARERS,REDACTED,REDACTED
09.10.2019,CHILDREN'S SERVICES,REDACTED PERSONAL DATA,457.14,ADOPTION PLACEMENTS & INTER AGENCY,PAYMENTS TO CARERS,REDACTED,REDACTED
09.10.2019,CHILDREN'S SERVICES,REDACTED PERSONAL DATA,465.48,ADOPTION PLACEMENTS & INTER AGENCY,PAYMENTS TO CARERS,REDACTED,REDACTED
09.10.2019,CHILDREN'S SERVICES,REDACTED PERSONAL DATA,465.52,ADOPTION PLACEMENTS & INTER AGENCY,PAYMENTS TO CARERS,REDACTED,REDACTED
09.10.2019,CHILDREN'S SERVICES,REDACTED PERSONAL DATA,465.54,ADOPTION PLACEMENTS & INTER AGENCY,PAYMENTS TO CARERS,REDACTED,REDACTED
09.10.2019,CHILDREN'S SERVICES,REDACTED PERSONAL DATA,465.54,ADOPTION PLACEMENTS & INTER AGENCY,PAYMENTS TO CARERS,REDACTED,REDACTED
09.10.2019,CHILDREN'S SERVICES,REDACTED PERSONAL DATA,465.54,ADOPTION PLACEMENTS & INTER AGENCY,PAYMENTS TO CARERS,REDACTED,REDACTED
09.10.2019,CHILDREN'S SERVICES,REDACTED PERSONAL DATA,465.54,ADOPTION PLACEMENTS & INTER AGENCY,PAYMENTS TO CARERS,REDACTED,REDACTED
09.10.2019,CHILDREN'S SERVICES,REDACTED PERSONAL DATA,484.92,ADOPTION PLACEMENTS & INTER AGENCY,PAYMENTS TO CARERS,REDACTED,REDACTED
09.10.2019,CHILDREN'S SERVICES,REDACTED PERSONAL DATA,485.22,ADOPTION PLACEMENTS & INTER AGENCY,PAYMENTS TO CARERS,REDACTED,REDACTED
09.10.2019,CHILDREN'S SERVICES,REDACTED PERSONAL DATA,500,ADOPTION PLACEMENTS & INTER AGENCY,PAYMENTS TO CARERS,REDACTED,REDACTED
09.10.2019,CHILDREN'S SERVICES,REDACTED PERSONAL DATA,502,ADOPTION PLACEMENTS & INTER AGENCY,PAYMENTS TO CARERS,REDACTED,REDACTED
09.10.2019,CHILDREN'S SERVICES,REDACTED PERSONAL DATA,512.02,ADOPTION PLACEMENTS & INTER AGENCY,PAYMENTS TO CARERS,REDACTED,REDACTED
09.10.2019,CHILDREN'S SERVICES,REDACTED PERSONAL DATA,530,ADOPTION PLACEMENTS & INTER AGENCY,PAYMENTS TO CARERS,REDACTED,REDACTED
09.10.2019,CHILDREN'S SERVICES,REDACTED PERSONAL DATA,552.16,ADOPTION PLACEMENTS & INTER AGENCY,PAYMENTS TO CARERS,REDACTED,REDACTED
09.10.2019,CHILDREN'S SERVICES,REDACTED PERSONAL DATA,559.06,ADOPTION PLACEMENTS & INTER AGENCY,PAYMENTS TO CARERS,REDACTED,REDACTED
09.10.2019,CHILDREN'S SERVICES,REDACTED PERSONAL DATA,588.42,ADOPTION PLACEMENTS & INTER AGENCY,PAYMENTS TO CARERS,REDACTED,REDACTED
09.10.2019,CHILDREN'S SERVICES,REDACTED PERSONAL DATA,623.94,ADOPTION PLACEMENTS & INTER AGENCY,PAYMENTS TO CARERS,REDACTED,REDACTED
09.10.2019,CHILDREN'S SERVICES,REDACTED PERSONAL DATA,635.34,ADOPTION PLACEMENTS & INTER AGENCY,PAYMENTS TO CARERS,REDACTED,REDACTED
09.10.2019,CHILDREN'S SERVICES,REDACTED PERSONAL DATA,640.9,ADOPTION PLACEMENTS & INTER AGENCY,PAYMENTS TO CARERS,REDACTED,REDACTED
09.10.2019,CHILDREN'S SERVICES,REDACTED PERSONAL DATA,652.9,ADOPTION PLACEMENTS & INTER AGENCY,PAYMENTS TO CARERS,REDACTED,REDACTED
09.10.2019,CHILDREN'S SERVICES,REDACTED PERSONAL DATA,652.9,ADOPTION PLACEMENTS & INTER AGENCY,PAYMENTS TO CARERS,REDACTED,REDACTED
09.10.2019,CHILDREN'S SERVICES,REDACTED PERSONAL DATA,653.06,ADOPTION PLACEMENTS & INTER AGENCY,PAYMENTS TO CARERS,REDACTED,REDACTED
09.10.2019,CHILDREN'S SERVICES,REDACTED PERSONAL DATA,682.3,ADOPTION PLACEMENTS & INTER AGENCY,PAYMENTS TO CARERS,REDACTED,REDACTED
09.10.2019,CHILDREN'S SERVICES,REDACTED PERSONAL DATA,682.3,ADOPTION PLACEMENTS & INTER AGENCY,PAYMENTS TO CARERS,REDACTED,REDACTED
09.10.2019,CHILDREN'S SERVICES,REDACTED PERSONAL DATA,695.04,ADOPTION PLACEMENTS & INTER AGENCY,PAYMENTS TO CARERS,REDACTED,REDACTED
09.10.2019,CHILDREN'S SERVICES,REDACTED PERSONAL DATA,695.12,ADOPTION PLACEMENTS & INTER AGENCY,PAYMENTS TO CARERS,REDACTED,REDACTED
09.10.2019,CHILDREN'S SERVICES,REDACTED PERSONAL DATA,705.24,ADOPTION PLACEMENTS & INTER AGENCY,PAYMENTS TO CARERS,REDACTED,REDACTED
09.10.2019,CHILDREN'S SERVICES,REDACTED PERSONAL DATA,712.3,ADOPTION PLACEMENTS & INTER AGENCY,PAYMENTS TO CARERS,REDACTED,REDACTED
09.10.2019,CHILDREN'S SERVICES,REDACTED PERSONAL DATA,717.14,ADOPTION PLACEMENTS & INTER AGENCY,PAYMENTS TO CARERS,REDACTED,REDACTED
09.10.2019,CHILDREN'S SERVICES,REDACTED PERSONAL DATA,738.32,ADOPTION PLACEMENTS & INTER AGENCY,PAYMENTS TO CARERS,REDACTED,REDACTED
09.10.2019,CHILDREN'S SERVICES,REDACTED PERSONAL DATA,767.68,ADOPTION PLACEMENTS & INTER AGENCY,PAYMENTS TO CARERS,REDACTED,REDACTED
09.10.2019,CHILDREN'S SERVICES,REDACTED PERSONAL DATA,777.36,ADOPTION PLACEMENTS & INTER AGENCY,PAYMENTS TO CARERS,REDACTED,REDACTED
09.10.2019,CHILDREN'S SERVICES,REDACTED PERSONAL DATA,854.28,ADOPTION PLACEMENTS & INTER AGENCY,PAYMENTS TO CARERS,REDACTED,REDACTED
09.10.2019,CHILDREN'S SERVICES,REDACTED PERSONAL DATA,908,ADOPTION PLACEMENTS & INTER AGENCY,PAYMENTS TO CARERS,REDACTED,REDACTED
09.10.2019,CHILDREN'S SERVICES,REDACTED PERSONAL DATA,"1,053.20",ADOPTION PLACEMENTS & INTER AGENCY,PAYMENTS TO CARERS,REDACTED,REDACTED
09.10.2019,CHILDREN'S SERVICES,THE FAMILY PLACE LTD,760,ADOPTION REFORM GRANT (PART B),PROFESSIONAL FEES,5902382009,1000077965
09.10.2019,CHILDREN'S SERVICES,TEAM FACTORS LTD,"-1,800.00",ALTERNATIVE PROVISION,EXTERNAL AGENCIES AND BODIES,5902382059,1000082016
09.10.2019,CHILDREN'S SERVICES,TEAM FACTORS LTD,"1,338.00",ALTERNATIVE PROVISION,EXTERNAL AGENCIES AND BODIES,5902382050,1000082016
09.10.2019,CHILDREN'S SERVICES,TEAM FACTORS LTD,"9,720.00",ALTERNATIVE PROVISION,EXTERNAL AGENCIES AND BODIES,5902382048,1000082016
09.10.2019,CHILDREN'S SERVICES,LARK LANDSCAPE DESIGN LIMITED,"5,550.00",CAPITAL PS (EDUCATION),CONSTRUCTION FEES,5902381983,1000035609
09.10.2019,CHILDREN'S SERVICES,REDACTED PERSONAL DATA,584.29,CARE LEAVERS SERVICES 0-15,OTHER PAYMENTS FOR CLIENTS,REDACTED,REDACTED
09.10.2019,CHILDREN'S SERVICES,SOUTH LONDON GALLERY,"2,400.00",CARER ASSESSMENTS,EXTERNAL AGENCIES AND BODIES,5902382001,11011694
09.10.2019,CHILDREN'S SERVICES,REDACTED PERSONAL DATA,300,DISABILITY & HIV,ADDITIONAL PAYMENTS TO AGENCIES/CARERS,REDACTED,REDACTED
09.10.2019,CHILDREN'S SERVICES,REDACTED PERSONAL DATA,474.95,DISABILITY & HIV,ADDITIONAL PAYMENTS TO AGENCIES/CARERS,REDACTED,REDACTED
09.10.2019,CHILDREN'S SERVICES,REDACTED PERSONAL DATA,500,DISABILITY & HIV,COMPUTER CONSUMABLES,REDACTED,REDACTED
09.10.2019,CHILDREN'S SERVICES,REDACTED PERSONAL DATA,707.14,DISABILITY & HIV,OTHER PAYMENTS FOR CLIENTS,REDACTED,REDACTED
09.10.2019,CHILDREN'S SERVICES,REDACTED PERSONAL DATA,"-32,759.66",DISABILITY & HIV,PAYMENTS TO CARERS,REDACTED,REDACTED
09.10.2019,CHILDREN'S SERVICES,REDACTED PERSONAL DATA,"-1,866.81",DISABILITY & HIV,PAYMENTS TO CARERS,REDACTED,REDACTED
09.10.2019,CHILDREN'S SERVICES,REDACTED PERSONAL DATA,-777.85,DISABILITY & HIV,PAYMENTS TO CARERS,REDACTED,REDACTED
09.10.2019,CHILDREN'S SERVICES,REDACTED PERSONAL DATA,-410,DISABILITY & HIV,PAYMENTS TO CARERS,REDACTED,REDACTED
09.10.2019,CHILDREN'S SERVICES,REDACTED PERSONAL DATA,-387.43,DISABILITY & HIV,PAYMENTS TO CARERS,REDACTED,REDACTED
09.10.2019,CHILDREN'S SERVICES,REDACTED PERSONAL DATA,-294.73,DISABILITY & HIV,PAYMENTS TO CARERS,REDACTED,REDACTED
09.10.2019,CHILDREN'S SERVICES,REDACTED PERSONAL DATA,-285.15,DISABILITY & HIV,PAYMENTS TO CARERS,REDACTED,REDACTED
09.10.2019,CHILDREN'S SERVICES,REDACTED PERSONAL DATA,-275.62,DISABILITY & HIV,PAYMENTS TO CARERS,REDACTED,REDACTED
09.10.2019,CHILDREN'S SERVICES,REDACTED PERSONAL DATA,338.57,DISABILITY & HIV,PAYMENTS TO CARERS,REDACTED,REDACTED
09.10.2019,CHILDREN'S SERVICES,REDACTED PERSONAL DATA,407,DISABILITY & HIV,PAYMENTS TO CARERS,REDACTED,REDACTED
09.10.2019,CHILDREN'S SERVICES,REDACTED PERSONAL DATA,646,DISABILITY & HIV,PAYMENTS TO CARERS,REDACTED,REDACTED
09.10.2019,CHILDREN'S SERVICES,REDACTED PERSONAL DATA,646,DISABILITY & HIV,PAYMENTS TO CARERS,REDACTED,REDACTED
09.10.2019,CHILDREN'S SERVICES,REDACTED PERSONAL DATA,660,DISABILITY & HIV,PAYMENTS TO CARERS,REDACTED,REDACTED
09.10.2019,CHILDREN'S SERVICES,REDACTED PERSONAL DATA,676,DISABILITY & HIV,PAYMENTS TO CARERS,REDACTED,REDACTED
09.10.2019,CHILDREN'S SERVICES,REDACTED PERSONAL DATA,676,DISABILITY & HIV,PAYMENTS TO CARERS,REDACTED,REDACTED
09.10.2019,CHILDREN'S SERVICES,REDACTED PERSONAL DATA,676,DISABILITY & HIV,PAYMENTS TO CARERS,REDACTED,REDACTED
09.10.2019,CHILDREN'S SERVICES,REDACTED PERSONAL DATA,676,DISABILITY & HIV,PAYMENTS TO CARERS,REDACTED,REDACTED
09.10.2019,CHILDREN'S SERVICES,REDACTED PERSONAL DATA,676,DISABILITY & HIV,PAYMENTS TO CARERS,REDACTED,REDACTED
09.10.2019,CHILDREN'S SERVICES,REDACTED PERSONAL DATA,676,DISABILITY & HIV,PAYMENTS TO CARERS,REDACTED,REDACTED
09.10.2019,CHILDREN'S SERVICES,REDACTED PERSONAL DATA,676,DISABILITY & HIV,PAYMENTS TO CARERS,REDACTED,REDACTED
09.10.2019,CHILDREN'S SERVICES,REDACTED PERSONAL DATA,676,DISABILITY & HIV,PAYMENTS TO CARERS,REDACTED,REDACTED
09.10.2019,CHILDREN'S SERVICES,REDACTED PERSONAL DATA,676,DISABILITY & HIV,PAYMENTS TO CARERS,REDACTED,REDACTED
09.10.2019,CHILDREN'S SERVICES,REDACTED PERSONAL DATA,676,DISABILITY & HIV,PAYMENTS TO CARERS,REDACTED,REDACTED
09.10.2019,CHILDREN'S SERVICES,REDACTED PERSONAL DATA,676,DISABILITY & HIV,PAYMENTS TO CARERS,REDACTED,REDACTED
09.10.2019,CHILDREN'S SERVICES,REDACTED PERSONAL DATA,696,DISABILITY & HIV,PAYMENTS TO CARERS,REDACTED,REDACTED
09.10.2019,CHILDREN'S SERVICES,REDACTED PERSONAL DATA,696,DISABILITY & HIV,PAYMENTS TO CARERS,REDACTED,REDACTED
09.10.2019,CHILDREN'S SERVICES,REDACTED PERSONAL DATA,696,DISABILITY & HIV,PAYMENTS TO CARERS,REDACTED,REDACTED
09.10.2019,CHILDREN'S SERVICES,REDACTED PERSONAL DATA,712.3,DISABILITY & HIV,PAYMENTS TO CARERS,REDACTED,REDACTED
09.10.2019,CHILDREN'S SERVICES,REDACTED PERSONAL DATA,726,DISABILITY & HIV,PAYMENTS TO CARERS,REDACTED,REDACTED
09.10.2019,CHILDREN'S SERVICES,REDACTED PERSONAL DATA,726,DISABILITY & HIV,PAYMENTS TO CARERS,REDACTED,REDACTED
09.10.2019,CHILDREN'S SERVICES,REDACTED PERSONAL DATA,726,DISABILITY & HIV,PAYMENTS TO CARERS,REDACTED,REDACTED
09.10.2019,CHILDREN'S SERVICES,REDACTED PERSONAL DATA,726,DISABILITY & HIV,PAYMENTS TO CARERS,REDACTED,REDACTED
